Organisation Name,Organisation Code,Effective Date,Directorate  Where Expenditure Incurred,Supplier Name,Payment Date,Transaction Number,Gross Amount,Purpose of Spend,Merchant Category,Card Transaction
WALSALL COUNCIL,HTTP://OPENDATACOMMUNITIES.ORG/ID/METROPOLITAN-DISTRICT-COUNCIL/WALSALL,31/12/2017,CHANGE & GOVERNANCE,JOHAL DAIRIES LTD,02/10/2017,H59620171003AHPXDWMHT-1,9.10,CA BEACON PRIMARY SCHOOL-MISC DAIRY PRODUCTS-PROVISIONS,OTHER NONDURABLE GOODS,GPC
WALSALL COUNCIL,HTTP://OPENDATACOMMUNITIES.ORG/ID/METROPOLITAN-DISTRICT-COUNCIL/WALSALL,31/12/2017,CHANGE & GOVERNANCE,JOHAL DAIRIES LTD,02/10/2017,H59620171003AJKPDDOBJ-1,15.11,CA BLUE COAT C OF E PERFORMING-MISC DAIRY PRODUCTS-PROVISIONS,OTHER NONDURABLE GOODS,GPC
WALSALL COUNCIL,HTTP://OPENDATACOMMUNITIES.ORG/ID/METROPOLITAN-DISTRICT-COUNCIL/WALSALL,31/12/2017,CHILDRENS SERVICES,W M MORRISON PLC,02/10/2017,H59620171003APQCJGWZJ-1,23.86,"43A HILTON ROAD, WILLENHALL-FOOD AND BEVERAGES-PROVISIONS",GROCERY STORES AND SUPERMARKETS,GPC
WALSALL COUNCIL,HTTP://OPENDATACOMMUNITIES.ORG/ID/METROPOLITAN-DISTRICT-COUNCIL/WALSALL,31/12/2017,CHILDRENS SERVICES,W M MORRISON PLC,02/10/2017,H59620171003APQCJGWZJ-2,85.20,"43A HILTON ROAD, WILLENHALL-FOOD AND BEVERAGES-PROVISIONS",GROCERY STORES AND SUPERMARKETS,GPC
WALSALL COUNCIL,HTTP://OPENDATACOMMUNITIES.ORG/ID/METROPOLITAN-DISTRICT-COUNCIL/WALSALL,31/12/2017,CHANGE & GOVERNANCE,JOHAL DAIRIES LTD,02/10/2017,H59620171003BFHUCFOWB-1,64.78,TOWN HALL RESTAURANT BISTRO-MISC DAIRY PRODUCTS-PROVISIONS,OTHER NONDURABLE GOODS,GPC
WALSALL COUNCIL,HTTP://OPENDATACOMMUNITIES.ORG/ID/METROPOLITAN-DISTRICT-COUNCIL/WALSALL,31/12/2017,CHANGE & GOVERNANCE,CRAZY HOUSE FURNITURE,02/10/2017,H59620171003BICQKJHPG-1,350.00,WALSALL CRISIS SUPPORT SCHEME-FURNITURE & EQUIPMENT,MISCELLANEOUS HOUSE FURNISHING SPECIALTY SHOPS,GPC
WALSALL COUNCIL,HTTP://OPENDATACOMMUNITIES.ORG/ID/METROPOLITAN-DISTRICT-COUNCIL/WALSALL,31/12/2017,CHANGE & GOVERNANCE,JOHAL DAIRIES LTD,02/10/2017,H59620171003BJAKBZZKO-1,12.10,CA JANE LANE SPECIAL SCHOOL-MISC DAIRY PRODUCTS-PROVISIONS,OTHER NONDURABLE GOODS,GPC
WALSALL COUNCIL,HTTP://OPENDATACOMMUNITIES.ORG/ID/METROPOLITAN-DISTRICT-COUNCIL/WALSALL,31/12/2017,ECONOMY & ENVIRONMENT,NCP LIMITED - MJV,02/10/2017,H59620171003BVNWUHEEB-1,25.00,NEW ART GALLERY - ADMIN-OTHER-TRAVEL ALLOWANCES,AUTOMOBILE PARKING LOTS AND GARAGES,GPC
WALSALL COUNCIL,HTTP://OPENDATACOMMUNITIES.ORG/ID/METROPOLITAN-DISTRICT-COUNCIL/WALSALL,31/12/2017,ECONOMY & ENVIRONMENT,IOMA CLOTHING CO LTD,02/10/2017,H59620171003CMMCLFTEJ-1,872.16,INSPIRED GENERATIONS (CSAF)-MISC FEES AND EXPENSES,MENS AND WOMENS CLOTHING STORES,GPC
WALSALL COUNCIL,HTTP://OPENDATACOMMUNITIES.ORG/ID/METROPOLITAN-DISTRICT-COUNCIL/WALSALL,31/12/2017,CHANGE & GOVERNANCE,JOHAL DAIRIES LTD,02/10/2017,H59620171003COZLCWTJQ-1,27.90,CA BUSILL JONES PRIMARY SCHOOL-MISC DAIRY PRODUCTS-PROVISIONS,OTHER NONDURABLE GOODS,GPC
WALSALL COUNCIL,HTTP://OPENDATACOMMUNITIES.ORG/ID/METROPOLITAN-DISTRICT-COUNCIL/WALSALL,31/12/2017,SOCIAL CARE & INCLUSION,BANNER GROUP LTD,02/10/2017,H59620171003CRFFMMBMY-1,77.76,COMMUNITY INTERMEDIATE CARE-STATIONERY & GENERAL SUPPLIES-,"OFFICE, SCHOOL SUPPLY, AND STATIONERY STORES",GPC
WALSALL COUNCIL,HTTP://OPENDATACOMMUNITIES.ORG/ID/METROPOLITAN-DISTRICT-COUNCIL/WALSALL,31/12/2017,CHILDRENS SERVICES,WWW.ARGOS.CO.UK,02/10/2017,H59620171003DBVRDOQLX-1,662.94,7 THE LIMES-NEW-FURNITURE & EQUIPMENT,DISCOUNT STORES,GPC
WALSALL COUNCIL,HTTP://OPENDATACOMMUNITIES.ORG/ID/METROPOLITAN-DISTRICT-COUNCIL/WALSALL,31/12/2017,CHILDRENS SERVICES,AMZ*AMAZON.CO.UK,02/10/2017,H59620171003DHJFLMUEX-1,-11.99,ADOPTION TEAM-MISC FEES AND EXPENSES,OTHER DIRECT MARKETING-OTHER DIRECT MARKETERS,GPC
WALSALL COUNCIL,HTTP://OPENDATACOMMUNITIES.ORG/ID/METROPOLITAN-DISTRICT-COUNCIL/WALSALL,31/12/2017,CHANGE & GOVERNANCE,JOHAL DAIRIES LTD,02/10/2017,H59620171003DMNWSSHUI-1,19.78,CA WATLING STREET PRIMARY SCHO-MISC DAIRY PRODUCTS-PROVISIONS,OTHER NONDURABLE GOODS,GPC
WALSALL COUNCIL,HTTP://OPENDATACOMMUNITIES.ORG/ID/METROPOLITAN-DISTRICT-COUNCIL/WALSALL,31/12/2017,CHANGE & GOVERNANCE,CRAZY HOUSE FURNITURE,02/10/2017,H59620171003DPMCFNWKC-1,70.00,ACCOMMODATION SERVICES MANAGEM-FURNITURE & EQUIPMENT,MISCELLANEOUS HOUSE FURNISHING SPECIALTY SHOPS,GPC
WALSALL COUNCIL,HTTP://OPENDATACOMMUNITIES.ORG/ID/METROPOLITAN-DISTRICT-COUNCIL/WALSALL,31/12/2017,CHANGE & GOVERNANCE,JOHAL DAIRIES LTD,02/10/2017,H59620171003DUBCXTOID-1,43.89,CA BARCROFT D/C-MISC DAIRY PRODUCTS-PROVISIONS,OTHER NONDURABLE GOODS,GPC
WALSALL COUNCIL,HTTP://OPENDATACOMMUNITIES.ORG/ID/METROPOLITAN-DISTRICT-COUNCIL/WALSALL,31/12/2017,CHANGE & GOVERNANCE,BRITANNIA,02/10/2017,H59620171003DWQPOUHON-1,203.00,BED & BREAKFAST PAYMENTS-HOTEL ACCOMMODATION-EMPLOYEES,"HOTELS, MOTELS, RESORTS",GPC
WALSALL COUNCIL,HTTP://OPENDATACOMMUNITIES.ORG/ID/METROPOLITAN-DISTRICT-COUNCIL/WALSALL,31/12/2017,CHANGE & GOVERNANCE,JOHAL DAIRIES LTD,02/10/2017,H59620171003EBLYCQENJ-1,33.84,CA BROWNHILLS WEST PRIMARY SCH-MISC DAIRY PRODUCTS-PROVISIONS,OTHER NONDURABLE GOODS,GPC
WALSALL COUNCIL,HTTP://OPENDATACOMMUNITIES.ORG/ID/METROPOLITAN-DISTRICT-COUNCIL/WALSALL,31/12/2017,CHILDRENS SERVICES,METRO INNS WALSALL,02/10/2017,H59620171003ENFXUZDKD-1,266.00,SAFEGUARDING & FAMILY SUPPORT-TRANSFER PAYMENTS - SOCIAL SER,"HOTELS, MOTELS, RESORTS",GPC
WALSALL COUNCIL,HTTP://OPENDATACOMMUNITIES.ORG/ID/METROPOLITAN-DISTRICT-COUNCIL/WALSALL,31/12/2017,CHANGE & GOVERNANCE,CRAZY HOUSE FURNITURE,02/10/2017,H59620171003EODDSWMMR-1,85.00,ACCOMMODATION SERVICES MANAGEM-FURNITURE & EQUIPMENT,MISCELLANEOUS HOUSE FURNISHING SPECIALTY SHOPS,GPC
WALSALL COUNCIL,HTTP://OPENDATACOMMUNITIES.ORG/ID/METROPOLITAN-DISTRICT-COUNCIL/WALSALL,31/12/2017,CHILDRENS SERVICES,123 REG R/T,02/10/2017,H59620171003EPLVVYGKF-1,11.99,DT-GENERAL MATERIALS,DIRECT MARKETING CONTINUITY SUBSCRIPTION MERCHANTS,GPC
WALSALL COUNCIL,HTTP://OPENDATACOMMUNITIES.ORG/ID/METROPOLITAN-DISTRICT-COUNCIL/WALSALL,31/12/2017,CHANGE & GOVERNANCE,CRAZY HOUSE FURNITURE,02/10/2017,H59620171003ESLRGCTWC-1,60.00,WALSALL CRISIS SUPPORT SCHEME-CRISIS SUPPORT PAYMENTS,MISCELLANEOUS HOUSE FURNISHING SPECIALTY SHOPS,GPC
WALSALL COUNCIL,HTTP://OPENDATACOMMUNITIES.ORG/ID/METROPOLITAN-DISTRICT-COUNCIL/WALSALL,31/12/2017,CHANGE & GOVERNANCE,JOHAL DAIRIES LTD,02/10/2017,H59620171003ETJMTRBSE-1,33.91,CA MOORCROFT WOOD-MISC DAIRY PRODUCTS-PROVISIONS,OTHER NONDURABLE GOODS,GPC
WALSALL COUNCIL,HTTP://OPENDATACOMMUNITIES.ORG/ID/METROPOLITAN-DISTRICT-COUNCIL/WALSALL,31/12/2017,CHANGE & GOVERNANCE,JOHAL DAIRIES LTD,02/10/2017,H59620171003EUTREYRQX-1,32.14,CA RUSHALL JMI SCHOOL-MISC DAIRY PRODUCTS-PROVISIONS,OTHER NONDURABLE GOODS,GPC
WALSALL COUNCIL,HTTP://OPENDATACOMMUNITIES.ORG/ID/METROPOLITAN-DISTRICT-COUNCIL/WALSALL,31/12/2017,CHANGE & GOVERNANCE,ARTHUR BRETT CATER,02/10/2017,H59620171003EYYJYWMNG-1,36.60,CA ST JOHNS C.E. PRIMARY SCHOO-FRUIT & VEGETABLES OTHER-PROVI,MISCELLANEOUS FOOD STORES & CONVENIENCE STORES,GPC
WALSALL COUNCIL,HTTP://OPENDATACOMMUNITIES.ORG/ID/METROPOLITAN-DISTRICT-COUNCIL/WALSALL,31/12/2017,CHANGE & GOVERNANCE,JOHAL DAIRIES LTD,02/10/2017,H59620171003EZOPSJPKN-1,45.39,CA ST GILES C.E. PRIMARY SCHOO-MISC DAIRY PRODUCTS-PROVISIONS,OTHER NONDURABLE GOODS,GPC
WALSALL COUNCIL,HTTP://OPENDATACOMMUNITIES.ORG/ID/METROPOLITAN-DISTRICT-COUNCIL/WALSALL,31/12/2017,CHANGE & GOVERNANCE,CRAZY HOUSE FURNITURE,02/10/2017,H59620171003FAFXEODYW-1,95.00,WALSALL CRISIS SUPPORT SCHEME-FURNITURE & EQUIPMENT,MISCELLANEOUS HOUSE FURNISHING SPECIALTY SHOPS,GPC
WALSALL COUNCIL,HTTP://OPENDATACOMMUNITIES.ORG/ID/METROPOLITAN-DISTRICT-COUNCIL/WALSALL,31/12/2017,ECONOMY & ENVIRONMENT,MARKS&SPENCER PLC SACA,02/10/2017,H59620171003FKBMLUNCN-1,5.39,EDUCATION INFORMAL-MISC DAIRY PRODUCTS-PROVISIONS,GROCERY STORES AND SUPERMARKETS,GPC
WALSALL COUNCIL,HTTP://OPENDATACOMMUNITIES.ORG/ID/METROPOLITAN-DISTRICT-COUNCIL/WALSALL,31/12/2017,CHILDRENS SERVICES,WM MORRISONS,02/10/2017,H59620171003FNPDFYPWV-1,12.95,57 LICHFIELD ROAD-FOOD AND BEVERAGES-PROVISIONS,GROCERY STORES AND SUPERMARKETS,GPC
WALSALL COUNCIL,HTTP://OPENDATACOMMUNITIES.ORG/ID/METROPOLITAN-DISTRICT-COUNCIL/WALSALL,31/12/2017,CHANGE & GOVERNANCE,JOHAL DAIRIES LTD,02/10/2017,H59620171003FPCBWTBCN-1,20.32,CA CASTLEFORT JMI SCHOOL-,OTHER NONDURABLE GOODS,GPC
WALSALL COUNCIL,HTTP://OPENDATACOMMUNITIES.ORG/ID/METROPOLITAN-DISTRICT-COUNCIL/WALSALL,31/12/2017,CHILDRENS SERVICES,WWW.ARGOS.CO.UK,02/10/2017,H59620171003FRNZHEGUK-1,421.93,7 THE LIMES-NEW-FURNITURE & EQUIPMENT,DISCOUNT STORES,GPC
WALSALL COUNCIL,HTTP://OPENDATACOMMUNITIES.ORG/ID/METROPOLITAN-DISTRICT-COUNCIL/WALSALL,31/12/2017,CHILDRENS SERVICES,COMFORT BEDS AND F,02/10/2017,H59620171003FYKBVQPCS-1,29.00,57 LICHFIELD ROAD-RESIDENTS PERSONAL EXPENSES-AL,"EQUIPMENT, FURNITURE, AND HOME FURNISHINGS STORES ",GPC
WALSALL COUNCIL,HTTP://OPENDATACOMMUNITIES.ORG/ID/METROPOLITAN-DISTRICT-COUNCIL/WALSALL,31/12/2017,CHILDRENS SERVICES,W M MORRISON PLC,02/10/2017,H59620171003GBVMZWGBP-1,6.00,ROSEDALE C.E. PRIMARY SCHOOL-BREAD-GENERAL-PROVISIONS,GROCERY STORES AND SUPERMARKETS,GPC
WALSALL COUNCIL,HTTP://OPENDATACOMMUNITIES.ORG/ID/METROPOLITAN-DISTRICT-COUNCIL/WALSALL,31/12/2017,CHILDRENS SERVICES,W M MORRISON PLC,02/10/2017,H59620171003GBVMZWGBP-2,7.60,ROSEDALE C.E. PRIMARY SCHOOL-BREAD-GENERAL-PROVISIONS,GROCERY STORES AND SUPERMARKETS,GPC
WALSALL COUNCIL,HTTP://OPENDATACOMMUNITIES.ORG/ID/METROPOLITAN-DISTRICT-COUNCIL/WALSALL,31/12/2017,CHANGE & GOVERNANCE,JOHAL DAIRIES LTD,02/10/2017,H59620171003GGJJLDCPK-1,22.51,CA ELMORE GREEN PRIMARY SCHOOL-,OTHER NONDURABLE GOODS,GPC
WALSALL COUNCIL,HTTP://OPENDATACOMMUNITIES.ORG/ID/METROPOLITAN-DISTRICT-COUNCIL/WALSALL,31/12/2017,CHILDRENS SERVICES,BANNER GROUP LTD,02/10/2017,H59620171003GHBOTZNZM-1,74.59,LOCALITY FAMILY SUPPORT-NORTH-STATIONERY & GENERAL SUPPLIES-,"OFFICE, SCHOOL SUPPLY, AND STATIONERY STORES",GPC
WALSALL COUNCIL,HTTP://OPENDATACOMMUNITIES.ORG/ID/METROPOLITAN-DISTRICT-COUNCIL/WALSALL,31/12/2017,CHANGE & GOVERNANCE,JOHAL DAIRIES LTD,02/10/2017,H59620171003GOPSILIGL-1,20.65,CA FIBBERSLEY PARK PRIMARY SCH-MISC DAIRY PRODUCTS-PROVISIONS,OTHER NONDURABLE GOODS,GPC
WALSALL COUNCIL,HTTP://OPENDATACOMMUNITIES.ORG/ID/METROPOLITAN-DISTRICT-COUNCIL/WALSALL,31/12/2017,CHILDRENS SERVICES,IKEA LIMITED,02/10/2017,H59620171003GSKTGTRRI-1,25.00,GENERAL SUPPLIES LH-GENERAL MATERIALS,"EQUIPMENT, FURNITURE, AND HOME FURNISHINGS STORES ",GPC
WALSALL COUNCIL,HTTP://OPENDATACOMMUNITIES.ORG/ID/METROPOLITAN-DISTRICT-COUNCIL/WALSALL,31/12/2017,ECONOMY & ENVIRONMENT,AMAZON.CO.UK,02/10/2017,H59620171003HJGYZXSJA-1,21.00,EDUCATION INFORMAL-GENERAL MATERIALS,BOOK STORES,GPC
WALSALL COUNCIL,HTTP://OPENDATACOMMUNITIES.ORG/ID/METROPOLITAN-DISTRICT-COUNCIL/WALSALL,31/12/2017,CHANGE & GOVERNANCE,JOHAL DAIRIES LTD,02/10/2017,H59620171003HJHTQWLKD-1,2.63,CA LEAMORE PRIMARY SCHOOL-,OTHER NONDURABLE GOODS,GPC
WALSALL COUNCIL,HTTP://OPENDATACOMMUNITIES.ORG/ID/METROPOLITAN-DISTRICT-COUNCIL/WALSALL,31/12/2017,CHANGE & GOVERNANCE,CRAZY HOUSE FURNITURE,02/10/2017,H59620171003HPWFJKOHF-1,60.00,WALSALL CRISIS SUPPORT SCHEME-FURNITURE & EQUIPMENT,MISCELLANEOUS HOUSE FURNISHING SPECIALTY SHOPS,GPC
WALSALL COUNCIL,HTTP://OPENDATACOMMUNITIES.ORG/ID/METROPOLITAN-DISTRICT-COUNCIL/WALSALL,31/12/2017,ECONOMY & ENVIRONMENT,SP WORLDOFWOOLRETAIL,02/10/2017,H59620171003HYMKLIWWQ-1,51.00,EDUCATION INFORMAL-GENERAL MATERIALS,COMPUTER SOFTWARE STORES,GPC
WALSALL COUNCIL,HTTP://OPENDATACOMMUNITIES.ORG/ID/METROPOLITAN-DISTRICT-COUNCIL/WALSALL,31/12/2017,CHILDRENS SERVICES,GRO HM PASSPORT OFFICE,02/10/2017,H59620171003IDPBPQVGJ-1,23.40,SAFEGUARDING & FAMILY SUPPORT-REGISTRAR OF BIRTHS/DEATHS/MAR,GOVERNMENT SERVICES,GPC
WALSALL COUNCIL,HTTP://OPENDATACOMMUNITIES.ORG/ID/METROPOLITAN-DISTRICT-COUNCIL/WALSALL,31/12/2017,CHANGE & GOVERNANCE,FACEBK RBHZEE6CP2,02/10/2017,H59620171003IHPWBVUNL-1,60.00,SCHOOL HR TRANSACTIONAL TEAM-ADVERTISING STAFF VACANCIES,ADVERTISING SERVICES,GPC
WALSALL COUNCIL,HTTP://OPENDATACOMMUNITIES.ORG/ID/METROPOLITAN-DISTRICT-COUNCIL/WALSALL,31/12/2017,CHANGE & GOVERNANCE,JOHAL DAIRIES LTD,02/10/2017,H59620171003IJPPSVBYE-1,8.60,CA ST FRANCIS CATHOLIC PRIMARY-MISC DAIRY PRODUCTS-PROVISIONS,OTHER NONDURABLE GOODS,GPC
WALSALL COUNCIL,HTTP://OPENDATACOMMUNITIES.ORG/ID/METROPOLITAN-DISTRICT-COUNCIL/WALSALL,31/12/2017,CHILDRENS SERVICES,JOHAL DAIRIES LTD,02/10/2017,H59620171003IPTREDWTB-1,7.44,57 LICHFIELD ROAD-FOOD AND BEVERAGES-PROVISIONS,OTHER NONDURABLE GOODS,GPC
WALSALL COUNCIL,HTTP://OPENDATACOMMUNITIES.ORG/ID/METROPOLITAN-DISTRICT-COUNCIL/WALSALL,31/12/2017,CHILDRENS SERVICES,AMAZON UK MARKETPLACE,02/10/2017,H59620171003IWBETJDVR-1,6.89,ADMINISTRATIVE SUPPLIES-STATIONERY & GENERAL SUPPLIES-,BOOK STORES,GPC
WALSALL COUNCIL,HTTP://OPENDATACOMMUNITIES.ORG/ID/METROPOLITAN-DISTRICT-COUNCIL/WALSALL,31/12/2017,CHILDRENS SERVICES,COMPLETE CARE SHOP,02/10/2017,H59620171003JANCNLVRF-1,53.94,SEN-GENERAL MATERIALS,MISCELLANEOUS AND SPECIALTY RETAIL STORES,GPC
WALSALL COUNCIL,HTTP://OPENDATACOMMUNITIES.ORG/ID/METROPOLITAN-DISTRICT-COUNCIL/WALSALL,31/12/2017,CHANGE & GOVERNANCE,WWW.SCC.COM,02/10/2017,H59620171003JHRHATKDN-1,"58,250.40",RECHARGEABLE EQUIPMENT-COMPUTER EQUIPMENT AND SUPPLIE,"COMPUTERS, COMPUTER PERIPHERAL EQUIPMENT, SOFTWARE",GPC
WALSALL COUNCIL,HTTP://OPENDATACOMMUNITIES.ORG/ID/METROPOLITAN-DISTRICT-COUNCIL/WALSALL,31/12/2017,CHANGE & GOVERNANCE,JOHAL DAIRIES LTD,02/10/2017,H59620171003JLBESAYUN-1,32.85,CA ABBEY PRIMARY SCHOOL-MISC DAIRY PRODUCTS-PROVISIONS,OTHER NONDURABLE GOODS,GPC
WALSALL COUNCIL,HTTP://OPENDATACOMMUNITIES.ORG/ID/METROPOLITAN-DISTRICT-COUNCIL/WALSALL,31/12/2017,CHANGE & GOVERNANCE,CRAZY HOUSE FURNITURE,02/10/2017,H59620171003JUXYUTNWD-1,170.00,WALSALL CRISIS SUPPORT SCHEME-FURNITURE & EQUIPMENT,MISCELLANEOUS HOUSE FURNISHING SPECIALTY SHOPS,GPC
WALSALL COUNCIL,HTTP://OPENDATACOMMUNITIES.ORG/ID/METROPOLITAN-DISTRICT-COUNCIL/WALSALL,31/12/2017,CHANGE & GOVERNANCE,JOHAL DAIRIES LTD,02/10/2017,H59620171003KIELTBBHH-1,12.90,CA LITTLE BLOXWICH CE PRIMARY -MISC DAIRY PRODUCTS-PROVISIONS,OTHER NONDURABLE GOODS,GPC
WALSALL COUNCIL,HTTP://OPENDATACOMMUNITIES.ORG/ID/METROPOLITAN-DISTRICT-COUNCIL/WALSALL,31/12/2017,CHANGE & GOVERNANCE,ARTHUR BRETT CATER,02/10/2017,H59620171003KLBBYNAOZ-1,52.75,CA CROFT COMMUNITY PRIMARY SCH-FOOD AND BEVERAGES-PROVISIONS,MISCELLANEOUS FOOD STORES & CONVENIENCE STORES,GPC
WALSALL COUNCIL,HTTP://OPENDATACOMMUNITIES.ORG/ID/METROPOLITAN-DISTRICT-COUNCIL/WALSALL,31/12/2017,CHILDRENS SERVICES,NATIONAL EXPRESS LIMITED,02/10/2017,H59620171003LFDMNQDRY-1,-22.10,SAFEGUARDING & FAMILY SUPPORT-OFFICER/STAFF-PUBLIC TRANSPORT,BUS LINES,GPC
WALSALL COUNCIL,HTTP://OPENDATACOMMUNITIES.ORG/ID/METROPOLITAN-DISTRICT-COUNCIL/WALSALL,31/12/2017,ECONOMY & ENVIRONMENT,CCI CREDIT MANAGEMENT,02/10/2017,H59620171003LJOHILKQX-1,192.69,SEXUAL HEALTH - OUT OF AREA AC-PAYMENT TO CONTRACTOR,PROFESSIONAL SERVICES,GPC
WALSALL COUNCIL,HTTP://OPENDATACOMMUNITIES.ORG/ID/METROPOLITAN-DISTRICT-COUNCIL/WALSALL,31/12/2017,CHANGE & GOVERNANCE,WWW.SCC.COM,02/10/2017,H59620171003LNEWWOWDW-1,53.36,RECHARGEABLE EQUIPMENT-COMPUTER EQUIPMENT AND SUPPLIE,"COMPUTERS, COMPUTER PERIPHERAL EQUIPMENT, SOFTWARE",GPC
WALSALL COUNCIL,HTTP://OPENDATACOMMUNITIES.ORG/ID/METROPOLITAN-DISTRICT-COUNCIL/WALSALL,31/12/2017,CHANGE & GOVERNANCE,JOHAL DAIRIES LTD,02/10/2017,H59620171003LPQGDDRYS-1,31.34,CA LINDENS PRIMARY SCHOOL-MISC DAIRY PRODUCTS-PROVISIONS,OTHER NONDURABLE GOODS,GPC
WALSALL COUNCIL,HTTP://OPENDATACOMMUNITIES.ORG/ID/METROPOLITAN-DISTRICT-COUNCIL/WALSALL,31/12/2017,ECONOMY & ENVIRONMENT,T.MORGAN & SONS (L,02/10/2017,H59620171003LVJWOUWEW-1,309.60,WALSALL MARKET-NEW-FURNITURE & EQUIPMENT,HARDWARE EQUIPMENT AND SUPPLIES,GPC
WALSALL COUNCIL,HTTP://OPENDATACOMMUNITIES.ORG/ID/METROPOLITAN-DISTRICT-COUNCIL/WALSALL,31/12/2017,CHANGE & GOVERNANCE,JOHAL DAIRIES LTD,02/10/2017,H59620171003LWVUXOJWB-1,6.12,CA ELMWOOD SPECIAL SCHOOL-MISC DAIRY PRODUCTS-PROVISIONS,OTHER NONDURABLE GOODS,GPC
WALSALL COUNCIL,HTTP://OPENDATACOMMUNITIES.ORG/ID/METROPOLITAN-DISTRICT-COUNCIL/WALSALL,31/12/2017,CHANGE & GOVERNANCE,JOHAL DAIRIES LTD,02/10/2017,H59620171003LXVRQVNJV-1,38.83,CA ST MICHAELS C.E. PRIMARY SC-MISC DAIRY PRODUCTS-PROVISIONS,OTHER NONDURABLE GOODS,GPC
WALSALL COUNCIL,HTTP://OPENDATACOMMUNITIES.ORG/ID/METROPOLITAN-DISTRICT-COUNCIL/WALSALL,31/12/2017,CHILDRENS SERVICES,WWW.ARGOS.CO.UK,02/10/2017,H59620171003LYMHQXQNA-1,511.94,7 THE LIMES-NEW-FURNITURE & EQUIPMENT,DISCOUNT STORES,GPC
WALSALL COUNCIL,HTTP://OPENDATACOMMUNITIES.ORG/ID/METROPOLITAN-DISTRICT-COUNCIL/WALSALL,31/12/2017,CHANGE & GOVERNANCE,JOHAL DAIRIES LTD,02/10/2017,H59620171003MFEESFUPU-1,12.90,CA ST JOHNS C.E. PRIMARY SCHOO-MISC DAIRY PRODUCTS-PROVISIONS,OTHER NONDURABLE GOODS,GPC
WALSALL COUNCIL,HTTP://OPENDATACOMMUNITIES.ORG/ID/METROPOLITAN-DISTRICT-COUNCIL/WALSALL,31/12/2017,CHILDRENS SERVICES,JOHAL DAIRIES LTD,02/10/2017,H59620171003MGEOLKIHP-1,5.70,STROUD FAMILY CENTRE-MISC DAIRY PRODUCTS-PROVISIONS,OTHER NONDURABLE GOODS,GPC
WALSALL COUNCIL,HTTP://OPENDATACOMMUNITIES.ORG/ID/METROPOLITAN-DISTRICT-COUNCIL/WALSALL,31/12/2017,CHANGE & GOVERNANCE,WWW.SCC.COM,02/10/2017,H59620171003MLETPHALI-1,"58,250.40",RECHARGEABLE EQUIPMENT-COMPUTER EQUIPMENT AND SUPPLIE,"COMPUTERS, COMPUTER PERIPHERAL EQUIPMENT, SOFTWARE",GPC
WALSALL COUNCIL,HTTP://OPENDATACOMMUNITIES.ORG/ID/METROPOLITAN-DISTRICT-COUNCIL/WALSALL,31/12/2017,CHILDRENS SERVICES,WWW.ARGOS.CO.UK,02/10/2017,H59620171003MPZNBJBSV-1,695.90,7 THE LIMES-NEW-FURNITURE & EQUIPMENT,DISCOUNT STORES,GPC
WALSALL COUNCIL,HTTP://OPENDATACOMMUNITIES.ORG/ID/METROPOLITAN-DISTRICT-COUNCIL/WALSALL,31/12/2017,ECONOMY & ENVIRONMENT,OCTOBER GALLERY,02/10/2017,H59620171003NDYTCKYSV-1,90.00,NEW ART GALLERY - ADMIN-HOTEL ACCOMMODATION-EMPLOYEES,"ORGANIZATIONS, CHARITABLE AND SOCIAL SERVICE",GPC
WALSALL COUNCIL,HTTP://OPENDATACOMMUNITIES.ORG/ID/METROPOLITAN-DISTRICT-COUNCIL/WALSALL,31/12/2017,CHANGE & GOVERNANCE,JOHAL DAIRIES LTD,02/10/2017,H59620171003NKOBCFRPV-1,25.39,CA ST BERNADETTES CATHOLIC PRI-MISC DAIRY PRODUCTS-PROVISIONS,OTHER NONDURABLE GOODS,GPC
WALSALL COUNCIL,HTTP://OPENDATACOMMUNITIES.ORG/ID/METROPOLITAN-DISTRICT-COUNCIL/WALSALL,31/12/2017,CHANGE & GOVERNANCE,JOHAL DAIRIES LTD,02/10/2017,H59620171003NTOOQBRWJ-1,47.30,CA COOPER JORDAN CE PRIMARY SC-MISC DAIRY PRODUCTS-PROVISIONS,OTHER NONDURABLE GOODS,GPC
WALSALL COUNCIL,HTTP://OPENDATACOMMUNITIES.ORG/ID/METROPOLITAN-DISTRICT-COUNCIL/WALSALL,31/12/2017,CHILDRENS SERVICES,TVLICENSING.CO.UK,02/10/2017,H59620171003NUVLUGYER-1,147.00,TRANSITION AND LEAVING CARE PL-CONSULTANTS FEES,"CONSULTING, MANAGEMENT, AND PR SERVICES",GPC
WALSALL COUNCIL,HTTP://OPENDATACOMMUNITIES.ORG/ID/METROPOLITAN-DISTRICT-COUNCIL/WALSALL,31/12/2017,CHILDRENS SERVICES,FARMFOODS- KINGSTA,02/10/2017,H59620171003OHMFKGIZI-1,10.00,REDRUTH ROAD-FOOD AND BEVERAGES-PROVISIONS,GROCERY STORES AND SUPERMARKETS,GPC
WALSALL COUNCIL,HTTP://OPENDATACOMMUNITIES.ORG/ID/METROPOLITAN-DISTRICT-COUNCIL/WALSALL,31/12/2017,CHANGE & GOVERNANCE,JOHAL DAIRIES LTD,02/10/2017,H59620171003ONFCMPSKY-1,2.73,CA CROFT COMMUNITY PRIMARY SCH-MISC DAIRY PRODUCTS-PROVISIONS,OTHER NONDURABLE GOODS,GPC
WALSALL COUNCIL,HTTP://OPENDATACOMMUNITIES.ORG/ID/METROPOLITAN-DISTRICT-COUNCIL/WALSALL,31/12/2017,ECONOMY & ENVIRONMENT,EDEN SPRINGS,02/10/2017,H59620171003OREKTLXTP-1,108.47,BROWNHILLS LIBRARY-STATIONERY & GENERAL SUPPLIES-,OTHER NONDURABLE GOODS,GPC
WALSALL COUNCIL,HTTP://OPENDATACOMMUNITIES.ORG/ID/METROPOLITAN-DISTRICT-COUNCIL/WALSALL,31/12/2017,ECONOMY & ENVIRONMENT,FACEBK NRKBHD6BE2,02/10/2017,H59620171003PPYSQFLZV-1,15.90,MARKETING AND PROMOTION-PUBLICITY & ADVERTISING (NOT S,ADVERTISING SERVICES,GPC
WALSALL COUNCIL,HTTP://OPENDATACOMMUNITIES.ORG/ID/METROPOLITAN-DISTRICT-COUNCIL/WALSALL,31/12/2017,ECONOMY & ENVIRONMENT,AMAZON UK RETAIL AMAZON.C,02/10/2017,H59620171003PWEWEORCT-1,39.03,PUBLIC HEALTH BUSINESS SUPPORT-STATIONERY & GENERAL SUPPLIES-,MISCELLANEOUS AND SPECIALTY RETAIL STORES,GPC
WALSALL COUNCIL,HTTP://OPENDATACOMMUNITIES.ORG/ID/METROPOLITAN-DISTRICT-COUNCIL/WALSALL,31/12/2017,CHANGE & GOVERNANCE,OLD HALL PEOPLES PARTN,02/10/2017,H59620171003QBQPGPRZO-1,100.00,ACCOMMODATION SERVICES MANAGEM-MISCELLANEOUS SUPPLIES,MISCELLANEOUS AND SPECIALTY RETAIL STORES,GPC
WALSALL COUNCIL,HTTP://OPENDATACOMMUNITIES.ORG/ID/METROPOLITAN-DISTRICT-COUNCIL/WALSALL,31/12/2017,SOCIAL CARE & INCLUSION,JOHAL DAIRIES LTD,02/10/2017,H59620171003QCVCYUEUG-1,108.13,REABLEMENT TEAM - HOLLY BANK-DAIRY PRODUCTS-PROVISIONS,OTHER NONDURABLE GOODS,GPC
WALSALL COUNCIL,HTTP://OPENDATACOMMUNITIES.ORG/ID/METROPOLITAN-DISTRICT-COUNCIL/WALSALL,31/12/2017,CHANGE & GOVERNANCE,ADMIRAL SELF STORAGE L,02/10/2017,H59620171003QGEJHYLSB-1,220.30,TENANCY SERVICE-MISC FEES AND EXPENSES,"PUBLIC WAREHOUSING, FARM, & HOUSEHOLD GOODS",GPC
WALSALL COUNCIL,HTTP://OPENDATACOMMUNITIES.ORG/ID/METROPOLITAN-DISTRICT-COUNCIL/WALSALL,31/12/2017,CHILDRENS SERVICES,AMAZON.CO.UK,02/10/2017,H59620171003RSEOKIFFC-1,59.08,ROSEDALE C.E. PRIMARY SCHOOL-GENERAL MATERIALS,BOOK STORES,GPC
WALSALL COUNCIL,HTTP://OPENDATACOMMUNITIES.ORG/ID/METROPOLITAN-DISTRICT-COUNCIL/WALSALL,31/12/2017,CHILDRENS SERVICES,ALDI 42 772,02/10/2017,H59620171003RYFJEKDHR-1,1.10,REDRUTH ROAD-FOOD AND BEVERAGES-PROVISIONS,GROCERY STORES AND SUPERMARKETS,GPC
WALSALL COUNCIL,HTTP://OPENDATACOMMUNITIES.ORG/ID/METROPOLITAN-DISTRICT-COUNCIL/WALSALL,31/12/2017,CHILDRENS SERVICES,ALDI 42 772,02/10/2017,H59620171003RYFJEKDHR-2,23.36,REDRUTH ROAD-FOOD AND BEVERAGES-PROVISIONS,GROCERY STORES AND SUPERMARKETS,GPC
WALSALL COUNCIL,HTTP://OPENDATACOMMUNITIES.ORG/ID/METROPOLITAN-DISTRICT-COUNCIL/WALSALL,31/12/2017,CHANGE & GOVERNANCE,JOHAL DAIRIES LTD,02/10/2017,H59620171003RYWLTKFJN-1,85.43,CA BIRCHILLS CE PRIMARY COMMUN-MISC DAIRY PRODUCTS-PROVISIONS,OTHER NONDURABLE GOODS,GPC
WALSALL COUNCIL,HTTP://OPENDATACOMMUNITIES.ORG/ID/METROPOLITAN-DISTRICT-COUNCIL/WALSALL,31/12/2017,CHILDRENS SERVICES,AMAZON UK MARKETPLACE,02/10/2017,H59620171003SCRKLMZTF-1,17.07,ADMINISTRATIVE SUPPLIES-STATIONERY & GENERAL SUPPLIES-,BOOK STORES,GPC
WALSALL COUNCIL,HTTP://OPENDATACOMMUNITIES.ORG/ID/METROPOLITAN-DISTRICT-COUNCIL/WALSALL,31/12/2017,ECONOMY & ENVIRONMENT,T.MORGAN & SONS (L,02/10/2017,H59620171003SDUYZHAXM-1,58.20,ARBORETUM-GENERAL MATERIALS,HARDWARE EQUIPMENT AND SUPPLIES,GPC
WALSALL COUNCIL,HTTP://OPENDATACOMMUNITIES.ORG/ID/METROPOLITAN-DISTRICT-COUNCIL/WALSALL,31/12/2017,CHANGE & GOVERNANCE,JOHAL DAIRIES LTD,02/10/2017,H59620171003SKNAKPIQE-1,24.72,CA TOWN HALL RESTAURANT - CATE-MISC DAIRY PRODUCTS-PROVISIONS,OTHER NONDURABLE GOODS,GPC
WALSALL COUNCIL,HTTP://OPENDATACOMMUNITIES.ORG/ID/METROPOLITAN-DISTRICT-COUNCIL/WALSALL,31/12/2017,CHANGE & GOVERNANCE,CRAZY HOUSE FURNITURE,02/10/2017,H59620171003SVJUDFXCV-1,60.00,WALSALL CRISIS SUPPORT SCHEME-FURNITURE & EQUIPMENT,MISCELLANEOUS HOUSE FURNISHING SPECIALTY SHOPS,GPC
WALSALL COUNCIL,HTTP://OPENDATACOMMUNITIES.ORG/ID/METROPOLITAN-DISTRICT-COUNCIL/WALSALL,31/12/2017,CHANGE & GOVERNANCE,ARTHUR BRETT CATER,02/10/2017,H59620171003SXPXUJRIJ-1,32.91,CA CASTLEFORT JMI SCHOOL-FRUIT & VEGETABLES OTHER-PROVI,MISCELLANEOUS FOOD STORES & CONVENIENCE STORES,GPC
WALSALL COUNCIL,HTTP://OPENDATACOMMUNITIES.ORG/ID/METROPOLITAN-DISTRICT-COUNCIL/WALSALL,31/12/2017,CHANGE & GOVERNANCE,JOHAL DAIRIES LTD,02/10/2017,H59620171003TDJBWNYJC-1,6.43,CA MEADOW VIEW JMI PRIMARY SCH-MISC DAIRY PRODUCTS-PROVISIONS,OTHER NONDURABLE GOODS,GPC
WALSALL COUNCIL,HTTP://OPENDATACOMMUNITIES.ORG/ID/METROPOLITAN-DISTRICT-COUNCIL/WALSALL,31/12/2017,CHANGE & GOVERNANCE,ARTHUR BRETT CATER,02/10/2017,H59620171003TIOFVIRLN-1,107.47,CA COOPER JORDAN CE PRIMARY SC-FRUIT & VEGETABLES OTHER-PROVI,MISCELLANEOUS FOOD STORES & CONVENIENCE STORES,GPC
WALSALL COUNCIL,HTTP://OPENDATACOMMUNITIES.ORG/ID/METROPOLITAN-DISTRICT-COUNCIL/WALSALL,31/12/2017,CHILDRENS SERVICES,PARENTPAY E-COM R,02/10/2017,H59620171003TJMRDIDHZ-1,10.00,57 LICHFIELD ROAD-FOOD AND BEVERAGES-PROVISIONS,"COLLEGES, UNIVERSITIES, PROFESSIONAL SCHOOLS",GPC
WALSALL COUNCIL,HTTP://OPENDATACOMMUNITIES.ORG/ID/METROPOLITAN-DISTRICT-COUNCIL/WALSALL,31/12/2017,CHANGE & GOVERNANCE,CRAZY HOUSE FURNITURE,02/10/2017,H59620171003TPLQRXYSL-1,95.00,WALSALL CRISIS SUPPORT SCHEME-CRISIS SUPPORT PAYMENTS,MISCELLANEOUS HOUSE FURNISHING SPECIALTY SHOPS,GPC
WALSALL COUNCIL,HTTP://OPENDATACOMMUNITIES.ORG/ID/METROPOLITAN-DISTRICT-COUNCIL/WALSALL,31/12/2017,CHANGE & GOVERNANCE,JOHAL DAIRIES LTD,02/10/2017,H59620171003TUJXLGFRZ-1,5.16,CA WALSALL WOOD PRIMARY SCHOOL-MISC DAIRY PRODUCTS-PROVISIONS,OTHER NONDURABLE GOODS,GPC
WALSALL COUNCIL,HTTP://OPENDATACOMMUNITIES.ORG/ID/METROPOLITAN-DISTRICT-COUNCIL/WALSALL,31/12/2017,CHANGE & GOVERNANCE,JOHAL DAIRIES LTD,02/10/2017,H59620171003TYXESBTMS-1,33.54,CA RADLEYS PRIMARY SCHOOL-FROZEN FOODS-PROVISIONS,OTHER NONDURABLE GOODS,GPC
WALSALL COUNCIL,HTTP://OPENDATACOMMUNITIES.ORG/ID/METROPOLITAN-DISTRICT-COUNCIL/WALSALL,31/12/2017,CHILDRENS SERVICES,ASDA STORES LTD 4225,02/10/2017,H59620171003UHSNQLFIE-1,16.00,REDRUTH ROAD-RESIDENTS PERSONAL EXPENSES-AL,GROCERY STORES AND SUPERMARKETS,GPC
WALSALL COUNCIL,HTTP://OPENDATACOMMUNITIES.ORG/ID/METROPOLITAN-DISTRICT-COUNCIL/WALSALL,31/12/2017,CHILDRENS SERVICES,W M MORRISON PLC,02/10/2017,H59620171003UHVHFBSFM-1,1.00,"43A HILTON ROAD, WILLENHALL-FOOD AND BEVERAGES-PROVISIONS",GROCERY STORES AND SUPERMARKETS,GPC
WALSALL COUNCIL,HTTP://OPENDATACOMMUNITIES.ORG/ID/METROPOLITAN-DISTRICT-COUNCIL/WALSALL,31/12/2017,CHILDRENS SERVICES,WWW.ARGOS.CO.UK,02/10/2017,H59620171003UWBSPWQHH-1,3.95,LOCALITY FAMILY SUPPORT-WEST-CARRIAGE-IN,DISCOUNT STORES,GPC
WALSALL COUNCIL,HTTP://OPENDATACOMMUNITIES.ORG/ID/METROPOLITAN-DISTRICT-COUNCIL/WALSALL,31/12/2017,CHILDRENS SERVICES,WWW.ARGOS.CO.UK,02/10/2017,H59620171003UWBSPWQHH-2,44.99,LOCALITY FAMILY SUPPORT-WEST-NEW-FURNITURE & EQUIPMENT,DISCOUNT STORES,GPC
WALSALL COUNCIL,HTTP://OPENDATACOMMUNITIES.ORG/ID/METROPOLITAN-DISTRICT-COUNCIL/WALSALL,31/12/2017,ECONOMY & ENVIRONMENT,BIRMINGHAM COUNTY FA,02/10/2017,H59620171003VCPCXYHQV-1,165.00,YEI ESF FUNDING-PROFESSIONAL FEES AND SERVICES,"ASSOCIATIONS-CIVIC, SOCIAL, AND FRATERNAL",GPC
WALSALL COUNCIL,HTTP://OPENDATACOMMUNITIES.ORG/ID/METROPOLITAN-DISTRICT-COUNCIL/WALSALL,31/12/2017,ECONOMY & ENVIRONMENT,BIRMINGHAM COUNTY FA,02/10/2017,H59620171003VCPCXYHQV-2,165.00,YEI (IMPACT) PROGRAMME-PROFESSIONAL FEES AND SERVICES,"ASSOCIATIONS-CIVIC, SOCIAL, AND FRATERNAL",GPC
WALSALL COUNCIL,HTTP://OPENDATACOMMUNITIES.ORG/ID/METROPOLITAN-DISTRICT-COUNCIL/WALSALL,31/12/2017,CHILDRENS SERVICES,BOURNE VALE RIDING,02/10/2017,H59620171003VVRCTEFRR-1,19.00,"43A HILTON ROAD, WILLENHALL-RESIDENTS PERSONAL EXPENSES-AL","CLUBS COUNTRY CLUBS, MEMBERSHIP",GPC
WALSALL COUNCIL,HTTP://OPENDATACOMMUNITIES.ORG/ID/METROPOLITAN-DISTRICT-COUNCIL/WALSALL,31/12/2017,SOCIAL CARE & INCLUSION,JOHAL DAIRIES LTD,02/10/2017,H59620171003VXJVCYLOX-1,29.72,FALLINGS HEATH-FOOD AND BEVERAGES-PROVISIONS,OTHER NONDURABLE GOODS,GPC
WALSALL COUNCIL,HTTP://OPENDATACOMMUNITIES.ORG/ID/METROPOLITAN-DISTRICT-COUNCIL/WALSALL,31/12/2017,CHANGE & GOVERNANCE,WWW.SCC.COM,02/10/2017,H59620171003WOOQXABWY-1,70.18,RECHARGEABLE EQUIPMENT-COMPUTER EQUIPMENT AND SUPPLIE,"COMPUTERS, COMPUTER PERIPHERAL EQUIPMENT, SOFTWARE",GPC
WALSALL COUNCIL,HTTP://OPENDATACOMMUNITIES.ORG/ID/METROPOLITAN-DISTRICT-COUNCIL/WALSALL,31/12/2017,CHANGE & GOVERNANCE,CRAZY HOUSE FURNITURE,02/10/2017,H59620171003WPWUYHWOY-1,305.00,ACCOMMODATION SERVICES MANAGEM-FURNITURE & EQUIPMENT,MISCELLANEOUS HOUSE FURNISHING SPECIALTY SHOPS,GPC
WALSALL COUNCIL,HTTP://OPENDATACOMMUNITIES.ORG/ID/METROPOLITAN-DISTRICT-COUNCIL/WALSALL,31/12/2017,CHILDRENS SERVICES,WARWICK CASTLE,02/10/2017,H59620171003WTVGPZBGU-1,390.00,PHASE 1 TRIPS & CURRICULUM ENH-GENERAL MATERIALS,TOURIST ATTRACTIONS AND EXHIBITS,GPC
WALSALL COUNCIL,HTTP://OPENDATACOMMUNITIES.ORG/ID/METROPOLITAN-DISTRICT-COUNCIL/WALSALL,31/12/2017,CHANGE & GOVERNANCE,JOHAL DAIRIES LTD,02/10/2017,H59620171003XDHGJVUGU-1,30.02,CA LEIGHSWOOD PRIMARY SCHOOL-MISC DAIRY PRODUCTS-PROVISIONS,OTHER NONDURABLE GOODS,GPC
WALSALL COUNCIL,HTTP://OPENDATACOMMUNITIES.ORG/ID/METROPOLITAN-DISTRICT-COUNCIL/WALSALL,31/12/2017,ECONOMY & ENVIRONMENT,T.MORGAN & SONS (L,02/10/2017,H59620171003XDUXMWBSQ-1,103.20,ARBORETUM-GENERAL MATERIALS,HARDWARE EQUIPMENT AND SUPPLIES,GPC
WALSALL COUNCIL,HTTP://OPENDATACOMMUNITIES.ORG/ID/METROPOLITAN-DISTRICT-COUNCIL/WALSALL,31/12/2017,CHANGE & GOVERNANCE,ARTHUR BRETT CATER,02/10/2017,H59620171003XHMRWGIWP-1,84.83,CA BUSILL JONES PRIMARY SCHOOL-FOOD AND BEVERAGES-PROVISIONS,MISCELLANEOUS FOOD STORES & CONVENIENCE STORES,GPC
WALSALL COUNCIL,HTTP://OPENDATACOMMUNITIES.ORG/ID/METROPOLITAN-DISTRICT-COUNCIL/WALSALL,31/12/2017,CHANGE & GOVERNANCE,JOHAL DAIRIES LTD,02/10/2017,H59620171003XJJJYZEOQ-1,10.29,CA OLD HALL SPECIAL SCHOOL-MISC DAIRY PRODUCTS-PROVISIONS,OTHER NONDURABLE GOODS,GPC
WALSALL COUNCIL,HTTP://OPENDATACOMMUNITIES.ORG/ID/METROPOLITAN-DISTRICT-COUNCIL/WALSALL,31/12/2017,ECONOMY & ENVIRONMENT,WWW.UWBC.CO.UK,02/10/2017,H59620171003XNDWXUSEV-1,25.00,YEI ESF FUNDING-PROFESSIONAL FEES AND SERVICES,SPORTING GOODS STORES,GPC
WALSALL COUNCIL,HTTP://OPENDATACOMMUNITIES.ORG/ID/METROPOLITAN-DISTRICT-COUNCIL/WALSALL,31/12/2017,ECONOMY & ENVIRONMENT,WWW.UWBC.CO.UK,02/10/2017,H59620171003XNDWXUSEV-2,25.00,YEI (IMPACT) PROGRAMME-PROFESSIONAL FEES AND SERVICES,SPORTING GOODS STORES,GPC
WALSALL COUNCIL,HTTP://OPENDATACOMMUNITIES.ORG/ID/METROPOLITAN-DISTRICT-COUNCIL/WALSALL,31/12/2017,CHANGE & GOVERNANCE,ARTHUR BRETT CATER,02/10/2017,H59620171003XOWLSFHGF-1,69.59,CA RUSHALL JMI SCHOOL-FRUIT & VEGETABLES OTHER-PROVI,MISCELLANEOUS FOOD STORES & CONVENIENCE STORES,GPC
WALSALL COUNCIL,HTTP://OPENDATACOMMUNITIES.ORG/ID/METROPOLITAN-DISTRICT-COUNCIL/WALSALL,31/12/2017,CHILDRENS SERVICES,GRO HM PASSPORT OFFICE,02/10/2017,H59620171003XRRFICOFX-1,23.40,SAFEGUARDING & FAMILY SUPPORT-REGISTRAR OF BIRTHS/DEATHS/MAR,GOVERNMENT SERVICES,GPC
WALSALL COUNCIL,HTTP://OPENDATACOMMUNITIES.ORG/ID/METROPOLITAN-DISTRICT-COUNCIL/WALSALL,31/12/2017,CHANGE & GOVERNANCE,CRAZY HOUSE FURNITURE,02/10/2017,H59620171003YDNUZTDAZ-1,280.00,WALSALL CRISIS SUPPORT SCHEME-FURNITURE & EQUIPMENT,MISCELLANEOUS HOUSE FURNISHING SPECIALTY SHOPS,GPC
WALSALL COUNCIL,HTTP://OPENDATACOMMUNITIES.ORG/ID/METROPOLITAN-DISTRICT-COUNCIL/WALSALL,31/12/2017,CHANGE & GOVERNANCE,BORSHCH LIMITED,02/10/2017,H59620171003YLVVLHVUP-1,485.00,ACCOMMODATION SERVICES MANAGEM-FURNITURE & EQUIPMENT,HOUSEHOLD APPLIANCE STORES,GPC
WALSALL COUNCIL,HTTP://OPENDATACOMMUNITIES.ORG/ID/METROPOLITAN-DISTRICT-COUNCIL/WALSALL,31/12/2017,ECONOMY & ENVIRONMENT,AMAZON UK RETAIL,02/10/2017,H59620171003YOHCFVYCZ-1,7.48,EDUCATION INFORMAL-GENERAL MATERIALS,OTHER DIRECT MARKETING-OTHER DIRECT MARKETERS,GPC
WALSALL COUNCIL,HTTP://OPENDATACOMMUNITIES.ORG/ID/METROPOLITAN-DISTRICT-COUNCIL/WALSALL,31/12/2017,CHILDRENS SERVICES,W M MORRISONS.COM,02/10/2017,H59620171003YQTPDRQIE-1,15.06,BLUEBELLS-FOOD AND BEVERAGES-PROVISIONS,GROCERY STORES AND SUPERMARKETS,GPC
WALSALL COUNCIL,HTTP://OPENDATACOMMUNITIES.ORG/ID/METROPOLITAN-DISTRICT-COUNCIL/WALSALL,31/12/2017,CHILDRENS SERVICES,W M MORRISONS.COM,02/10/2017,H59620171003YQTPDRQIE-2,60.97,BLUEBELLS-FOOD AND BEVERAGES-PROVISIONS,GROCERY STORES AND SUPERMARKETS,GPC
WALSALL COUNCIL,HTTP://OPENDATACOMMUNITIES.ORG/ID/METROPOLITAN-DISTRICT-COUNCIL/WALSALL,31/12/2017,CHILDRENS SERVICES,DIAMOND RUGS & CAR,02/10/2017,H59620171003YSOMKGQYL-1,470.00,SAFEGUARDING & FAMILY SUPPORT-SECTION 1/17CHILD CARE ACT 198,FLOOR COVERING STORES,GPC
WALSALL COUNCIL,HTTP://OPENDATACOMMUNITIES.ORG/ID/METROPOLITAN-DISTRICT-COUNCIL/WALSALL,31/12/2017,CHANGE & GOVERNANCE,CRAZY HOUSE FURNITURE,02/10/2017,H59620171003ZDSJODESX-1,150.00,WALSALL CRISIS SUPPORT SCHEME-CRISIS SUPPORT PAYMENTS,MISCELLANEOUS HOUSE FURNISHING SPECIALTY SHOPS,GPC
WALSALL COUNCIL,HTTP://OPENDATACOMMUNITIES.ORG/ID/METROPOLITAN-DISTRICT-COUNCIL/WALSALL,31/12/2017,CHANGE & GOVERNANCE,BLAKEMORE FOODSERVICE,03/10/2017,H59620171004AGXZPLSWJ-1,77.26,CA LEIGHSWOOD PRIMARY SCHOOL-DRY FOODS-PROVISIONS,CATERERS,GPC
WALSALL COUNCIL,HTTP://OPENDATACOMMUNITIES.ORG/ID/METROPOLITAN-DISTRICT-COUNCIL/WALSALL,31/12/2017,CHANGE & GOVERNANCE,BLAKEMORE FOODSERVICE,03/10/2017,H59620171004AGXZPLSWJ-2,143.37,CA LEIGHSWOOD PRIMARY SCHOOL-DRY FOODS-PROVISIONS,CATERERS,GPC
WALSALL COUNCIL,HTTP://OPENDATACOMMUNITIES.ORG/ID/METROPOLITAN-DISTRICT-COUNCIL/WALSALL,31/12/2017,CHANGE & GOVERNANCE,WELSH BROS FOODS LTD,03/10/2017,H59620171004ALLXSTQYU-1,31.35,CA COOPER JORDAN CE PRIMARY SC-MEAT-PROVISIONS,FREEZER AND LOCKER MEAT PROVISIONERS,GPC
WALSALL COUNCIL,HTTP://OPENDATACOMMUNITIES.ORG/ID/METROPOLITAN-DISTRICT-COUNCIL/WALSALL,31/12/2017,ECONOMY & ENVIRONMENT,BANNER GROUP LTD,03/10/2017,H59620171004AWGGYMQZH-1,8.52,ESF - COMMUNITY GRANTS-STATIONERY & GENERAL SUPPLIES-,"OFFICE, SCHOOL SUPPLY, AND STATIONERY STORES",GPC
WALSALL COUNCIL,HTTP://OPENDATACOMMUNITIES.ORG/ID/METROPOLITAN-DISTRICT-COUNCIL/WALSALL,31/12/2017,SOCIAL CARE & INCLUSION,ASDA HOME SHOPPING,03/10/2017,H59620171004AXUGRKEIE-1,19.62,FALLINGS HEATH-FOOD AND BEVERAGES-PROVISIONS,GROCERY STORES AND SUPERMARKETS,GPC
WALSALL COUNCIL,HTTP://OPENDATACOMMUNITIES.ORG/ID/METROPOLITAN-DISTRICT-COUNCIL/WALSALL,31/12/2017,SOCIAL CARE & INCLUSION,ASDA HOME SHOPPING,03/10/2017,H59620171004AXUGRKEIE-2,55.71,FALLINGS HEATH-FOOD AND BEVERAGES-PROVISIONS,GROCERY STORES AND SUPERMARKETS,GPC
WALSALL COUNCIL,HTTP://OPENDATACOMMUNITIES.ORG/ID/METROPOLITAN-DISTRICT-COUNCIL/WALSALL,31/12/2017,ECONOMY & ENVIRONMENT,TESCO STORES 6161,03/10/2017,H59620171004BGPYQUFIS-1,10.00,YEI ESF FUNDING-PROFESSIONAL FEES AND SERVICES,GROCERY STORES AND SUPERMARKETS,GPC
WALSALL COUNCIL,HTTP://OPENDATACOMMUNITIES.ORG/ID/METROPOLITAN-DISTRICT-COUNCIL/WALSALL,31/12/2017,ECONOMY & ENVIRONMENT,TESCO STORES 6161,03/10/2017,H59620171004BGPYQUFIS-2,10.00,YEI (IMPACT) PROGRAMME-PROFESSIONAL FEES AND SERVICES,GROCERY STORES AND SUPERMARKETS,GPC
WALSALL COUNCIL,HTTP://OPENDATACOMMUNITIES.ORG/ID/METROPOLITAN-DISTRICT-COUNCIL/WALSALL,31/12/2017,CHANGE & GOVERNANCE,TESCO STORES 6161,03/10/2017,H59620171004BHIQTEFHB-1,2.25,ACCOMMODATION SERVICES MANAGEM-FOOD AND BEVERAGES-PROVISIONS,GROCERY STORES AND SUPERMARKETS,GPC
WALSALL COUNCIL,HTTP://OPENDATACOMMUNITIES.ORG/ID/METROPOLITAN-DISTRICT-COUNCIL/WALSALL,31/12/2017,ECONOMY & ENVIRONMENT,WWW.LEWIS-PLAST.CO.UK,03/10/2017,H59620171004BNVAIJLTW-1,31.00,CENTRALISED STATIONARY-MEDICAL REQUISITES-MATERIALS,DENTAL/LABORATORY/MEDICAL EQUIPMENT & SUPPLIES,GPC
WALSALL COUNCIL,HTTP://OPENDATACOMMUNITIES.ORG/ID/METROPOLITAN-DISTRICT-COUNCIL/WALSALL,31/12/2017,ECONOMY & ENVIRONMENT,TOOLSTATION LTD,03/10/2017,H59620171004BOSULCMTJ-1,22.27,INFRASTRUCTURE MAINTENANCE-GENERAL MATERIALS,HARDWARE STORES,GPC
WALSALL COUNCIL,HTTP://OPENDATACOMMUNITIES.ORG/ID/METROPOLITAN-DISTRICT-COUNCIL/WALSALL,31/12/2017,ECONOMY & ENVIRONMENT,TESCO STORES 6161,03/10/2017,H59620171004BSGQLRPUD-1,10.00,YEI ESF FUNDING-PROFESSIONAL FEES AND SERVICES,GROCERY STORES AND SUPERMARKETS,GPC
WALSALL COUNCIL,HTTP://OPENDATACOMMUNITIES.ORG/ID/METROPOLITAN-DISTRICT-COUNCIL/WALSALL,31/12/2017,ECONOMY & ENVIRONMENT,TESCO STORES 6161,03/10/2017,H59620171004BSGQLRPUD-2,10.00,YEI (IMPACT) PROGRAMME-PROFESSIONAL FEES AND SERVICES,GROCERY STORES AND SUPERMARKETS,GPC
WALSALL COUNCIL,HTTP://OPENDATACOMMUNITIES.ORG/ID/METROPOLITAN-DISTRICT-COUNCIL/WALSALL,31/12/2017,CHILDRENS SERVICES,LIDL UK,03/10/2017,H59620171004CJEXLWQDN-1,43.99,SPINDLETREE-FOOD AND BEVERAGES-PROVISIONS,GROCERY STORES AND SUPERMARKETS,GPC
WALSALL COUNCIL,HTTP://OPENDATACOMMUNITIES.ORG/ID/METROPOLITAN-DISTRICT-COUNCIL/WALSALL,31/12/2017,CHILDRENS SERVICES,LIDL UK,03/10/2017,H59620171004CJEXLWQDN-2,8.84,SPINDLETREE-FOOD AND BEVERAGES-PROVISIONS,GROCERY STORES AND SUPERMARKETS,GPC
WALSALL COUNCIL,HTTP://OPENDATACOMMUNITIES.ORG/ID/METROPOLITAN-DISTRICT-COUNCIL/WALSALL,31/12/2017,CHANGE & GOVERNANCE,BLAKEMORE FOODSERVICE,03/10/2017,H59620171004CLHPMKBAX-1,427.25,CA ST JOHNS C.E. PRIMARY SCHOO-FROZEN FOODS-PROVISIONS,CATERERS,GPC
WALSALL COUNCIL,HTTP://OPENDATACOMMUNITIES.ORG/ID/METROPOLITAN-DISTRICT-COUNCIL/WALSALL,31/12/2017,CHANGE & GOVERNANCE,BLAKEMORE FOODSERVICE,03/10/2017,H59620171004CLUQJOMWW-1,230.46,CA COOPER JORDAN CE PRIMARY SC-CATERING,CATERERS,GPC
WALSALL COUNCIL,HTTP://OPENDATACOMMUNITIES.ORG/ID/METROPOLITAN-DISTRICT-COUNCIL/WALSALL,31/12/2017,CHANGE & GOVERNANCE,BLAKEMORE FOODSERVICE,03/10/2017,H59620171004CLUQJOMWW-2,82.13,CA COOPER JORDAN CE PRIMARY SC-CATERING,CATERERS,GPC
WALSALL COUNCIL,HTTP://OPENDATACOMMUNITIES.ORG/ID/METROPOLITAN-DISTRICT-COUNCIL/WALSALL,31/12/2017,CHANGE & GOVERNANCE,METRO INNS WALSALL,03/10/2017,H59620171004CMSLURBJT-1,283.00,YOUNG PERSONS HOMELESS SERVICE-HOUSING PREVENTION ALLOWANCES-,"HOTELS, MOTELS, RESORTS",GPC
WALSALL COUNCIL,HTTP://OPENDATACOMMUNITIES.ORG/ID/METROPOLITAN-DISTRICT-COUNCIL/WALSALL,31/12/2017,ECONOMY & ENVIRONMENT,LUL TICKET MACHINE,03/10/2017,H59620171004DHDWVRWLT-1,50.00,NEW ART GALLERY - ADMIN-OFFICER/STAFF-PUBLIC TRANSPORT,PASSENGER RAILWAYS,GPC
WALSALL COUNCIL,HTTP://OPENDATACOMMUNITIES.ORG/ID/METROPOLITAN-DISTRICT-COUNCIL/WALSALL,31/12/2017,CHILDRENS SERVICES,WM MORRISON FOOD.COM,03/10/2017,H59620171004DTTOXLPWH-1,9.30,REDRUTH ROAD-FOOD AND BEVERAGES-PROVISIONS,GROCERY STORES AND SUPERMARKETS,GPC
WALSALL COUNCIL,HTTP://OPENDATACOMMUNITIES.ORG/ID/METROPOLITAN-DISTRICT-COUNCIL/WALSALL,31/12/2017,CHILDRENS SERVICES,WM MORRISON FOOD.COM,03/10/2017,H59620171004DTTOXLPWH-2,71.45,REDRUTH ROAD-FOOD AND BEVERAGES-PROVISIONS,GROCERY STORES AND SUPERMARKETS,GPC
WALSALL COUNCIL,HTTP://OPENDATACOMMUNITIES.ORG/ID/METROPOLITAN-DISTRICT-COUNCIL/WALSALL,31/12/2017,CHANGE & GOVERNANCE,BLAKEMORE FOODSERVICE,03/10/2017,H59620171004DUNUDQUVO-1,199.35,CA BARCROFT D/C-FROZEN FOODS-PROVISIONS,CATERERS,GPC
WALSALL COUNCIL,HTTP://OPENDATACOMMUNITIES.ORG/ID/METROPOLITAN-DISTRICT-COUNCIL/WALSALL,31/12/2017,CHILDRENS SERVICES,ASDA GEORGE COM LEEDS,03/10/2017,H59620171004EEODJEKVU-1,59.50,EARLY YEARS DEPARTMENT-GENERAL MATERIALS,GROCERY STORES AND SUPERMARKETS,GPC
WALSALL COUNCIL,HTTP://OPENDATACOMMUNITIES.ORG/ID/METROPOLITAN-DISTRICT-COUNCIL/WALSALL,31/12/2017,ECONOMY & ENVIRONMENT,TESCO STORES 6161,03/10/2017,H59620171004EFVCNXJJS-1,10.00,YEI ESF FUNDING-PROFESSIONAL FEES AND SERVICES,GROCERY STORES AND SUPERMARKETS,GPC
WALSALL COUNCIL,HTTP://OPENDATACOMMUNITIES.ORG/ID/METROPOLITAN-DISTRICT-COUNCIL/WALSALL,31/12/2017,ECONOMY & ENVIRONMENT,TESCO STORES 6161,03/10/2017,H59620171004EFVCNXJJS-2,10.00,YEI (IMPACT) PROGRAMME-PROFESSIONAL FEES AND SERVICES,GROCERY STORES AND SUPERMARKETS,GPC
WALSALL COUNCIL,HTTP://OPENDATACOMMUNITIES.ORG/ID/METROPOLITAN-DISTRICT-COUNCIL/WALSALL,31/12/2017,ECONOMY & ENVIRONMENT,TRAINLINE,03/10/2017,H59620171004FQHGMFUNN-1,46.36,NEW ART GALLERY - ADMIN-OFFICER/STAFF-PUBLIC TRANSPORT,PASSENGER RAILWAYS,GPC
WALSALL COUNCIL,HTTP://OPENDATACOMMUNITIES.ORG/ID/METROPOLITAN-DISTRICT-COUNCIL/WALSALL,31/12/2017,CHANGE & GOVERNANCE,BULL DOG APPLIANCES LT,03/10/2017,H59620171004FQYOMRTDJ-1,35.00,TENANCY SERVICE-FURNITURE & EQUIPMENT,HOUSEHOLD APPLIANCE STORES,GPC
WALSALL COUNCIL,HTTP://OPENDATACOMMUNITIES.ORG/ID/METROPOLITAN-DISTRICT-COUNCIL/WALSALL,31/12/2017,CHANGE & GOVERNANCE,BLAKEMORE FOODSERVICE,03/10/2017,H59620171004FWDORBTOP-1,6.20,CA ST JOHNS C.E. PRIMARY SCHOO-DRY FOODS-PROVISIONS,CATERERS,GPC
WALSALL COUNCIL,HTTP://OPENDATACOMMUNITIES.ORG/ID/METROPOLITAN-DISTRICT-COUNCIL/WALSALL,31/12/2017,CHANGE & GOVERNANCE,BLAKEMORE FOODSERVICE,03/10/2017,H59620171004FWEREQFCL-1,130.59,CA CASTLEFORT JMI SCHOOL-DRY FOODS-PROVISIONS,CATERERS,GPC
WALSALL COUNCIL,HTTP://OPENDATACOMMUNITIES.ORG/ID/METROPOLITAN-DISTRICT-COUNCIL/WALSALL,31/12/2017,CHANGE & GOVERNANCE,BLAKEMORE FOODSERVICE,03/10/2017,H59620171004GBCDYJBYS-1,14.22,TOWN HALL RESTAURANT BISTRO-DRY FOODS-PROVISIONS,CATERERS,GPC
WALSALL COUNCIL,HTTP://OPENDATACOMMUNITIES.ORG/ID/METROPOLITAN-DISTRICT-COUNCIL/WALSALL,31/12/2017,CHANGE & GOVERNANCE,BLAKEMORE FOODSERVICE,03/10/2017,H59620171004GBCDYJBYS-2,564.45,TOWN HALL RESTAURANT BISTRO-DRY FOODS-PROVISIONS,CATERERS,GPC
WALSALL COUNCIL,HTTP://OPENDATACOMMUNITIES.ORG/ID/METROPOLITAN-DISTRICT-COUNCIL/WALSALL,31/12/2017,ECONOMY & ENVIRONMENT,BANNER GROUP LTD,03/10/2017,H59620171004GCEVYLTVU-1,57.72,CENTRALISED STATIONARY-STATIONERY & GENERAL SUPPLIES-,"OFFICE, SCHOOL SUPPLY, AND STATIONERY STORES",GPC
WALSALL COUNCIL,HTTP://OPENDATACOMMUNITIES.ORG/ID/METROPOLITAN-DISTRICT-COUNCIL/WALSALL,31/12/2017,ECONOMY & ENVIRONMENT,TOOLSTATION LTD,03/10/2017,H59620171004GCFDDMUWO-1,4.45,INFRASTRUCTURE MAINTENANCE-GENERAL MATERIALS,HARDWARE STORES,GPC
WALSALL COUNCIL,HTTP://OPENDATACOMMUNITIES.ORG/ID/METROPOLITAN-DISTRICT-COUNCIL/WALSALL,31/12/2017,ECONOMY & ENVIRONMENT,TESCO STORES 6161,03/10/2017,H59620171004HXUDRPKYH-1,10.00,YEI ESF FUNDING-PROFESSIONAL FEES AND SERVICES,GROCERY STORES AND SUPERMARKETS,GPC
WALSALL COUNCIL,HTTP://OPENDATACOMMUNITIES.ORG/ID/METROPOLITAN-DISTRICT-COUNCIL/WALSALL,31/12/2017,ECONOMY & ENVIRONMENT,TESCO STORES 6161,03/10/2017,H59620171004HXUDRPKYH-2,10.00,YEI (IMPACT) PROGRAMME-PROFESSIONAL FEES AND SERVICES,GROCERY STORES AND SUPERMARKETS,GPC
WALSALL COUNCIL,HTTP://OPENDATACOMMUNITIES.ORG/ID/METROPOLITAN-DISTRICT-COUNCIL/WALSALL,31/12/2017,ECONOMY & ENVIRONMENT,HIRE EDUCATION LIMITED,03/10/2017,H59620171004IDNEOPUPO-1,37.20,SCHOOL LIBRARY SUPPORT-GENERAL MATERIALS,OTHER SCHOOLS AND EDUCATIONAL SERVICES,GPC
WALSALL COUNCIL,HTTP://OPENDATACOMMUNITIES.ORG/ID/METROPOLITAN-DISTRICT-COUNCIL/WALSALL,31/12/2017,CHILDRENS SERVICES,WWW.CATER4YOU.CO.UK,03/10/2017,H59620171004IDRQIPCCI-1,70.02,D & T-GENERAL MATERIALS,CATERERS,GPC
WALSALL COUNCIL,HTTP://OPENDATACOMMUNITIES.ORG/ID/METROPOLITAN-DISTRICT-COUNCIL/WALSALL,31/12/2017,CHANGE & GOVERNANCE,WELSH BROS FOODS LTD,03/10/2017,H59620171004ISFZUJMLW-1,73.80,TOWN HALL RESTAURANT BISTRO-MEAT-PROVISIONS,FREEZER AND LOCKER MEAT PROVISIONERS,GPC
WALSALL COUNCIL,HTTP://OPENDATACOMMUNITIES.ORG/ID/METROPOLITAN-DISTRICT-COUNCIL/WALSALL,31/12/2017,ECONOMY & ENVIRONMENT,WWW.LEWIS-PLAST.CO.UK,03/10/2017,H59620171004JJXYZQSEJ-1,-0.84,CENTRALISED STATIONARY-MEDICAL REQUISITES-MATERIALS,DENTAL/LABORATORY/MEDICAL EQUIPMENT & SUPPLIES,GPC
WALSALL COUNCIL,HTTP://OPENDATACOMMUNITIES.ORG/ID/METROPOLITAN-DISTRICT-COUNCIL/WALSALL,31/12/2017,CHANGE & GOVERNANCE,WELSH BROS FOODS LTD,03/10/2017,H59620171004JNGJJHDHA-1,67.61,CA CASTLEFORT JMI SCHOOL-MEAT-PROVISIONS,FREEZER AND LOCKER MEAT PROVISIONERS,GPC
WALSALL COUNCIL,HTTP://OPENDATACOMMUNITIES.ORG/ID/METROPOLITAN-DISTRICT-COUNCIL/WALSALL,31/12/2017,CHANGE & GOVERNANCE,BLAKEMORE FOODSERVICE,03/10/2017,H59620171004JVRDSONBE-1,8.33,CA MOORCROFT WOOD-FROZEN FOODS-PROVISIONS,CATERERS,GPC
WALSALL COUNCIL,HTTP://OPENDATACOMMUNITIES.ORG/ID/METROPOLITAN-DISTRICT-COUNCIL/WALSALL,31/12/2017,CHANGE & GOVERNANCE,BLAKEMORE FOODSERVICE,03/10/2017,H59620171004JVRDSONBE-2,98.97,CA MOORCROFT WOOD-FROZEN FOODS-PROVISIONS,CATERERS,GPC
WALSALL COUNCIL,HTTP://OPENDATACOMMUNITIES.ORG/ID/METROPOLITAN-DISTRICT-COUNCIL/WALSALL,31/12/2017,SOCIAL CARE & INCLUSION,ASDA HOME SHOPPING,03/10/2017,H59620171004JYIORJKTC-1,-9.18,FALLINGS HEATH-FOOD AND BEVERAGES-PROVISIONS,GROCERY STORES AND SUPERMARKETS,GPC
WALSALL COUNCIL,HTTP://OPENDATACOMMUNITIES.ORG/ID/METROPOLITAN-DISTRICT-COUNCIL/WALSALL,31/12/2017,ECONOMY & ENVIRONMENT,TESCO DIRECT,03/10/2017,H59620171004KBNQEJGKJ-1,17.00,YEI ESF FUNDING-PROFESSIONAL FEES AND SERVICES,MISCELLANEOUS AND SPECIALTY RETAIL STORES,GPC
WALSALL COUNCIL,HTTP://OPENDATACOMMUNITIES.ORG/ID/METROPOLITAN-DISTRICT-COUNCIL/WALSALL,31/12/2017,ECONOMY & ENVIRONMENT,TESCO DIRECT,03/10/2017,H59620171004KBNQEJGKJ-2,17.00,YEI (IMPACT) PROGRAMME-PROFESSIONAL FEES AND SERVICES,MISCELLANEOUS AND SPECIALTY RETAIL STORES,GPC
WALSALL COUNCIL,HTTP://OPENDATACOMMUNITIES.ORG/ID/METROPOLITAN-DISTRICT-COUNCIL/WALSALL,31/12/2017,ECONOMY & ENVIRONMENT,TRAVEL WEST MIDLAN,03/10/2017,H59620171004KBWLHNWEX-1,110.00,YEI ESF FUNDING-PROFESSIONAL FEES AND SERVICES,BUS LINES,GPC
WALSALL COUNCIL,HTTP://OPENDATACOMMUNITIES.ORG/ID/METROPOLITAN-DISTRICT-COUNCIL/WALSALL,31/12/2017,ECONOMY & ENVIRONMENT,TRAVEL WEST MIDLAN,03/10/2017,H59620171004KBWLHNWEX-2,110.00,YEI (IMPACT) PROGRAMME-PROFESSIONAL FEES AND SERVICES,BUS LINES,GPC
WALSALL COUNCIL,HTTP://OPENDATACOMMUNITIES.ORG/ID/METROPOLITAN-DISTRICT-COUNCIL/WALSALL,31/12/2017,CHANGE & GOVERNANCE,BLAKEMORE FOODSERVICE,03/10/2017,H59620171004KEGIUOGQX-1,254.24,CA FIBBERSLEY PARK PRIMARY SCH-FROZEN FOODS-PROVISIONS,CATERERS,GPC
WALSALL COUNCIL,HTTP://OPENDATACOMMUNITIES.ORG/ID/METROPOLITAN-DISTRICT-COUNCIL/WALSALL,31/12/2017,CHANGE & GOVERNANCE,BLAKEMORE FOODSERVICE,03/10/2017,H59620171004KEGIUOGQX-2,24.98,CA FIBBERSLEY PARK PRIMARY SCH-FROZEN FOODS-PROVISIONS,CATERERS,GPC
WALSALL COUNCIL,HTTP://OPENDATACOMMUNITIES.ORG/ID/METROPOLITAN-DISTRICT-COUNCIL/WALSALL,31/12/2017,CHILDRENS SERVICES,WM MORRISON FOOD.COM,03/10/2017,H59620171004KISEHQNRG-1,31.56,FOOD TECHNOLOGY-GENERAL MATERIALS,GROCERY STORES AND SUPERMARKETS,GPC
WALSALL COUNCIL,HTTP://OPENDATACOMMUNITIES.ORG/ID/METROPOLITAN-DISTRICT-COUNCIL/WALSALL,31/12/2017,CHILDRENS SERVICES,WM MORRISON FOOD.COM,03/10/2017,H59620171004KISEHQNRG-2,67.53,FOOD TECHNOLOGY-GENERAL MATERIALS,GROCERY STORES AND SUPERMARKETS,GPC
WALSALL COUNCIL,HTTP://OPENDATACOMMUNITIES.ORG/ID/METROPOLITAN-DISTRICT-COUNCIL/WALSALL,31/12/2017,ECONOMY & ENVIRONMENT,BANNER GROUP LTD,03/10/2017,H59620171004KLVIAIGOX-1,225.85,OAK PARK-STATIONERY & GENERAL SUPPLIES-,"OFFICE, SCHOOL SUPPLY, AND STATIONERY STORES",GPC
WALSALL COUNCIL,HTTP://OPENDATACOMMUNITIES.ORG/ID/METROPOLITAN-DISTRICT-COUNCIL/WALSALL,31/12/2017,ECONOMY & ENVIRONMENT,SECPRINT LIMITED,03/10/2017,H59620171004KPVLXEETO-1,126.00,WALSALL TOWN HALL-STATIONERY & GENERAL SUPPLIES-,"OFFICE, SCHOOL SUPPLY, AND STATIONERY STORES",GPC
WALSALL COUNCIL,HTTP://OPENDATACOMMUNITIES.ORG/ID/METROPOLITAN-DISTRICT-COUNCIL/WALSALL,31/12/2017,CHANGE & GOVERNANCE,BLAKEMORE FOODSERVICE,03/10/2017,H59620171004KUYQBPNHH-1,314.01,CA LEIGHSWOOD PRIMARY SCHOOL-CATERING,CATERERS,GPC
WALSALL COUNCIL,HTTP://OPENDATACOMMUNITIES.ORG/ID/METROPOLITAN-DISTRICT-COUNCIL/WALSALL,31/12/2017,CHANGE & GOVERNANCE,BLAKEMORE FOODSERVICE,03/10/2017,H59620171004LFMOWAZGH-1,299.63,CA BIRCHILLS CE PRIMARY COMMUN-FROZEN FOODS-PROVISIONS,CATERERS,GPC
WALSALL COUNCIL,HTTP://OPENDATACOMMUNITIES.ORG/ID/METROPOLITAN-DISTRICT-COUNCIL/WALSALL,31/12/2017,CHANGE & GOVERNANCE,BLAKEMORE FOODSERVICE,03/10/2017,H59620171004LFQXRMPOX-1,78.11,CA BIRCHILLS CE PRIMARY COMMUN-FROZEN FOODS-PROVISIONS,CATERERS,GPC
WALSALL COUNCIL,HTTP://OPENDATACOMMUNITIES.ORG/ID/METROPOLITAN-DISTRICT-COUNCIL/WALSALL,31/12/2017,CHANGE & GOVERNANCE,BLAKEMORE FOODSERVICE,03/10/2017,H59620171004LIHRBFKJK-1,182.67,CA ST MICHAELS C.E. PRIMARY SC-DRY FOODS-PROVISIONS,CATERERS,GPC
WALSALL COUNCIL,HTTP://OPENDATACOMMUNITIES.ORG/ID/METROPOLITAN-DISTRICT-COUNCIL/WALSALL,31/12/2017,CHANGE & GOVERNANCE,BLAKEMORE FOODSERVICE,03/10/2017,H59620171004LIHRBFKJK-2,84.56,CA ST MICHAELS C.E. PRIMARY SC-DRY FOODS-PROVISIONS,CATERERS,GPC
WALSALL COUNCIL,HTTP://OPENDATACOMMUNITIES.ORG/ID/METROPOLITAN-DISTRICT-COUNCIL/WALSALL,31/12/2017,CHANGE & GOVERNANCE,BLAKEMORE FOODSERVICE,03/10/2017,H59620171004LKABVFJJL-1,401.83,CA BEACON PRIMARY SCHOOL-FROZEN FOODS-PROVISIONS,CATERERS,GPC
WALSALL COUNCIL,HTTP://OPENDATACOMMUNITIES.ORG/ID/METROPOLITAN-DISTRICT-COUNCIL/WALSALL,31/12/2017,CHANGE & GOVERNANCE,BULL DOG APPLIANCES LT,03/10/2017,H59620171004LNXDWWGVS-1,55.00,TENANCY SERVICE-FURNITURE & EQUIPMENT,HOUSEHOLD APPLIANCE STORES,GPC
WALSALL COUNCIL,HTTP://OPENDATACOMMUNITIES.ORG/ID/METROPOLITAN-DISTRICT-COUNCIL/WALSALL,31/12/2017,CHANGE & GOVERNANCE,BLAKEMORE FOODSERVICE,03/10/2017,H59620171004LYTORFWEV-1,307.28,CA LINDENS PRIMARY SCHOOL-DRY FOODS-PROVISIONS,CATERERS,GPC
WALSALL COUNCIL,HTTP://OPENDATACOMMUNITIES.ORG/ID/METROPOLITAN-DISTRICT-COUNCIL/WALSALL,31/12/2017,CHILDRENS SERVICES,AQUAID FRANCHISING LTD,03/10/2017,H59620171004MWEHXHOVI-1,375.60,PELSALL EDC-STAFF MINERAL WATER-EQUIPMENT,OTHER BUSINESS SERVICES,GPC
WALSALL COUNCIL,HTTP://OPENDATACOMMUNITIES.ORG/ID/METROPOLITAN-DISTRICT-COUNCIL/WALSALL,31/12/2017,CHILDRENS SERVICES,TRAINLINE,03/10/2017,H59620171004NCKHTCWQH-1,19.63,PERFORMANCE & OUTCOMES TEAM (C-TRAVEL ALLOWANCE-ALLOWANCES TO,PASSENGER RAILWAYS,GPC
WALSALL COUNCIL,HTTP://OPENDATACOMMUNITIES.ORG/ID/METROPOLITAN-DISTRICT-COUNCIL/WALSALL,31/12/2017,CHANGE & GOVERNANCE,ARTHUR BRETT CATER,03/10/2017,H59620171004OCBYYNCBJ-1,63.11,CA BLUE COAT C OF E PERFORMING-FRUIT & VEGETABLES OTHER-PROVI,MISCELLANEOUS FOOD STORES & CONVENIENCE STORES,GPC
WALSALL COUNCIL,HTTP://OPENDATACOMMUNITIES.ORG/ID/METROPOLITAN-DISTRICT-COUNCIL/WALSALL,31/12/2017,CHILDRENS SERVICES,AQUAID FRANCHISING LTD,03/10/2017,H59620171004OKQHMYDPS-1,48.00,NEW LEAF PUPIL REFERAL UNIT-WATER CHARGES-UNMETERED,OTHER BUSINESS SERVICES,GPC
WALSALL COUNCIL,HTTP://OPENDATACOMMUNITIES.ORG/ID/METROPOLITAN-DISTRICT-COUNCIL/WALSALL,31/12/2017,CHANGE & GOVERNANCE,BLAKEMORE FOODSERVICE,03/10/2017,H59620171004OUXDHGLFS-1,215.76,CA RADLEYS PRIMARY SCHOOL-DRY FOODS-PROVISIONS,CATERERS,GPC
WALSALL COUNCIL,HTTP://OPENDATACOMMUNITIES.ORG/ID/METROPOLITAN-DISTRICT-COUNCIL/WALSALL,31/12/2017,CHANGE & GOVERNANCE,BLAKEMORE FOODSERVICE,03/10/2017,H59620171004OUXDHGLFS-2,351.66,CA RADLEYS PRIMARY SCHOOL-DRY FOODS-PROVISIONS,CATERERS,GPC
WALSALL COUNCIL,HTTP://OPENDATACOMMUNITIES.ORG/ID/METROPOLITAN-DISTRICT-COUNCIL/WALSALL,31/12/2017,CHANGE & GOVERNANCE,BCC REGISTER OFFIC,03/10/2017,H59620171004OZXHZEYEW-1,15.00,WALSALL CRISIS SUPPORT SCHEME-CRISIS SUPPORT PAYMENTS,GOVERNMENT SERVICES,GPC
WALSALL COUNCIL,HTTP://OPENDATACOMMUNITIES.ORG/ID/METROPOLITAN-DISTRICT-COUNCIL/WALSALL,31/12/2017,CHILDRENS SERVICES,W M MORRISONS.COM,03/10/2017,H59620171004PANKQAYXH-1,18.84,BIRCHILLS CHILDCARE SERVICES-FOOD AND BEVERAGES-PROVISIONS,GROCERY STORES AND SUPERMARKETS,GPC
WALSALL COUNCIL,HTTP://OPENDATACOMMUNITIES.ORG/ID/METROPOLITAN-DISTRICT-COUNCIL/WALSALL,31/12/2017,CHILDRENS SERVICES,W M MORRISONS.COM,03/10/2017,H59620171004PANKQAYXH-2,86.14,BIRCHILLS CHILDCARE SERVICES-FOOD AND BEVERAGES-PROVISIONS,GROCERY STORES AND SUPERMARKETS,GPC
WALSALL COUNCIL,HTTP://OPENDATACOMMUNITIES.ORG/ID/METROPOLITAN-DISTRICT-COUNCIL/WALSALL,31/12/2017,CHANGE & GOVERNANCE,WELSH BROS FOODS LTD,03/10/2017,H59620171004PDSBEJBHB-1,34.65,CA FIBBERSLEY PARK PRIMARY SCH-MEAT-PROVISIONS,FREEZER AND LOCKER MEAT PROVISIONERS,GPC
WALSALL COUNCIL,HTTP://OPENDATACOMMUNITIES.ORG/ID/METROPOLITAN-DISTRICT-COUNCIL/WALSALL,31/12/2017,CHANGE & GOVERNANCE,BLAKEMORE FOODSERVICE,03/10/2017,H59620171004PHWHWQSTL-1,342.88,CA WATLING STREET PRIMARY SCHO-DRY FOODS-PROVISIONS,CATERERS,GPC
WALSALL COUNCIL,HTTP://OPENDATACOMMUNITIES.ORG/ID/METROPOLITAN-DISTRICT-COUNCIL/WALSALL,31/12/2017,CHANGE & GOVERNANCE,BLAKEMORE FOODSERVICE,03/10/2017,H59620171004PHWHWQSTL-2,56.38,CA WATLING STREET PRIMARY SCHO-DRY FOODS-PROVISIONS,CATERERS,GPC
WALSALL COUNCIL,HTTP://OPENDATACOMMUNITIES.ORG/ID/METROPOLITAN-DISTRICT-COUNCIL/WALSALL,31/12/2017,CHANGE & GOVERNANCE,ARTHUR BRETT CATER,03/10/2017,H59620171004POZXNEKBB-1,41.20,TOWN HALL RESTAURANT BISTRO-FRUIT & VEGETABLES OTHER-PROVI,MISCELLANEOUS FOOD STORES & CONVENIENCE STORES,GPC
WALSALL COUNCIL,HTTP://OPENDATACOMMUNITIES.ORG/ID/METROPOLITAN-DISTRICT-COUNCIL/WALSALL,31/12/2017,CHANGE & GOVERNANCE,BLAKEMORE FOODSERVICE,03/10/2017,H59620171004PQYVBENOX-1,302.37,CA CROFT COMMUNITY PRIMARY SCH-FROZEN FOODS-PROVISIONS,CATERERS,GPC
WALSALL COUNCIL,HTTP://OPENDATACOMMUNITIES.ORG/ID/METROPOLITAN-DISTRICT-COUNCIL/WALSALL,31/12/2017,CHANGE & GOVERNANCE,BLAKEMORE FOODSERVICE,03/10/2017,H59620171004PQYVBENOX-2,8.33,CA CROFT COMMUNITY PRIMARY SCH-FROZEN FOODS-PROVISIONS,CATERERS,GPC
WALSALL COUNCIL,HTTP://OPENDATACOMMUNITIES.ORG/ID/METROPOLITAN-DISTRICT-COUNCIL/WALSALL,31/12/2017,CHILDRENS SERVICES,POUNDSTRETCHER 703,03/10/2017,H59620171004PUEOBOFRV-1,9.99,"43A HILTON ROAD, WILLENHALL-RESIDENTS PERSONAL EXPENSES-AL","DRAPERY, UPHOLSTERY, AND WINDOW COVERINGS STORES",GPC
WALSALL COUNCIL,HTTP://OPENDATACOMMUNITIES.ORG/ID/METROPOLITAN-DISTRICT-COUNCIL/WALSALL,31/12/2017,CHILDRENS SERVICES,BT BILL PAYMENT 2,03/10/2017,H59620171004PYWYEELWD-1,99.13,7 THE LIMES-NEW-FURNITURE & EQUIPMENT,TELECOMMUNICATION EQUIPMENT & SALES,GPC
WALSALL COUNCIL,HTTP://OPENDATACOMMUNITIES.ORG/ID/METROPOLITAN-DISTRICT-COUNCIL/WALSALL,31/12/2017,CHANGE & GOVERNANCE,BORSHCH LIMITED,03/10/2017,H59620171004QBIVEAISP-1,290.00,WALSALL CRISIS SUPPORT SCHEME-FURNITURE & EQUIPMENT,HOUSEHOLD APPLIANCE STORES,GPC
WALSALL COUNCIL,HTTP://OPENDATACOMMUNITIES.ORG/ID/METROPOLITAN-DISTRICT-COUNCIL/WALSALL,31/12/2017,ECONOMY & ENVIRONMENT,SP NATIONWIDE TRAILE,03/10/2017,H59620171004QCTEZPQML-1,80.32,FLEET-GENERAL MATERIALS,"AUTOMOTIVE PARTS, ACCESSORIES STORES",GPC
WALSALL COUNCIL,HTTP://OPENDATACOMMUNITIES.ORG/ID/METROPOLITAN-DISTRICT-COUNCIL/WALSALL,31/12/2017,CHILDRENS SERVICES,GRO HM PASSPORT OFFICE,03/10/2017,H59620171004QIDLOJMZX-1,23.40,SAFEGUARDING & FAMILY SUPPORT-REGISTRAR OF BIRTHS/DEATHS/MAR,GOVERNMENT SERVICES,GPC
WALSALL COUNCIL,HTTP://OPENDATACOMMUNITIES.ORG/ID/METROPOLITAN-DISTRICT-COUNCIL/WALSALL,31/12/2017,CHANGE & GOVERNANCE,BLAKEMORE FOODSERVICE,03/10/2017,H59620171004QNYQFEFCX-1,567.24,CA ST JOHNS C.E. PRIMARY SCHOO-DRY FOODS-PROVISIONS,CATERERS,GPC
WALSALL COUNCIL,HTTP://OPENDATACOMMUNITIES.ORG/ID/METROPOLITAN-DISTRICT-COUNCIL/WALSALL,31/12/2017,CHANGE & GOVERNANCE,BLAKEMORE FOODSERVICE,03/10/2017,H59620171004QOQOSNQTB-1,278.38,CA BUSILL JONES PRIMARY SCHOOL-FROZEN FOODS-PROVISIONS,CATERERS,GPC
WALSALL COUNCIL,HTTP://OPENDATACOMMUNITIES.ORG/ID/METROPOLITAN-DISTRICT-COUNCIL/WALSALL,31/12/2017,ECONOMY & ENVIRONMENT,MULTIPRINT,03/10/2017,H59620171004QQLFTJQKH-1,13.25,YEI ESF FUNDING-PROFESSIONAL FEES AND SERVICES,MISCELLANEOUS PUBLISHING AND PRINTING,GPC
WALSALL COUNCIL,HTTP://OPENDATACOMMUNITIES.ORG/ID/METROPOLITAN-DISTRICT-COUNCIL/WALSALL,31/12/2017,ECONOMY & ENVIRONMENT,MULTIPRINT,03/10/2017,H59620171004QQLFTJQKH-2,13.25,YEI (IMPACT) PROGRAMME-PROFESSIONAL FEES AND SERVICES,MISCELLANEOUS PUBLISHING AND PRINTING,GPC
WALSALL COUNCIL,HTTP://OPENDATACOMMUNITIES.ORG/ID/METROPOLITAN-DISTRICT-COUNCIL/WALSALL,31/12/2017,ECONOMY & ENVIRONMENT,MARKS&SPENCER PLC SACA,03/10/2017,H59620171004QSZSHEQJZ-1,10.49,PHOTOGRAPHY EXHIBITION NO. 2 W-MISC DAIRY PRODUCTS-PROVISIONS,GROCERY STORES AND SUPERMARKETS,GPC
WALSALL COUNCIL,HTTP://OPENDATACOMMUNITIES.ORG/ID/METROPOLITAN-DISTRICT-COUNCIL/WALSALL,31/12/2017,ECONOMY & ENVIRONMENT,TRAINLINE,03/10/2017,H59620171004QTIEOWPDD-1,193.90,POLLUTION DIVISION-OFFICER/STAFF-PUBLIC TRANSPORT,PASSENGER RAILWAYS,GPC
WALSALL COUNCIL,HTTP://OPENDATACOMMUNITIES.ORG/ID/METROPOLITAN-DISTRICT-COUNCIL/WALSALL,31/12/2017,ECONOMY & ENVIRONMENT,TRAVEL WEST MIDLAN,03/10/2017,H59620171004QWOKKENZT-1,110.00,YEI ESF FUNDING-PROFESSIONAL FEES AND SERVICES,BUS LINES,GPC
WALSALL COUNCIL,HTTP://OPENDATACOMMUNITIES.ORG/ID/METROPOLITAN-DISTRICT-COUNCIL/WALSALL,31/12/2017,ECONOMY & ENVIRONMENT,TRAVEL WEST MIDLAN,03/10/2017,H59620171004QWOKKENZT-2,110.00,YEI (IMPACT) PROGRAMME-PROFESSIONAL FEES AND SERVICES,BUS LINES,GPC
WALSALL COUNCIL,HTTP://OPENDATACOMMUNITIES.ORG/ID/METROPOLITAN-DISTRICT-COUNCIL/WALSALL,31/12/2017,CHILDRENS SERVICES,PAYPAL *REVISIONSTA,03/10/2017,H59620171004QXELLJVHV-1,80.00,BUSINESS STUDIES-GENERAL MATERIALS,"SCHOOLS, ELEMENTARY AND SECONDARY",GPC
WALSALL COUNCIL,HTTP://OPENDATACOMMUNITIES.ORG/ID/METROPOLITAN-DISTRICT-COUNCIL/WALSALL,31/12/2017,ECONOMY & ENVIRONMENT,TOOLSTATION LTD,03/10/2017,H59620171004RJKFAVLHV-1,4.45,INFRASTRUCTURE MAINTENANCE-GENERAL MATERIALS,HARDWARE STORES,GPC
WALSALL COUNCIL,HTTP://OPENDATACOMMUNITIES.ORG/ID/METROPOLITAN-DISTRICT-COUNCIL/WALSALL,31/12/2017,CHANGE & GOVERNANCE,WALSALL COUNCIL,03/10/2017,H59620171004RQUSRGMCR-1,20.00,TENANCY SERVICE-MISC FEES AND EXPENSES,GOVERNMENT SERVICES,GPC
WALSALL COUNCIL,HTTP://OPENDATACOMMUNITIES.ORG/ID/METROPOLITAN-DISTRICT-COUNCIL/WALSALL,31/12/2017,CHANGE & GOVERNANCE,BLAKEMORE FOODSERVICE,03/10/2017,H59620171004SBMOMPASP-1,121.93,CA BROWNHILLS WEST PRIMARY SCH-DRY FOODS-PROVISIONS,CATERERS,GPC
WALSALL COUNCIL,HTTP://OPENDATACOMMUNITIES.ORG/ID/METROPOLITAN-DISTRICT-COUNCIL/WALSALL,31/12/2017,CHANGE & GOVERNANCE,BLAKEMORE FOODSERVICE,03/10/2017,H59620171004SBMOMPASP-2,2.15,CA BROWNHILLS WEST PRIMARY SCH-DRY FOODS-PROVISIONS,CATERERS,GPC
WALSALL COUNCIL,HTTP://OPENDATACOMMUNITIES.ORG/ID/METROPOLITAN-DISTRICT-COUNCIL/WALSALL,31/12/2017,ECONOMY & ENVIRONMENT,MARKS&SPENCER PLC SACA,03/10/2017,H59620171004SIEZIHNHK-1,4.50,NAG - ARTISTS RESIDENCIES-GENERAL MATERIALS,GROCERY STORES AND SUPERMARKETS,GPC
WALSALL COUNCIL,HTTP://OPENDATACOMMUNITIES.ORG/ID/METROPOLITAN-DISTRICT-COUNCIL/WALSALL,31/12/2017,CHANGE & GOVERNANCE,BLAKEMORE FOODSERVICE,03/10/2017,H59620171004SSWKSUFIB-1,52.99,CA LINDENS PRIMARY SCHOOL-FROZEN FOODS-PROVISIONS,CATERERS,GPC
WALSALL COUNCIL,HTTP://OPENDATACOMMUNITIES.ORG/ID/METROPOLITAN-DISTRICT-COUNCIL/WALSALL,31/12/2017,CHANGE & GOVERNANCE,BLAKEMORE FOODSERVICE,03/10/2017,H59620171004TBGHMBGNZ-1,2.20,CA ST MICHAELS C.E. PRIMARY SC-DRY FOODS-PROVISIONS,CATERERS,GPC
WALSALL COUNCIL,HTTP://OPENDATACOMMUNITIES.ORG/ID/METROPOLITAN-DISTRICT-COUNCIL/WALSALL,31/12/2017,ECONOMY & ENVIRONMENT,TOOLSTATION LTD,03/10/2017,H59620171004TFTQHPSIR-1,129.80,DEPOT-GENERAL MATERIALS,HARDWARE STORES,GPC
WALSALL COUNCIL,HTTP://OPENDATACOMMUNITIES.ORG/ID/METROPOLITAN-DISTRICT-COUNCIL/WALSALL,31/12/2017,CHANGE & GOVERNANCE,BLAKEMORE FOODSERVICE,03/10/2017,H59620171004TLBSGUVQO-1,-429.88,TOWN HALL RESTAURANT BISTRO-DRY FOODS-PROVISIONS,CATERERS,GPC
WALSALL COUNCIL,HTTP://OPENDATACOMMUNITIES.ORG/ID/METROPOLITAN-DISTRICT-COUNCIL/WALSALL,31/12/2017,CHANGE & GOVERNANCE,WELSH BROS FOODS LTD,03/10/2017,H59620171004TNACKYEJB-1,66.10,CA TOWN HALL RESTAURANT - CATE-MEAT-PROVISIONS,FREEZER AND LOCKER MEAT PROVISIONERS,GPC
WALSALL COUNCIL,HTTP://OPENDATACOMMUNITIES.ORG/ID/METROPOLITAN-DISTRICT-COUNCIL/WALSALL,31/12/2017,CHANGE & GOVERNANCE,WELSH BROS FOODS LTD,03/10/2017,H59620171004UBZONRRUK-1,82.50,CA BARCROFT D/C-MEAT-PROVISIONS,FREEZER AND LOCKER MEAT PROVISIONERS,GPC
WALSALL COUNCIL,HTTP://OPENDATACOMMUNITIES.ORG/ID/METROPOLITAN-DISTRICT-COUNCIL/WALSALL,31/12/2017,CHILDRENS SERVICES,TESCO STORES 6161,03/10/2017,H59620171004UWDQHVIXH-1,2.10,FOOD TECHNOLOGY-GENERAL MATERIALS,GROCERY STORES AND SUPERMARKETS,GPC
WALSALL COUNCIL,HTTP://OPENDATACOMMUNITIES.ORG/ID/METROPOLITAN-DISTRICT-COUNCIL/WALSALL,31/12/2017,CHILDRENS SERVICES,SAINSBURYS.CO.UK,03/10/2017,H59620171004UYEFHNUGF-1,13.50,57 LICHFIELD ROAD-FOOD AND BEVERAGES-PROVISIONS,GROCERY STORES AND SUPERMARKETS,GPC
WALSALL COUNCIL,HTTP://OPENDATACOMMUNITIES.ORG/ID/METROPOLITAN-DISTRICT-COUNCIL/WALSALL,31/12/2017,CHILDRENS SERVICES,SAINSBURYS.CO.UK,03/10/2017,H59620171004UYEFHNUGF-2,117.66,57 LICHFIELD ROAD-FOOD AND BEVERAGES-PROVISIONS,GROCERY STORES AND SUPERMARKETS,GPC
WALSALL COUNCIL,HTTP://OPENDATACOMMUNITIES.ORG/ID/METROPOLITAN-DISTRICT-COUNCIL/WALSALL,31/12/2017,CHANGE & GOVERNANCE,BLAKEMORE FOODSERVICE,03/10/2017,H59620171004UYKEKGRGJ-1,155.70,CA JANE LANE SPECIAL SCHOOL-FROZEN FOODS-PROVISIONS,CATERERS,GPC
WALSALL COUNCIL,HTTP://OPENDATACOMMUNITIES.ORG/ID/METROPOLITAN-DISTRICT-COUNCIL/WALSALL,31/12/2017,CHANGE & GOVERNANCE,BLAKEMORE FOODSERVICE,03/10/2017,H59620171004UYKEKGRGJ-2,8.33,CA JANE LANE SPECIAL SCHOOL-FROZEN FOODS-PROVISIONS,CATERERS,GPC
WALSALL COUNCIL,HTTP://OPENDATACOMMUNITIES.ORG/ID/METROPOLITAN-DISTRICT-COUNCIL/WALSALL,31/12/2017,ECONOMY & ENVIRONMENT,BANNER GROUP LTD,03/10/2017,H59620171004VAKBCQBNQ-1,33.85,RESOURCE MANAGEMENT-STATIONERY & GENERAL SUPPLIES-,"OFFICE, SCHOOL SUPPLY, AND STATIONERY STORES",GPC
WALSALL COUNCIL,HTTP://OPENDATACOMMUNITIES.ORG/ID/METROPOLITAN-DISTRICT-COUNCIL/WALSALL,31/12/2017,CHANGE & GOVERNANCE,BLAKEMORE FOODSERVICE,03/10/2017,H59620171004VHXBZHUHM-1,20.73,CA WATLING STREET PRIMARY SCHO-FROZEN FOODS-PROVISIONS,CATERERS,GPC
WALSALL COUNCIL,HTTP://OPENDATACOMMUNITIES.ORG/ID/METROPOLITAN-DISTRICT-COUNCIL/WALSALL,31/12/2017,ECONOMY & ENVIRONMENT,HEATON CHAPEL STN TO,03/10/2017,H59620171004WHMOLFNYY-1,83.40,NEW ART GALLERY - ADMIN-OFFICER/STAFF-PUBLIC TRANSPORT,PASSENGER RAILWAYS,GPC
WALSALL COUNCIL,HTTP://OPENDATACOMMUNITIES.ORG/ID/METROPOLITAN-DISTRICT-COUNCIL/WALSALL,31/12/2017,ECONOMY & ENVIRONMENT,TRAINLINE,03/10/2017,H59620171004WZMESVNYK-1,115.46,NEW ART GALLERY - ADMIN-OFFICER/STAFF-PUBLIC TRANSPORT,PASSENGER RAILWAYS,GPC
WALSALL COUNCIL,HTTP://OPENDATACOMMUNITIES.ORG/ID/METROPOLITAN-DISTRICT-COUNCIL/WALSALL,31/12/2017,CHILDRENS SERVICES,AMAZON.CO.UK,03/10/2017,H59620171004XBYEYTTGN-1,25.96,ICT LEARNING RESOURCES-GENERAL MATERIALS,BOOK STORES,GPC
WALSALL COUNCIL,HTTP://OPENDATACOMMUNITIES.ORG/ID/METROPOLITAN-DISTRICT-COUNCIL/WALSALL,31/12/2017,CHANGE & GOVERNANCE,BLAKEMORE FOODSERVICE,03/10/2017,H59620171004XLDFYDMEW-1,379.12,CA OLD HALL SPECIAL SCHOOL-FROZEN FOODS-PROVISIONS,CATERERS,GPC
WALSALL COUNCIL,HTTP://OPENDATACOMMUNITIES.ORG/ID/METROPOLITAN-DISTRICT-COUNCIL/WALSALL,31/12/2017,SOCIAL CARE & INCLUSION,WWW.LOCKDOCTOR.BIZ,03/10/2017,H59620171004XOBMSTQPY-1,8.22,INDEPENDENT LIVING CENTRE-MISCELLANEOUS SUPPLIES,MISCELLANEOUS AND SPECIALTY RETAIL STORES,GPC
WALSALL COUNCIL,HTTP://OPENDATACOMMUNITIES.ORG/ID/METROPOLITAN-DISTRICT-COUNCIL/WALSALL,31/12/2017,CHANGE & GOVERNANCE,BLAKEMORE FOODSERVICE,03/10/2017,H59620171004XPTVRORNW-1,24.98,CA RADLEYS PRIMARY SCHOOL-FROZEN FOODS-PROVISIONS,CATERERS,GPC
WALSALL COUNCIL,HTTP://OPENDATACOMMUNITIES.ORG/ID/METROPOLITAN-DISTRICT-COUNCIL/WALSALL,31/12/2017,CHANGE & GOVERNANCE,BLAKEMORE FOODSERVICE,03/10/2017,H59620171004XPTVRORNW-2,276.41,CA RADLEYS PRIMARY SCHOOL-FROZEN FOODS-PROVISIONS,CATERERS,GPC
WALSALL COUNCIL,HTTP://OPENDATACOMMUNITIES.ORG/ID/METROPOLITAN-DISTRICT-COUNCIL/WALSALL,31/12/2017,CHANGE & GOVERNANCE,WELSH BROS FOODS LTD,03/10/2017,H59620171004XUDUMELTD-1,64.24,CA LEIGHSWOOD PRIMARY SCHOOL-MEAT-PROVISIONS,FREEZER AND LOCKER MEAT PROVISIONERS,GPC
WALSALL COUNCIL,HTTP://OPENDATACOMMUNITIES.ORG/ID/METROPOLITAN-DISTRICT-COUNCIL/WALSALL,31/12/2017,CHILDRENS SERVICES,BIOTECTS LTD,03/10/2017,H59620171004XZVOLMXUD-1,45.00,ADMINISTRATIVE SUPPLIES-GENERAL MATERIALS,"STATIONERY, OFFICE SUPPLIES AND WRITING PAPER",GPC
WALSALL COUNCIL,HTTP://OPENDATACOMMUNITIES.ORG/ID/METROPOLITAN-DISTRICT-COUNCIL/WALSALL,31/12/2017,ECONOMY & ENVIRONMENT,WP-PAKATAK LTD,03/10/2017,H59620171004YFHVWGODN-1,145.99,RESOURCE MANAGEMENT-OTHER EXPENSES-EXPENSES,ART DEALERS AND GALLERIES,GPC
WALSALL COUNCIL,HTTP://OPENDATACOMMUNITIES.ORG/ID/METROPOLITAN-DISTRICT-COUNCIL/WALSALL,31/12/2017,CHANGE & GOVERNANCE,BLAKEMORE FOODSERVICE,03/10/2017,H59620171004YJGCDVKUF-1,81.68,CA TOWN HALL RESTAURANT - CATE-DRY FOODS-PROVISIONS,CATERERS,GPC
WALSALL COUNCIL,HTTP://OPENDATACOMMUNITIES.ORG/ID/METROPOLITAN-DISTRICT-COUNCIL/WALSALL,31/12/2017,ECONOMY & ENVIRONMENT,MYHERMES.CO.UK,04/10/2017,H59620171005AGFEDIUHL-1,7.29,NAG - TEMPORARY EXHIBITIONS-POSTAGES AND COURIER SERVICES,MOTOR FREIGHT CARRIERS,GPC
WALSALL COUNCIL,HTTP://OPENDATACOMMUNITIES.ORG/ID/METROPOLITAN-DISTRICT-COUNCIL/WALSALL,31/12/2017,CHILDRENS SERVICES,WALSALL COUNCIL,04/10/2017,H59620171005ASEUIJBME-1,-19.00,SAFEGUARDING & FAMILY SUPPORT-REGISTRAR OF BIRTHS/DEATHS/MAR,GOVERNMENT SERVICES,GPC
WALSALL COUNCIL,HTTP://OPENDATACOMMUNITIES.ORG/ID/METROPOLITAN-DISTRICT-COUNCIL/WALSALL,31/12/2017,CHILDRENS SERVICES,WALSALL COUNCIL,04/10/2017,H59620171005AUZRACLGP-1,-12.00,SAFEGUARDING & FAMILY SUPPORT-REGISTRAR OF BIRTHS/DEATHS/MAR,GOVERNMENT SERVICES,GPC
WALSALL COUNCIL,HTTP://OPENDATACOMMUNITIES.ORG/ID/METROPOLITAN-DISTRICT-COUNCIL/WALSALL,31/12/2017,CHANGE & GOVERNANCE,ARTHUR BRETT CATER,04/10/2017,H59620171005AWPSHVUGJ-1,38.41,CA JANE LANE SPECIAL SCHOOL-FRUIT & VEGETABLES OTHER-PROVI,MISCELLANEOUS FOOD STORES & CONVENIENCE STORES,GPC
WALSALL COUNCIL,HTTP://OPENDATACOMMUNITIES.ORG/ID/METROPOLITAN-DISTRICT-COUNCIL/WALSALL,31/12/2017,CHANGE & GOVERNANCE,ARTHUR BRETT CATER,04/10/2017,H59620171005BMFKUMDCB-1,65.72,CA CROFT COMMUNITY PRIMARY SCH-FRUIT & VEGETABLES OTHER-PROVI,MISCELLANEOUS FOOD STORES & CONVENIENCE STORES,GPC
WALSALL COUNCIL,HTTP://OPENDATACOMMUNITIES.ORG/ID/METROPOLITAN-DISTRICT-COUNCIL/WALSALL,31/12/2017,CHANGE & GOVERNANCE,BORSHCH LIMITED,04/10/2017,H59620171005BRXFTHNMT-1,175.00,TENANCY SERVICE-FURNITURE & EQUIPMENT,HOUSEHOLD APPLIANCE STORES,GPC
WALSALL COUNCIL,HTTP://OPENDATACOMMUNITIES.ORG/ID/METROPOLITAN-DISTRICT-COUNCIL/WALSALL,31/12/2017,CHILDRENS SERVICES,PAYPAL *VICTORIANPL,04/10/2017,H59620171005BTQWFEYUQ-1,43.90,"ST FRANCIS OF ASSISI CATHOLIC -REPAIRS,ALTERATIONS & MAINTENA",MISCELLANEOUS HOUSE FURNISHING SPECIALTY SHOPS,GPC
WALSALL COUNCIL,HTTP://OPENDATACOMMUNITIES.ORG/ID/METROPOLITAN-DISTRICT-COUNCIL/WALSALL,31/12/2017,CHILDRENS SERVICES,BANNER GROUP LTD,04/10/2017,H59620171005BWHVWKFUM-1,20.52,LOCALITY FAMILY SUPPORT-WEST-STATIONERY & GENERAL SUPPLIES-,"OFFICE, SCHOOL SUPPLY, AND STATIONERY STORES",GPC
WALSALL COUNCIL,HTTP://OPENDATACOMMUNITIES.ORG/ID/METROPOLITAN-DISTRICT-COUNCIL/WALSALL,31/12/2017,ECONOMY & ENVIRONMENT,POST OFFICE COUNTER,04/10/2017,H59620171005CEBBXMDEX-1,7.24,NAG - TEMPORARY EXHIBITIONS-POSTAGES AND COURIER SERVICES,POSTAL SERVICES - GOVERNMENT ONLY,GPC
WALSALL COUNCIL,HTTP://OPENDATACOMMUNITIES.ORG/ID/METROPOLITAN-DISTRICT-COUNCIL/WALSALL,31/12/2017,CHANGE & GOVERNANCE,MAPLIN WALSALL WS2,04/10/2017,H59620171005CLHRVUDMN-1,22.99,ACCOMMODATION SERVICES MANAGEM-COSTS (NOT INTERNAL RECHARGES),TELECOMMUNICATION EQUIPMENT & SALES,GPC
WALSALL COUNCIL,HTTP://OPENDATACOMMUNITIES.ORG/ID/METROPOLITAN-DISTRICT-COUNCIL/WALSALL,31/12/2017,CHANGE & GOVERNANCE,WWW.SCC.COM,04/10/2017,H59620171005CQXLCVMRI-1,437.42,RECHARGEABLE EQUIPMENT-COMPUTER EQUIPMENT AND SUPPLIE,"COMPUTERS, COMPUTER PERIPHERAL EQUIPMENT, SOFTWARE",GPC
WALSALL COUNCIL,HTTP://OPENDATACOMMUNITIES.ORG/ID/METROPOLITAN-DISTRICT-COUNCIL/WALSALL,31/12/2017,CHANGE & GOVERNANCE,AMAZON.CO.UK,04/10/2017,H59620171005CUZTDRVAV-1,23.54,CORPORATE PROCUREMENT-LIBRARY BOOKS,BOOK STORES,GPC
WALSALL COUNCIL,HTTP://OPENDATACOMMUNITIES.ORG/ID/METROPOLITAN-DISTRICT-COUNCIL/WALSALL,31/12/2017,CHILDRENS SERVICES,CO-OPERATIVE FOOD,04/10/2017,H59620171005DEQDOFBCH-1,5.35,REDRUTH ROAD-FOOD AND BEVERAGES-PROVISIONS,GROCERY STORES AND SUPERMARKETS,GPC
WALSALL COUNCIL,HTTP://OPENDATACOMMUNITIES.ORG/ID/METROPOLITAN-DISTRICT-COUNCIL/WALSALL,31/12/2017,CHANGE & GOVERNANCE,BULL DOG APPLIANCES LT,04/10/2017,H59620171005DFBYEVWJG-1,474.00,WALSALL CRISIS SUPPORT SCHEME-FURNITURE & EQUIPMENT,HOUSEHOLD APPLIANCE STORES,GPC
WALSALL COUNCIL,HTTP://OPENDATACOMMUNITIES.ORG/ID/METROPOLITAN-DISTRICT-COUNCIL/WALSALL,31/12/2017,CHANGE & GOVERNANCE,ARTHUR BRETT CATER,04/10/2017,H59620171005DHEYGJIUC-1,84.97,CA LINDENS PRIMARY SCHOOL-FRUIT & VEGETABLES OTHER-PROVI,MISCELLANEOUS FOOD STORES & CONVENIENCE STORES,GPC
WALSALL COUNCIL,HTTP://OPENDATACOMMUNITIES.ORG/ID/METROPOLITAN-DISTRICT-COUNCIL/WALSALL,31/12/2017,CHANGE & GOVERNANCE,BORSHCH LIMITED,04/10/2017,H59620171005DIYBCDEYM-1,175.00,WALSALL CRISIS SUPPORT SCHEME-CRISIS SUPPORT PAYMENTS,HOUSEHOLD APPLIANCE STORES,GPC
WALSALL COUNCIL,HTTP://OPENDATACOMMUNITIES.ORG/ID/METROPOLITAN-DISTRICT-COUNCIL/WALSALL,31/12/2017,CHANGE & GOVERNANCE,NOBISCO LIMITED,04/10/2017,H59620171005DNPGTLVHP-1,11.65,CA OLD HALL SPECIAL SCHOOL-DISPOSABLES-PROVISIONS,OTHER INDUSTRIAL SUPPLIES,GPC
WALSALL COUNCIL,HTTP://OPENDATACOMMUNITIES.ORG/ID/METROPOLITAN-DISTRICT-COUNCIL/WALSALL,31/12/2017,CHILDRENS SERVICES,PARENTPAY E-COM R,04/10/2017,H59620171005DSKHSFTRA-1,50.00,REDRUTH ROAD-RESIDENTS PERSONAL EXPENSES-AL,"COLLEGES, UNIVERSITIES, PROFESSIONAL SCHOOLS",GPC
WALSALL COUNCIL,HTTP://OPENDATACOMMUNITIES.ORG/ID/METROPOLITAN-DISTRICT-COUNCIL/WALSALL,31/12/2017,CHILDRENS SERVICES,W M MORRISONS.COM,04/10/2017,H59620171005ECFLXKJAE-1,0.72,BLUEBELLS-FOOD AND BEVERAGES-PROVISIONS,GROCERY STORES AND SUPERMARKETS,GPC
WALSALL COUNCIL,HTTP://OPENDATACOMMUNITIES.ORG/ID/METROPOLITAN-DISTRICT-COUNCIL/WALSALL,31/12/2017,CHILDRENS SERVICES,W M MORRISONS.COM,04/10/2017,H59620171005ECFLXKJAE-2,89.38,BLUEBELLS-FOOD AND BEVERAGES-PROVISIONS,GROCERY STORES AND SUPERMARKETS,GPC
WALSALL COUNCIL,HTTP://OPENDATACOMMUNITIES.ORG/ID/METROPOLITAN-DISTRICT-COUNCIL/WALSALL,31/12/2017,ECONOMY & ENVIRONMENT,BANNER GROUP LTD,04/10/2017,H59620171005EJQGIKCAR-1,24.07,CENTRALISED STATIONARY-STATIONERY & GENERAL SUPPLIES-,"OFFICE, SCHOOL SUPPLY, AND STATIONERY STORES",GPC
WALSALL COUNCIL,HTTP://OPENDATACOMMUNITIES.ORG/ID/METROPOLITAN-DISTRICT-COUNCIL/WALSALL,31/12/2017,CHANGE & GOVERNANCE,ARTHUR BRETT CATER,04/10/2017,H59620171005ENUFJDTJR-1,86.47,CA MOORCROFT WOOD-FRUIT & VEGETABLES OTHER-PROVI,MISCELLANEOUS FOOD STORES & CONVENIENCE STORES,GPC
WALSALL COUNCIL,HTTP://OPENDATACOMMUNITIES.ORG/ID/METROPOLITAN-DISTRICT-COUNCIL/WALSALL,31/12/2017,CHILDRENS SERVICES,SMYTHS TOYS UK LTD,04/10/2017,H59620171005EXDHVNDMY-1,9.99,57 LICHFIELD ROAD-RESIDENTS PERSONAL EXPENSES-AL,"GAME, TOY, AND HOBBY SHOPS",GPC
WALSALL COUNCIL,HTTP://OPENDATACOMMUNITIES.ORG/ID/METROPOLITAN-DISTRICT-COUNCIL/WALSALL,31/12/2017,CHANGE & GOVERNANCE,ARTHUR BRETT CATER,04/10/2017,H59620171005FBSWRQEHY-1,115.30,CA BARCROFT D/C-FRUIT & VEGETABLES OTHER-PROVI,MISCELLANEOUS FOOD STORES & CONVENIENCE STORES,GPC
WALSALL COUNCIL,HTTP://OPENDATACOMMUNITIES.ORG/ID/METROPOLITAN-DISTRICT-COUNCIL/WALSALL,31/12/2017,CHILDRENS SERVICES,AMAZON.CO.UK,04/10/2017,H59620171005FFFMFZENV-1,7.99,"BLAKENALL CHILDCARE SERVICES-REPAIRS,ALTERATIONS & MAINTENA",BOOK STORES,GPC
WALSALL COUNCIL,HTTP://OPENDATACOMMUNITIES.ORG/ID/METROPOLITAN-DISTRICT-COUNCIL/WALSALL,31/12/2017,CHILDRENS SERVICES,AMAZON UK RETAIL,04/10/2017,H59620171005FFHGDKDTW-1,80.62,HISTORY-GENERAL MATERIALS,OTHER DIRECT MARKETING-OTHER DIRECT MARKETERS,GPC
WALSALL COUNCIL,HTTP://OPENDATACOMMUNITIES.ORG/ID/METROPOLITAN-DISTRICT-COUNCIL/WALSALL,31/12/2017,CHANGE & GOVERNANCE,FOREIGN EXCHANGE FEE,04/10/2017,H59620171005FHPWBBWKY-1,5.18,ICT INCOME-RECHARGE FOR MAINTENANCE/APPLI,,GPC
WALSALL COUNCIL,HTTP://OPENDATACOMMUNITIES.ORG/ID/METROPOLITAN-DISTRICT-COUNCIL/WALSALL,31/12/2017,CHANGE & GOVERNANCE,CHICKEN JOES LTD,04/10/2017,H59620171005FHRDJDFYN-1,29.56,CA BEACON PRIMARY SCHOOL-FROZEN FOODS-PROVISIONS,CATERERS,GPC
WALSALL COUNCIL,HTTP://OPENDATACOMMUNITIES.ORG/ID/METROPOLITAN-DISTRICT-COUNCIL/WALSALL,31/12/2017,CHILDRENS SERVICES,FIRSTAID4LESS.CO.UK,04/10/2017,H59620171005FKXENPUPV-1,32.09,"43A HILTON ROAD, WILLENHALL-HEALTH & SAFETY-MATERIALS",MISCELLANEOUS AND SPECIALTY RETAIL STORES,GPC
WALSALL COUNCIL,HTTP://OPENDATACOMMUNITIES.ORG/ID/METROPOLITAN-DISTRICT-COUNCIL/WALSALL,31/12/2017,CHILDRENS SERVICES,FIRSTAID4LESS.CO.UK,04/10/2017,H59620171005FKXENPUPV-2,2.95,SPINDLETREE-HEALTH & SAFETY-MATERIALS,MISCELLANEOUS AND SPECIALTY RETAIL STORES,GPC
WALSALL COUNCIL,HTTP://OPENDATACOMMUNITIES.ORG/ID/METROPOLITAN-DISTRICT-COUNCIL/WALSALL,31/12/2017,CHANGE & GOVERNANCE,NOBISCO LIMITED,04/10/2017,H59620171005FSOQQZTIF-1,73.26,CA OLD HALL SPECIAL SCHOOL-DISPOSABLES-PROVISIONS,OTHER INDUSTRIAL SUPPLIES,GPC
WALSALL COUNCIL,HTTP://OPENDATACOMMUNITIES.ORG/ID/METROPOLITAN-DISTRICT-COUNCIL/WALSALL,31/12/2017,CHILDRENS SERVICES,ASDA STORES,04/10/2017,H59620171005GCBOMFNEF-1,8.46,LOCALITY FAMILY SUPPORT-WEST-FOOD AND BEVERAGES-PROVISIONS,GROCERY STORES AND SUPERMARKETS,GPC
WALSALL COUNCIL,HTTP://OPENDATACOMMUNITIES.ORG/ID/METROPOLITAN-DISTRICT-COUNCIL/WALSALL,31/12/2017,CHILDRENS SERVICES,ASDA STORES,04/10/2017,H59620171005GPKTDVSHV-1,3.29,PARENTING TEAM-FOOD AND BEVERAGES-PROVISIONS,GROCERY STORES AND SUPERMARKETS,GPC
WALSALL COUNCIL,HTTP://OPENDATACOMMUNITIES.ORG/ID/METROPOLITAN-DISTRICT-COUNCIL/WALSALL,31/12/2017,CHANGE & GOVERNANCE,ARTHUR BRETT CATER,04/10/2017,H59620171005HRGPOXFIO-1,54.76,CA ST FRANCIS CATHOLIC PRIMARY-FRUIT & VEGETABLES OTHER-PROVI,MISCELLANEOUS FOOD STORES & CONVENIENCE STORES,GPC
WALSALL COUNCIL,HTTP://OPENDATACOMMUNITIES.ORG/ID/METROPOLITAN-DISTRICT-COUNCIL/WALSALL,31/12/2017,CHANGE & GOVERNANCE,ARTHUR BRETT CATER,04/10/2017,H59620171005HSPYVNQFO-1,57.35,CA ELMWOOD SPECIAL SCHOOL-FRUIT & VEGETABLES OTHER-PROVI,MISCELLANEOUS FOOD STORES & CONVENIENCE STORES,GPC
WALSALL COUNCIL,HTTP://OPENDATACOMMUNITIES.ORG/ID/METROPOLITAN-DISTRICT-COUNCIL/WALSALL,31/12/2017,CHILDRENS SERVICES,AMAZON.CO.UK,04/10/2017,H59620171005HWJROTIVH-1,3.98,"BLAKENALL CHILDCARE SERVICES-REPAIRS,ALTERATIONS & MAINTENA",BOOK STORES,GPC
WALSALL COUNCIL,HTTP://OPENDATACOMMUNITIES.ORG/ID/METROPOLITAN-DISTRICT-COUNCIL/WALSALL,31/12/2017,CHANGE & GOVERNANCE,NOBISCO LIMITED,04/10/2017,H59620171005HXFOJNHAN-1,44.32,CA BROWNHILLS WEST PRIMARY SCH-DISPOSABLES-PROVISIONS,OTHER INDUSTRIAL SUPPLIES,GPC
WALSALL COUNCIL,HTTP://OPENDATACOMMUNITIES.ORG/ID/METROPOLITAN-DISTRICT-COUNCIL/WALSALL,31/12/2017,CHANGE & GOVERNANCE,ARTHUR BRETT CATER,04/10/2017,H59620171005HYPBCGGAU-1,45.51,CA ABBEY PRIMARY SCHOOL-FRUIT & VEGETABLES OTHER-PROVI,MISCELLANEOUS FOOD STORES & CONVENIENCE STORES,GPC
WALSALL COUNCIL,HTTP://OPENDATACOMMUNITIES.ORG/ID/METROPOLITAN-DISTRICT-COUNCIL/WALSALL,31/12/2017,CHANGE & GOVERNANCE,ARTHUR BRETT CATER,04/10/2017,H59620171005ICDGCTJHO-1,45.98,CA ST GILES C.E. PRIMARY SCHOO-FRUIT & VEGETABLES OTHER-PROVI,MISCELLANEOUS FOOD STORES & CONVENIENCE STORES,GPC
WALSALL COUNCIL,HTTP://OPENDATACOMMUNITIES.ORG/ID/METROPOLITAN-DISTRICT-COUNCIL/WALSALL,31/12/2017,ECONOMY & ENVIRONMENT,SPORTSDIRECT.COM,04/10/2017,H59620171005IDVTOXIIG-1,50.24,WALSALL OUTDOOR ADVENTURE CENT-REPAIR OF EQUIPMENT-EQUIPMENT,SPORTING GOODS STORES,GPC
WALSALL COUNCIL,HTTP://OPENDATACOMMUNITIES.ORG/ID/METROPOLITAN-DISTRICT-COUNCIL/WALSALL,31/12/2017,CHANGE & GOVERNANCE,NOBISCO LIMITED,04/10/2017,H59620171005ILAJUCJVE-1,103.15,CA BIRCHILLS CE PRIMARY COMMUN-DISPOSABLES-PROVISIONS,OTHER INDUSTRIAL SUPPLIES,GPC
WALSALL COUNCIL,HTTP://OPENDATACOMMUNITIES.ORG/ID/METROPOLITAN-DISTRICT-COUNCIL/WALSALL,31/12/2017,CHANGE & GOVERNANCE,CHICKEN JOES LTD,04/10/2017,H59620171005IPTYBOMKD-1,104.53,CA ST JOHNS C.E. PRIMARY SCHOO-FROZEN FOODS-PROVISIONS,CATERERS,GPC
WALSALL COUNCIL,HTTP://OPENDATACOMMUNITIES.ORG/ID/METROPOLITAN-DISTRICT-COUNCIL/WALSALL,31/12/2017,CHANGE & GOVERNANCE,WWW.SCC.COM,04/10/2017,H59620171005JJAXXKDBW-1,"4,139.28",RECHARGEABLE EQUIPMENT-COMPUTER EQUIPMENT AND SUPPLIE,"COMPUTERS, COMPUTER PERIPHERAL EQUIPMENT, SOFTWARE",GPC
WALSALL COUNCIL,HTTP://OPENDATACOMMUNITIES.ORG/ID/METROPOLITAN-DISTRICT-COUNCIL/WALSALL,31/12/2017,CHANGE & GOVERNANCE,NOBISCO LIMITED,04/10/2017,H59620171005JMIDNQPEH-1,-19.97,CA BIRCHILLS CE PRIMARY COMMUN-DISPOSABLES-PROVISIONS,OTHER INDUSTRIAL SUPPLIES,GPC
WALSALL COUNCIL,HTTP://OPENDATACOMMUNITIES.ORG/ID/METROPOLITAN-DISTRICT-COUNCIL/WALSALL,31/12/2017,CHILDRENS SERVICES,MAGSUBCRIPTIONS COM,04/10/2017,H59620171005KEFETMYMC-1,108.02,FOUNDATION STAGE/EARLY YEARS-PUBLICATIONS/ORGANISATIONS-SUB,DIRECT MARKETING CONTINUITY SUBSCRIPTION MERCHANTS,GPC
WALSALL COUNCIL,HTTP://OPENDATACOMMUNITIES.ORG/ID/METROPOLITAN-DISTRICT-COUNCIL/WALSALL,31/12/2017,CHILDRENS SERVICES,MAGSUBCRIPTIONS COM,04/10/2017,H59620171005KEFETMYMC-2,10.98,FOUNDATION STAGE/EARLY YEARS-PUBLICATIONS/ORGANISATIONS-SUB,DIRECT MARKETING CONTINUITY SUBSCRIPTION MERCHANTS,GPC
WALSALL COUNCIL,HTTP://OPENDATACOMMUNITIES.ORG/ID/METROPOLITAN-DISTRICT-COUNCIL/WALSALL,31/12/2017,CHANGE & GOVERNANCE,TESCO STORES 6161,04/10/2017,H59620171005KKHVCTRTB-1,7.62,ACCOMMODATION SERVICES MANAGEM-FOOD AND BEVERAGES-PROVISIONS,GROCERY STORES AND SUPERMARKETS,GPC
WALSALL COUNCIL,HTTP://OPENDATACOMMUNITIES.ORG/ID/METROPOLITAN-DISTRICT-COUNCIL/WALSALL,31/12/2017,CHILDRENS SERVICES,AMAZON UK RETAIL,04/10/2017,H59620171005KOHEFUHYD-1,241.86,HISTORY-GENERAL MATERIALS,OTHER DIRECT MARKETING-OTHER DIRECT MARKETERS,GPC
WALSALL COUNCIL,HTTP://OPENDATACOMMUNITIES.ORG/ID/METROPOLITAN-DISTRICT-COUNCIL/WALSALL,31/12/2017,ECONOMY & ENVIRONMENT,MBC BADGE COMPANY,04/10/2017,H59620171005KOJIVUWSQ-1,450.00,OAK PARK-FURNITURE & EQUIPMENT,"CARD, GIFT, NOVELTY, AND SOUVENIR SHOPS",GPC
WALSALL COUNCIL,HTTP://OPENDATACOMMUNITIES.ORG/ID/METROPOLITAN-DISTRICT-COUNCIL/WALSALL,31/12/2017,CHANGE & GOVERNANCE,ARTHUR BRETT CATER,04/10/2017,H59620171005KPHUZGXGK-1,81.70,CA ST JOHNS C.E. PRIMARY SCHOO-FRUIT & VEGETABLES OTHER-PROVI,MISCELLANEOUS FOOD STORES & CONVENIENCE STORES,GPC
WALSALL COUNCIL,HTTP://OPENDATACOMMUNITIES.ORG/ID/METROPOLITAN-DISTRICT-COUNCIL/WALSALL,31/12/2017,ECONOMY & ENVIRONMENT,BOC TEL ORDER,04/10/2017,H59620171005KSCQFYPOH-1,7.44,WALSALL TOWN HALL-CHEMICALS & SCIENTIFIC MATS-MA,OTHER CHEMICALS AND ALLIED PRODUCTS,GPC
WALSALL COUNCIL,HTTP://OPENDATACOMMUNITIES.ORG/ID/METROPOLITAN-DISTRICT-COUNCIL/WALSALL,31/12/2017,CHILDRENS SERVICES,W M MORRISON PLC,04/10/2017,H59620171005KUIQYJKRY-1,20.00,"43A HILTON ROAD, WILLENHALL-FOOD AND BEVERAGES-PROVISIONS",GROCERY STORES AND SUPERMARKETS,GPC
WALSALL COUNCIL,HTTP://OPENDATACOMMUNITIES.ORG/ID/METROPOLITAN-DISTRICT-COUNCIL/WALSALL,31/12/2017,CHILDRENS SERVICES,W M MORRISON PLC,04/10/2017,H59620171005KUIQYJKRY-2,78.10,"43A HILTON ROAD, WILLENHALL-FOOD AND BEVERAGES-PROVISIONS",GROCERY STORES AND SUPERMARKETS,GPC
WALSALL COUNCIL,HTTP://OPENDATACOMMUNITIES.ORG/ID/METROPOLITAN-DISTRICT-COUNCIL/WALSALL,31/12/2017,ECONOMY & ENVIRONMENT,PAYPAL *SASSECURITY,04/10/2017,H59620171005KXEIMPQYE-1,92.49,FLEET-GENERAL MATERIALS,HARDWARE STORES,GPC
WALSALL COUNCIL,HTTP://OPENDATACOMMUNITIES.ORG/ID/METROPOLITAN-DISTRICT-COUNCIL/WALSALL,31/12/2017,CHILDRENS SERVICES,ASDA STORES,04/10/2017,H59620171005LFPLPMQWT-1,3.78,LOCALITY FAMILY SUPPORT-WEST-FOOD AND BEVERAGES-PROVISIONS,GROCERY STORES AND SUPERMARKETS,GPC
WALSALL COUNCIL,HTTP://OPENDATACOMMUNITIES.ORG/ID/METROPOLITAN-DISTRICT-COUNCIL/WALSALL,31/12/2017,CHANGE & GOVERNANCE,WWW.HEALTHCARECONFEREN,04/10/2017,H59620171005LJWTPPCFN-1,394.20,WORKFORCE DEVELOPMENT-PROFESSIONAL FEES AND SERVICES,OTHER BUSINESS SERVICES,GPC
WALSALL COUNCIL,HTTP://OPENDATACOMMUNITIES.ORG/ID/METROPOLITAN-DISTRICT-COUNCIL/WALSALL,31/12/2017,CHANGE & GOVERNANCE,BULL DOG APPLIANCES LT,04/10/2017,H59620171005LKKUKWIRB-1,474.00,WALSALL CRISIS SUPPORT SCHEME-FURNITURE & EQUIPMENT,HOUSEHOLD APPLIANCE STORES,GPC
WALSALL COUNCIL,HTTP://OPENDATACOMMUNITIES.ORG/ID/METROPOLITAN-DISTRICT-COUNCIL/WALSALL,31/12/2017,ECONOMY & ENVIRONMENT,TRAINLINE,04/10/2017,H59620171005LLMRLJTOJ-1,64.77,NEW ART GALLERY - ADMIN-OFFICER/STAFF-PUBLIC TRANSPORT,PASSENGER RAILWAYS,GPC
WALSALL COUNCIL,HTTP://OPENDATACOMMUNITIES.ORG/ID/METROPOLITAN-DISTRICT-COUNCIL/WALSALL,31/12/2017,CHILDRENS SERVICES,TESCO STORES 6161,04/10/2017,H59620171005LOFNKIPTC-1,2.62,LOCALITY FAMILY SUPPORT-CENTRA-FOOD AND BEVERAGES-PROVISIONS,GROCERY STORES AND SUPERMARKETS,GPC
WALSALL COUNCIL,HTTP://OPENDATACOMMUNITIES.ORG/ID/METROPOLITAN-DISTRICT-COUNCIL/WALSALL,31/12/2017,CHANGE & GOVERNANCE,ARTHUR BRETT CATER,04/10/2017,H59620171005MKMPNHTDQ-1,103.91,CA RADLEYS PRIMARY SCHOOL-FRUIT & VEGETABLES OTHER-PROVI,MISCELLANEOUS FOOD STORES & CONVENIENCE STORES,GPC
WALSALL COUNCIL,HTTP://OPENDATACOMMUNITIES.ORG/ID/METROPOLITAN-DISTRICT-COUNCIL/WALSALL,31/12/2017,CHANGE & GOVERNANCE,ARTHUR BRETT CATER,04/10/2017,H59620171005MOVVROZDM-1,61.42,CA ST MICHAELS C.E. PRIMARY SC-FRUIT & VEGETABLES OTHER-PROVI,MISCELLANEOUS FOOD STORES & CONVENIENCE STORES,GPC
WALSALL COUNCIL,HTTP://OPENDATACOMMUNITIES.ORG/ID/METROPOLITAN-DISTRICT-COUNCIL/WALSALL,31/12/2017,CHANGE & GOVERNANCE,WWW.LOCKERKEYS.BIZ,04/10/2017,H59620171005NDJKTHYDH-1,5.82,PRINTING SERVICES-PROFESSIONAL FEES AND SERVICES,OTHER BUSINESS SERVICES,GPC
WALSALL COUNCIL,HTTP://OPENDATACOMMUNITIES.ORG/ID/METROPOLITAN-DISTRICT-COUNCIL/WALSALL,31/12/2017,CHANGE & GOVERNANCE,BULL DOG APPLIANCES LT,04/10/2017,H59620171005NGGVFKQFJ-1,474.00,WALSALL CRISIS SUPPORT SCHEME-FURNITURE & EQUIPMENT,HOUSEHOLD APPLIANCE STORES,GPC
WALSALL COUNCIL,HTTP://OPENDATACOMMUNITIES.ORG/ID/METROPOLITAN-DISTRICT-COUNCIL/WALSALL,31/12/2017,CHANGE & GOVERNANCE,ARTHUR BRETT CATER,04/10/2017,H59620171005NHPEXCVTN-1,54.27,CA MEADOW VIEW JMI PRIMARY SCH-FRUIT & VEGETABLES OTHER-PROVI,MISCELLANEOUS FOOD STORES & CONVENIENCE STORES,GPC
WALSALL COUNCIL,HTTP://OPENDATACOMMUNITIES.ORG/ID/METROPOLITAN-DISTRICT-COUNCIL/WALSALL,31/12/2017,CHILDRENS SERVICES,AMAZON.CO.UK,04/10/2017,H59620171005NIYCWIPHN-1,74.39,D & T-GENERAL MATERIALS,BOOK STORES,GPC
WALSALL COUNCIL,HTTP://OPENDATACOMMUNITIES.ORG/ID/METROPOLITAN-DISTRICT-COUNCIL/WALSALL,31/12/2017,CHANGE & GOVERNANCE,ARGOS WALSALL CROW,04/10/2017,H59620171005NPVHMQOFR-1,37.98,ACCOMMODATION SERVICES MANAGEM-ACCOMMODATION AND RELATED COST,DISCOUNT STORES,GPC
WALSALL COUNCIL,HTTP://OPENDATACOMMUNITIES.ORG/ID/METROPOLITAN-DISTRICT-COUNCIL/WALSALL,31/12/2017,CHANGE & GOVERNANCE,BULL DOG APPLIANCES LT,04/10/2017,H59620171005NVGSJERXZ-1,474.00,WALSALL CRISIS SUPPORT SCHEME-FURNITURE & EQUIPMENT,HOUSEHOLD APPLIANCE STORES,GPC
WALSALL COUNCIL,HTTP://OPENDATACOMMUNITIES.ORG/ID/METROPOLITAN-DISTRICT-COUNCIL/WALSALL,31/12/2017,CHANGE & GOVERNANCE,ARTHUR BRETT CATER,04/10/2017,H59620171005OEDNFMLSJ-1,88.56,CA BEACON PRIMARY SCHOOL-FRUIT & VEGETABLES OTHER-PROVI,MISCELLANEOUS FOOD STORES & CONVENIENCE STORES,GPC
WALSALL COUNCIL,HTTP://OPENDATACOMMUNITIES.ORG/ID/METROPOLITAN-DISTRICT-COUNCIL/WALSALL,31/12/2017,CHANGE & GOVERNANCE,ARTHUR BRETT CATER,04/10/2017,H59620171005OGHGVTHJW-1,44.39,CA LITTLE BLOXWICH CE PRIMARY -FRUIT & VEGETABLES OTHER-PROVI,MISCELLANEOUS FOOD STORES & CONVENIENCE STORES,GPC
WALSALL COUNCIL,HTTP://OPENDATACOMMUNITIES.ORG/ID/METROPOLITAN-DISTRICT-COUNCIL/WALSALL,31/12/2017,CHANGE & GOVERNANCE,BULL DOG APPLIANCES LT,04/10/2017,H59620171005OGJUKGRJU-1,474.00,WALSALL CRISIS SUPPORT SCHEME-FURNITURE & EQUIPMENT,HOUSEHOLD APPLIANCE STORES,GPC
WALSALL COUNCIL,HTTP://OPENDATACOMMUNITIES.ORG/ID/METROPOLITAN-DISTRICT-COUNCIL/WALSALL,31/12/2017,CHILDRENS SERVICES,WALSALL COUNCIL,04/10/2017,H59620171005OOCNCKXXI-1,-36.00,SAFEGUARDING & FAMILY SUPPORT-REGISTRAR OF BIRTHS/DEATHS/MAR,GOVERNMENT SERVICES,GPC
WALSALL COUNCIL,HTTP://OPENDATACOMMUNITIES.ORG/ID/METROPOLITAN-DISTRICT-COUNCIL/WALSALL,31/12/2017,CHANGE & GOVERNANCE,TRAINLINE,04/10/2017,H59620171005OTUJTODGE-1,126.89,LAW LIBRARY-TRAVEL ALLOWANCE-ALLOWANCES TO,PASSENGER RAILWAYS,GPC
WALSALL COUNCIL,HTTP://OPENDATACOMMUNITIES.ORG/ID/METROPOLITAN-DISTRICT-COUNCIL/WALSALL,31/12/2017,CHANGE & GOVERNANCE,ARTHUR BRETT CATER,04/10/2017,H59620171005OWEDJJBUG-1,93.30,CA ELMORE GREEN PRIMARY SCHOOL-FRUIT & VEGETABLES OTHER-PROVI,MISCELLANEOUS FOOD STORES & CONVENIENCE STORES,GPC
WALSALL COUNCIL,HTTP://OPENDATACOMMUNITIES.ORG/ID/METROPOLITAN-DISTRICT-COUNCIL/WALSALL,31/12/2017,CHANGE & GOVERNANCE,CHICKEN JOES LTD,04/10/2017,H59620171005PFEVJMVNP-1,43.96,CA ELMWOOD SPECIAL SCHOOL-FROZEN FOODS-PROVISIONS,CATERERS,GPC
WALSALL COUNCIL,HTTP://OPENDATACOMMUNITIES.ORG/ID/METROPOLITAN-DISTRICT-COUNCIL/WALSALL,31/12/2017,ECONOMY & ENVIRONMENT,BANNER GROUP LTD,04/10/2017,H59620171005PJLRJFLNZ-1,6.65,LOCAL HISTORY CENTRE-STATIONERY & GENERAL SUPPLIES-,"OFFICE, SCHOOL SUPPLY, AND STATIONERY STORES",GPC
WALSALL COUNCIL,HTTP://OPENDATACOMMUNITIES.ORG/ID/METROPOLITAN-DISTRICT-COUNCIL/WALSALL,31/12/2017,ECONOMY & ENVIRONMENT,SCREWFIX DIRECT,04/10/2017,H59620171005PMXCXOPTN-1,71.80,FOREST ARTS CENTRE-STATIONERY & GENERAL SUPPLIES-,LUMBER & BUILDING MATERIALS STORES,GPC
WALSALL COUNCIL,HTTP://OPENDATACOMMUNITIES.ORG/ID/METROPOLITAN-DISTRICT-COUNCIL/WALSALL,31/12/2017,CHILDRENS SERVICES,AQUAID FRANCHISING LTD,04/10/2017,H59620171005PNDOUOSIB-1,153.60,PELSALL EDC-STAFF MINERAL WATER-EQUIPMENT,OTHER BUSINESS SERVICES,GPC
WALSALL COUNCIL,HTTP://OPENDATACOMMUNITIES.ORG/ID/METROPOLITAN-DISTRICT-COUNCIL/WALSALL,31/12/2017,CHANGE & GOVERNANCE,ARTHUR BRETT CATER,04/10/2017,H59620171005PTKGPZTWB-1,44.18,CA WALSALL WOOD PRIMARY SCHOOL-FRUIT & VEGETABLES OTHER-PROVI,MISCELLANEOUS FOOD STORES & CONVENIENCE STORES,GPC
WALSALL COUNCIL,HTTP://OPENDATACOMMUNITIES.ORG/ID/METROPOLITAN-DISTRICT-COUNCIL/WALSALL,31/12/2017,CHANGE & GOVERNANCE,ARTHUR BRETT CATER,04/10/2017,H59620171005PVKZFBRIL-1,75.92,CA LEIGHSWOOD PRIMARY SCHOOL-FRUIT & VEGETABLES OTHER-PROVI,MISCELLANEOUS FOOD STORES & CONVENIENCE STORES,GPC
WALSALL COUNCIL,HTTP://OPENDATACOMMUNITIES.ORG/ID/METROPOLITAN-DISTRICT-COUNCIL/WALSALL,31/12/2017,CHANGE & GOVERNANCE,ARTHUR BRETT CATER,04/10/2017,H59620171005QCEHKHLRQ-1,118.69,CA BIRCHILLS CE PRIMARY COMMUN-FRUIT & VEGETABLES OTHER-PROVI,MISCELLANEOUS FOOD STORES & CONVENIENCE STORES,GPC
WALSALL COUNCIL,HTTP://OPENDATACOMMUNITIES.ORG/ID/METROPOLITAN-DISTRICT-COUNCIL/WALSALL,31/12/2017,CHILDRENS SERVICES,MAGSUBCRIPTIONS COM,04/10/2017,H59620171005QKSEYRXVU-1,107.00,FOUNDATION STAGE/EARLY YEARS-PUBLICATIONS/ORGANISATIONS-SUB,DIRECT MARKETING CONTINUITY SUBSCRIPTION MERCHANTS,GPC
WALSALL COUNCIL,HTTP://OPENDATACOMMUNITIES.ORG/ID/METROPOLITAN-DISTRICT-COUNCIL/WALSALL,31/12/2017,CHILDRENS SERVICES,BANNER GROUP LTD,04/10/2017,H59620171005RFJITVGHN-1,28.86,DIRECTLY COMMISSIONED NURSING -STATIONERY & GENERAL SUPPLIES-,"OFFICE, SCHOOL SUPPLY, AND STATIONERY STORES",GPC
WALSALL COUNCIL,HTTP://OPENDATACOMMUNITIES.ORG/ID/METROPOLITAN-DISTRICT-COUNCIL/WALSALL,31/12/2017,ECONOMY & ENVIRONMENT,CABLETEC CABLES & CON LT,04/10/2017,H59620171005RMHCCPEKG-1,222.48,FLEET-GENERAL MATERIALS,OTHER INDUSTRIAL SUPPLIES,GPC
WALSALL COUNCIL,HTTP://OPENDATACOMMUNITIES.ORG/ID/METROPOLITAN-DISTRICT-COUNCIL/WALSALL,31/12/2017,CHANGE & GOVERNANCE,W M MORRISON PLC,04/10/2017,H59620171005ROVMWDUPK-1,15.00,WELFARE RIGHTS-FOOD AND BEVERAGES-PROVISIONS,GROCERY STORES AND SUPERMARKETS,GPC
WALSALL COUNCIL,HTTP://OPENDATACOMMUNITIES.ORG/ID/METROPOLITAN-DISTRICT-COUNCIL/WALSALL,31/12/2017,CHILDRENS SERVICES,PREMIER INN44011950,04/10/2017,H59620171005RWGJFMRYX-1,186.00,LOOKED AFTER CHILDRENS SOCIAL -HOTEL ACCOMMODATION-EMPLOYEES,PREMIER INN,GPC
WALSALL COUNCIL,HTTP://OPENDATACOMMUNITIES.ORG/ID/METROPOLITAN-DISTRICT-COUNCIL/WALSALL,31/12/2017,CHANGE & GOVERNANCE,ARTHUR BRETT CATER,04/10/2017,H59620171005RWHTPPQNN-1,36.28,CA LEAMORE PRIMARY SCHOOL-FRUIT & VEGETABLES OTHER-PROVI,MISCELLANEOUS FOOD STORES & CONVENIENCE STORES,GPC
WALSALL COUNCIL,HTTP://OPENDATACOMMUNITIES.ORG/ID/METROPOLITAN-DISTRICT-COUNCIL/WALSALL,31/12/2017,CHILDRENS SERVICES,GRO HM PASSPORT OFFICE,04/10/2017,H59620171005RXPNJHMBY-1,-23.40,SAFEGUARDING & FAMILY SUPPORT-REGISTRAR OF BIRTHS/DEATHS/MAR,GOVERNMENT SERVICES,GPC
WALSALL COUNCIL,HTTP://OPENDATACOMMUNITIES.ORG/ID/METROPOLITAN-DISTRICT-COUNCIL/WALSALL,31/12/2017,CHANGE & GOVERNANCE,BULL DOG APPLIANCES LT,04/10/2017,H59620171005RXVGXNOBQ-1,474.00,WALSALL CRISIS SUPPORT SCHEME-FURNITURE & EQUIPMENT,HOUSEHOLD APPLIANCE STORES,GPC
WALSALL COUNCIL,HTTP://OPENDATACOMMUNITIES.ORG/ID/METROPOLITAN-DISTRICT-COUNCIL/WALSALL,31/12/2017,CHANGE & GOVERNANCE,NOBISCO LIMITED,04/10/2017,H59620171005SIRQJUDFQ-1,212.75,CA BUSILL JONES PRIMARY SCHOOL-FURNITURE & EQUIPMENT,OTHER INDUSTRIAL SUPPLIES,GPC
WALSALL COUNCIL,HTTP://OPENDATACOMMUNITIES.ORG/ID/METROPOLITAN-DISTRICT-COUNCIL/WALSALL,31/12/2017,CHILDRENS SERVICES,WWW.ARGOS.CO.UK,04/10/2017,H59620171005SJJVMYYFK-1,147.93,PELSALL EDC-MAINTENANCE-FURNITURE & EQUIPM,DISCOUNT STORES,GPC
WALSALL COUNCIL,HTTP://OPENDATACOMMUNITIES.ORG/ID/METROPOLITAN-DISTRICT-COUNCIL/WALSALL,31/12/2017,CHILDRENS SERVICES,TRAVELODGE GB0000,04/10/2017,H59620171005SLGVYDZMC-1,57.00,LOOKED AFTER CHILDRENS SOCIAL -HOTEL ACCOMMODATION-EMPLOYEES,TRAVELODGE,GPC
WALSALL COUNCIL,HTTP://OPENDATACOMMUNITIES.ORG/ID/METROPOLITAN-DISTRICT-COUNCIL/WALSALL,31/12/2017,CHILDRENS SERVICES,AMAZON UK MARKETPLACE,04/10/2017,H59620171005SNSNGZKJT-1,59.99,READING ZONE-GENERAL MATERIALS,BOOK STORES,GPC
WALSALL COUNCIL,HTTP://OPENDATACOMMUNITIES.ORG/ID/METROPOLITAN-DISTRICT-COUNCIL/WALSALL,31/12/2017,CHANGE & GOVERNANCE,PARK INN BY RADISSON,04/10/2017,H59620171005TCTBHSWRN-1,782.00,BED & BREAKFAST PAYMENTS-HOTEL ACCOMMODATION-EMPLOYEES,"HOTELS, MOTELS, RESORTS",GPC
WALSALL COUNCIL,HTTP://OPENDATACOMMUNITIES.ORG/ID/METROPOLITAN-DISTRICT-COUNCIL/WALSALL,31/12/2017,CHANGE & GOVERNANCE,ARTHUR BRETT CATER,04/10/2017,H59620171005TELBOQWHY-1,23.95,CA BLOXWICH C.E. JMI PRIMARY S-FRUIT & VEGETABLES OTHER-PROVI,MISCELLANEOUS FOOD STORES & CONVENIENCE STORES,GPC
WALSALL COUNCIL,HTTP://OPENDATACOMMUNITIES.ORG/ID/METROPOLITAN-DISTRICT-COUNCIL/WALSALL,31/12/2017,CHILDRENS SERVICES,WWW.BARRBEACON.WALSALL,04/10/2017,H59620171005TFOZRVABV-1,15.00,REDRUTH ROAD-RESIDENTS PERSONAL EXPENSES-AL,"SCHOOLS, ELEMENTARY AND SECONDARY",GPC
WALSALL COUNCIL,HTTP://OPENDATACOMMUNITIES.ORG/ID/METROPOLITAN-DISTRICT-COUNCIL/WALSALL,31/12/2017,CHANGE & GOVERNANCE,NOBISCO LIMITED,04/10/2017,H59620171005TKKRMVVZM-1,96.44,CA BEACON PRIMARY SCHOOL-DISPOSABLES-PROVISIONS,OTHER INDUSTRIAL SUPPLIES,GPC
WALSALL COUNCIL,HTTP://OPENDATACOMMUNITIES.ORG/ID/METROPOLITAN-DISTRICT-COUNCIL/WALSALL,31/12/2017,CHANGE & GOVERNANCE,NOBISCO LIMITED,04/10/2017,H59620171005TKYKKKBWH-1,23.48,CA FIBBERSLEY PARK PRIMARY SCH-DISPOSABLES-PROVISIONS,OTHER INDUSTRIAL SUPPLIES,GPC
WALSALL COUNCIL,HTTP://OPENDATACOMMUNITIES.ORG/ID/METROPOLITAN-DISTRICT-COUNCIL/WALSALL,31/12/2017,CHANGE & GOVERNANCE,ARTHUR BRETT CATER,04/10/2017,H59620171005TLWRGJUVQ-1,85.36,CA OLD HALL SPECIAL SCHOOL-FRUIT & VEGETABLES OTHER-PROVI,MISCELLANEOUS FOOD STORES & CONVENIENCE STORES,GPC
WALSALL COUNCIL,HTTP://OPENDATACOMMUNITIES.ORG/ID/METROPOLITAN-DISTRICT-COUNCIL/WALSALL,31/12/2017,CHANGE & GOVERNANCE,ARTHUR BRETT CATER,04/10/2017,H59620171005TRBJSMWLH-1,17.86,CA CASTLEFORT JMI SCHOOL-FRUIT & VEGETABLES OTHER-PROVI,MISCELLANEOUS FOOD STORES & CONVENIENCE STORES,GPC
WALSALL COUNCIL,HTTP://OPENDATACOMMUNITIES.ORG/ID/METROPOLITAN-DISTRICT-COUNCIL/WALSALL,31/12/2017,CHILDRENS SERVICES,LIDL UK,04/10/2017,H59620171005TYFDTXDQH-1,42.84,SPINDLETREE-FOOD AND BEVERAGES-PROVISIONS,GROCERY STORES AND SUPERMARKETS,GPC
WALSALL COUNCIL,HTTP://OPENDATACOMMUNITIES.ORG/ID/METROPOLITAN-DISTRICT-COUNCIL/WALSALL,31/12/2017,CHANGE & GOVERNANCE,TRAINLINE,04/10/2017,H59620171005UBTVEENVE-1,181.05,LAW LIBRARY-OFFICER/STAFF-PUBLIC TRANSPORT,PASSENGER RAILWAYS,GPC
WALSALL COUNCIL,HTTP://OPENDATACOMMUNITIES.ORG/ID/METROPOLITAN-DISTRICT-COUNCIL/WALSALL,31/12/2017,CHANGE & GOVERNANCE,ARTHUR BRETT CATER,04/10/2017,H59620171005UDBQANGND-1,99.16,CA BUSILL JONES PRIMARY SCHOOL-FOOD AND BEVERAGES-PROVISIONS,MISCELLANEOUS FOOD STORES & CONVENIENCE STORES,GPC
WALSALL COUNCIL,HTTP://OPENDATACOMMUNITIES.ORG/ID/METROPOLITAN-DISTRICT-COUNCIL/WALSALL,31/12/2017,CHANGE & GOVERNANCE,ARTHUR BRETT CATER,04/10/2017,H59620171005UFMJAWCIE-1,62.34,CA WATLING STREET PRIMARY SCHO-FRUIT & VEGETABLES OTHER-PROVI,MISCELLANEOUS FOOD STORES & CONVENIENCE STORES,GPC
WALSALL COUNCIL,HTTP://OPENDATACOMMUNITIES.ORG/ID/METROPOLITAN-DISTRICT-COUNCIL/WALSALL,31/12/2017,CHILDRENS SERVICES,WALSALL COUNCIL,04/10/2017,H59620171005ULQHFDHLH-1,32.00,SAFEGUARDING & FAMILY SUPPORT-REGISTRAR OF BIRTHS/DEATHS/MAR,GOVERNMENT SERVICES,GPC
WALSALL COUNCIL,HTTP://OPENDATACOMMUNITIES.ORG/ID/METROPOLITAN-DISTRICT-COUNCIL/WALSALL,31/12/2017,CHANGE & GOVERNANCE,ARTHUR BRETT CATER,04/10/2017,H59620171005UVKULYNBP-1,33.97,CA ST BERNADETTES CATHOLIC PRI-FOOD AND BEVERAGES-PROVISIONS,MISCELLANEOUS FOOD STORES & CONVENIENCE STORES,GPC
WALSALL COUNCIL,HTTP://OPENDATACOMMUNITIES.ORG/ID/METROPOLITAN-DISTRICT-COUNCIL/WALSALL,31/12/2017,ECONOMY & ENVIRONMENT,BANNER GROUP LTD,04/10/2017,H59620171005VAODTIYXS-1,0.62,OAK PARK-STATIONERY & GENERAL SUPPLIES-,"OFFICE, SCHOOL SUPPLY, AND STATIONERY STORES",GPC
WALSALL COUNCIL,HTTP://OPENDATACOMMUNITIES.ORG/ID/METROPOLITAN-DISTRICT-COUNCIL/WALSALL,31/12/2017,CHANGE & GOVERNANCE,ASDA STORES LTD 4225,04/10/2017,H59620171005VTILWWWWI-1,75.08,YOUNG PERSONS HOMELESS SERVICE-MISCELLANEOUS SUPPLIES,GROCERY STORES AND SUPERMARKETS,GPC
WALSALL COUNCIL,HTTP://OPENDATACOMMUNITIES.ORG/ID/METROPOLITAN-DISTRICT-COUNCIL/WALSALL,31/12/2017,CHANGE & GOVERNANCE,ARTHUR BRETT CATER,04/10/2017,H59620171005WCRTPTCLA-1,67.76,CA BROWNHILLS WEST PRIMARY SCH-FRUIT & VEGETABLES OTHER-PROVI,MISCELLANEOUS FOOD STORES & CONVENIENCE STORES,GPC
WALSALL COUNCIL,HTTP://OPENDATACOMMUNITIES.ORG/ID/METROPOLITAN-DISTRICT-COUNCIL/WALSALL,31/12/2017,CHANGE & GOVERNANCE,WP ENGINE,04/10/2017,H59620171005XGRXEXOPF-1,188.33,ICT INCOME-COMPUTER EQUIPMENT AND SUPPLIE,"COMPUTER PROGRAM, SYSTEM DESIGN",GPC
WALSALL COUNCIL,HTTP://OPENDATACOMMUNITIES.ORG/ID/METROPOLITAN-DISTRICT-COUNCIL/WALSALL,31/12/2017,CHANGE & GOVERNANCE,BCC REGISTER OFFIC,04/10/2017,H59620171005XNMXLDAVE-1,-10.00,WALSALL CRISIS SUPPORT SCHEME-CRISIS SUPPORT PAYMENTS,GOVERNMENT SERVICES,GPC
WALSALL COUNCIL,HTTP://OPENDATACOMMUNITIES.ORG/ID/METROPOLITAN-DISTRICT-COUNCIL/WALSALL,31/12/2017,CHANGE & GOVERNANCE,ARTHUR BRETT CATER,04/10/2017,H59620171005XQHMAGYOD-1,59.43,CA BUSILL JONES PRIMARY SCHOOL-FOOD AND BEVERAGES-PROVISIONS,MISCELLANEOUS FOOD STORES & CONVENIENCE STORES,GPC
WALSALL COUNCIL,HTTP://OPENDATACOMMUNITIES.ORG/ID/METROPOLITAN-DISTRICT-COUNCIL/WALSALL,31/12/2017,CHILDRENS SERVICES,FIRST BUS,04/10/2017,H59620171005XWPKOFZWC-1,20.00,TRANSITION AND LEAVING CARE PL-OTHER-TRAVEL ALLOWANCES,BUS LINES,GPC
WALSALL COUNCIL,HTTP://OPENDATACOMMUNITIES.ORG/ID/METROPOLITAN-DISTRICT-COUNCIL/WALSALL,31/12/2017,CHANGE & GOVERNANCE,NOBISCO LIMITED,04/10/2017,H59620171005XYGDIAHIS-1,63.44,CA CASTLEFORT JMI SCHOOL-DISPOSABLES-PROVISIONS,OTHER INDUSTRIAL SUPPLIES,GPC
WALSALL COUNCIL,HTTP://OPENDATACOMMUNITIES.ORG/ID/METROPOLITAN-DISTRICT-COUNCIL/WALSALL,31/12/2017,CHANGE & GOVERNANCE,AMAZON UK MARKETPLACE,04/10/2017,H59620171005YJJPVFUDG-1,5.65,TENANCY SERVICE-LIBRARY BOOKS,BOOK STORES,GPC
WALSALL COUNCIL,HTTP://OPENDATACOMMUNITIES.ORG/ID/METROPOLITAN-DISTRICT-COUNCIL/WALSALL,31/12/2017,CHANGE & GOVERNANCE,NOBISCO LIMITED,04/10/2017,H59620171005YLQPNNEYH-1,94.69,CA MOORCROFT WOOD-DISPOSABLES-PROVISIONS,OTHER INDUSTRIAL SUPPLIES,GPC
WALSALL COUNCIL,HTTP://OPENDATACOMMUNITIES.ORG/ID/METROPOLITAN-DISTRICT-COUNCIL/WALSALL,31/12/2017,CHANGE & GOVERNANCE,NOBISCO LIMITED,04/10/2017,H59620171005YMHFZISSO-1,76.76,CA BARCROFT D/C-DISPOSABLES-PROVISIONS,OTHER INDUSTRIAL SUPPLIES,GPC
WALSALL COUNCIL,HTTP://OPENDATACOMMUNITIES.ORG/ID/METROPOLITAN-DISTRICT-COUNCIL/WALSALL,31/12/2017,CHANGE & GOVERNANCE,BULL DOG APPLIANCES LT,04/10/2017,H59620171005YTOHMGKSK-1,156.00,TENANCY SERVICE-FURNITURE & EQUIPMENT,HOUSEHOLD APPLIANCE STORES,GPC
WALSALL COUNCIL,HTTP://OPENDATACOMMUNITIES.ORG/ID/METROPOLITAN-DISTRICT-COUNCIL/WALSALL,31/12/2017,CHANGE & GOVERNANCE,BULL DOG APPLIANCES LT,04/10/2017,H59620171005ZJFTUCXBU-1,348.00,WALSALL CRISIS SUPPORT SCHEME-CRISIS SUPPORT PAYMENTS,HOUSEHOLD APPLIANCE STORES,GPC
WALSALL COUNCIL,HTTP://OPENDATACOMMUNITIES.ORG/ID/METROPOLITAN-DISTRICT-COUNCIL/WALSALL,31/12/2017,CHANGE & GOVERNANCE,ARTHUR BRETT CATER,04/10/2017,H59620171005ZMFFOLWVV-1,39.92,CA OAKWOOD SPECIAL SCHOOL-FRUIT & VEGETABLES OTHER-PROVI,MISCELLANEOUS FOOD STORES & CONVENIENCE STORES,GPC
WALSALL COUNCIL,HTTP://OPENDATACOMMUNITIES.ORG/ID/METROPOLITAN-DISTRICT-COUNCIL/WALSALL,31/12/2017,CHANGE & GOVERNANCE,BLAKEMORE FOODSERVICE,05/10/2017,H59620171006AEXWGDLDM-1,141.95,CA OAKWOOD SPECIAL SCHOOL-FROZEN FOODS-PROVISIONS,CATERERS,GPC
WALSALL COUNCIL,HTTP://OPENDATACOMMUNITIES.ORG/ID/METROPOLITAN-DISTRICT-COUNCIL/WALSALL,31/12/2017,CHANGE & GOVERNANCE,BLAKEMORE FOODSERVICE,05/10/2017,H59620171006AMELYPYIL-1,103.01,CA LEIGHSWOOD PRIMARY SCHOOL-DRY FOODS-PROVISIONS,CATERERS,GPC
WALSALL COUNCIL,HTTP://OPENDATACOMMUNITIES.ORG/ID/METROPOLITAN-DISTRICT-COUNCIL/WALSALL,31/12/2017,CHANGE & GOVERNANCE,BLAKEMORE FOODSERVICE,05/10/2017,H59620171006AMELYPYIL-2,208.14,CA LEIGHSWOOD PRIMARY SCHOOL-DRY FOODS-PROVISIONS,CATERERS,GPC
WALSALL COUNCIL,HTTP://OPENDATACOMMUNITIES.ORG/ID/METROPOLITAN-DISTRICT-COUNCIL/WALSALL,31/12/2017,ECONOMY & ENVIRONMENT,WWW.LEWIS-PLAST.CO.UK,05/10/2017,H59620171006AYEDTEBBR-1,65.84,LIBRARY OPERATIONS - WALSALL N-STATIONERY & GENERAL SUPPLIES-,DENTAL/LABORATORY/MEDICAL EQUIPMENT & SUPPLIES,GPC
WALSALL COUNCIL,HTTP://OPENDATACOMMUNITIES.ORG/ID/METROPOLITAN-DISTRICT-COUNCIL/WALSALL,31/12/2017,CHILDRENS SERVICES,TRAINLINE,05/10/2017,H59620171006AZIEJPIDQ-1,19.63,"INFORMATION, ADVISE & SUPPORT -OTHER-TRAVEL ALLOWANCES",PASSENGER RAILWAYS,GPC
WALSALL COUNCIL,HTTP://OPENDATACOMMUNITIES.ORG/ID/METROPOLITAN-DISTRICT-COUNCIL/WALSALL,31/12/2017,CHILDRENS SERVICES,AMAZON UK RETAIL,05/10/2017,H59620171006BFNCSHNRB-1,62.31,HISTORY-GENERAL MATERIALS,OTHER DIRECT MARKETING-OTHER DIRECT MARKETERS,GPC
WALSALL COUNCIL,HTTP://OPENDATACOMMUNITIES.ORG/ID/METROPOLITAN-DISTRICT-COUNCIL/WALSALL,31/12/2017,CHILDRENS SERVICES,EB *OFSTED BIG CONVERS,05/10/2017,H59620171006BLPXXVDDN-1,14.00,EARLY YEARS-PROFESSIONAL FEES AND SERVICES,OTHER BUSINESS SERVICES,GPC
WALSALL COUNCIL,HTTP://OPENDATACOMMUNITIES.ORG/ID/METROPOLITAN-DISTRICT-COUNCIL/WALSALL,31/12/2017,CHILDRENS SERVICES,DUNELM (SOFT FURNISHIN,05/10/2017,H59620171006BNYOCWYCV-1,17.99,SPINDLETREE-FURNITURE & EQUIPMENT,"DRAPERY, UPHOLSTERY, AND WINDOW COVERINGS STORES",GPC
WALSALL COUNCIL,HTTP://OPENDATACOMMUNITIES.ORG/ID/METROPOLITAN-DISTRICT-COUNCIL/WALSALL,31/12/2017,ECONOMY & ENVIRONMENT,TOOLSTATION LTD,05/10/2017,H59620171006CDKVFXKPN-1,21.35,DEPOT-GENERAL MATERIALS,HARDWARE STORES,GPC
WALSALL COUNCIL,HTTP://OPENDATACOMMUNITIES.ORG/ID/METROPOLITAN-DISTRICT-COUNCIL/WALSALL,31/12/2017,CHANGE & GOVERNANCE,BLAKEMORE FOODSERVICE,05/10/2017,H59620171006CDWGNUBIQ-1,12.28,CA BLUE COAT C OF E PERFORMING-CATERING,CATERERS,GPC
WALSALL COUNCIL,HTTP://OPENDATACOMMUNITIES.ORG/ID/METROPOLITAN-DISTRICT-COUNCIL/WALSALL,31/12/2017,ECONOMY & ENVIRONMENT,BANNER GROUP LTD,05/10/2017,H59620171006CLOFXYXMH-1,6.56,CENTRALISED STATIONARY-STATIONERY & GENERAL SUPPLIES-,"OFFICE, SCHOOL SUPPLY, AND STATIONERY STORES",GPC
WALSALL COUNCIL,HTTP://OPENDATACOMMUNITIES.ORG/ID/METROPOLITAN-DISTRICT-COUNCIL/WALSALL,31/12/2017,CHANGE & GOVERNANCE,BLAKEMORE FOODSERVICE,05/10/2017,H59620171006CQRBKJQVY-1,462.91,CA BLUE COAT C OF E PERFORMING-FROZEN FOODS-PROVISIONS,CATERERS,GPC
WALSALL COUNCIL,HTTP://OPENDATACOMMUNITIES.ORG/ID/METROPOLITAN-DISTRICT-COUNCIL/WALSALL,31/12/2017,SOCIAL CARE & INCLUSION,WALSALL WOOD,05/10/2017,H59620171006CUOPWYCEF-1,38.12,TELE-HEALTHCARE-LOOSE TOOLS & CONSUMABLES,LUMBER & BUILDING MATERIALS STORES,GPC
WALSALL COUNCIL,HTTP://OPENDATACOMMUNITIES.ORG/ID/METROPOLITAN-DISTRICT-COUNCIL/WALSALL,31/12/2017,CHANGE & GOVERNANCE,BLAKEMORE FOODSERVICE,05/10/2017,H59620171006CYALTXTYR-1,221.11,CA COOPER JORDAN CE PRIMARY SC-FROZEN FOODS-PROVISIONS,CATERERS,GPC
WALSALL COUNCIL,HTTP://OPENDATACOMMUNITIES.ORG/ID/METROPOLITAN-DISTRICT-COUNCIL/WALSALL,31/12/2017,CHANGE & GOVERNANCE,BLAKEMORE FOODSERVICE,05/10/2017,H59620171006CYALTXTYR-2,49.97,CA COOPER JORDAN CE PRIMARY SC-FROZEN FOODS-PROVISIONS,CATERERS,GPC
WALSALL COUNCIL,HTTP://OPENDATACOMMUNITIES.ORG/ID/METROPOLITAN-DISTRICT-COUNCIL/WALSALL,31/12/2017,CHANGE & GOVERNANCE,CRAZY HOUSE FURNITURE,05/10/2017,H59620171006DHDWJBRJH-1,95.00,YOUNG PERSONS HOMELESS SERVICE-MISCELLANEOUS SUPPLIES,MISCELLANEOUS HOUSE FURNISHING SPECIALTY SHOPS,GPC
WALSALL COUNCIL,HTTP://OPENDATACOMMUNITIES.ORG/ID/METROPOLITAN-DISTRICT-COUNCIL/WALSALL,31/12/2017,CHANGE & GOVERNANCE,CRAZY HOUSE FURNITURE,05/10/2017,H59620171006DMGFHJLQZ-1,95.00,WALSALL CRISIS SUPPORT SCHEME-FURNITURE & EQUIPMENT,MISCELLANEOUS HOUSE FURNISHING SPECIALTY SHOPS,GPC
WALSALL COUNCIL,HTTP://OPENDATACOMMUNITIES.ORG/ID/METROPOLITAN-DISTRICT-COUNCIL/WALSALL,31/12/2017,ECONOMY & ENVIRONMENT,AMAZON.CO.UK,05/10/2017,H59620171006DMXWYYLPD-1,14.95,BLOXWICH LEISURE CENTRE-MAINTENANCE-FURNITURE & EQUIPM,BOOK STORES,GPC
WALSALL COUNCIL,HTTP://OPENDATACOMMUNITIES.ORG/ID/METROPOLITAN-DISTRICT-COUNCIL/WALSALL,31/12/2017,CHANGE & GOVERNANCE,BLAKEMORE FOODSERVICE,05/10/2017,H59620171006DZQBQPHMD-1,195.62,CA BROWNHILLS WEST PRIMARY SCH-FROZEN FOODS-PROVISIONS,CATERERS,GPC
WALSALL COUNCIL,HTTP://OPENDATACOMMUNITIES.ORG/ID/METROPOLITAN-DISTRICT-COUNCIL/WALSALL,31/12/2017,CHANGE & GOVERNANCE,BLAKEMORE FOODSERVICE,05/10/2017,H59620171006DZQBQPHMD-2,16.63,CA BROWNHILLS WEST PRIMARY SCH-FROZEN FOODS-PROVISIONS,CATERERS,GPC
WALSALL COUNCIL,HTTP://OPENDATACOMMUNITIES.ORG/ID/METROPOLITAN-DISTRICT-COUNCIL/WALSALL,31/12/2017,CHANGE & GOVERNANCE,CRAZY HOUSE FURNITURE,05/10/2017,H59620171006EGIBWWIAT-1,120.00,WALSALL CRISIS SUPPORT SCHEME-FURNITURE & EQUIPMENT,MISCELLANEOUS HOUSE FURNISHING SPECIALTY SHOPS,GPC
WALSALL COUNCIL,HTTP://OPENDATACOMMUNITIES.ORG/ID/METROPOLITAN-DISTRICT-COUNCIL/WALSALL,31/12/2017,CHILDRENS SERVICES,AMAZON UK MARKETPLACE,05/10/2017,H59620171006EGLNHCXZR-1,29.99,CONTINGENCY-NEW-FURNITURE & EQUIPMENT,BOOK STORES,GPC
WALSALL COUNCIL,HTTP://OPENDATACOMMUNITIES.ORG/ID/METROPOLITAN-DISTRICT-COUNCIL/WALSALL,31/12/2017,ECONOMY & ENVIRONMENT,ASDA SUPERSTORE,05/10/2017,H59620171006EMPERGDWI-1,26.25,BLOXWICH LEISURE CENTRE-FOOD AND BEVERAGES-PROVISIONS,GROCERY STORES AND SUPERMARKETS,GPC
WALSALL COUNCIL,HTTP://OPENDATACOMMUNITIES.ORG/ID/METROPOLITAN-DISTRICT-COUNCIL/WALSALL,31/12/2017,CHILDRENS SERVICES,COMFORT BEDS AND F,05/10/2017,H59620171006EOXHPVNPG-1,200.00,SAFEGUARDING & FAMILY SUPPORT-SECTION 1/17CHILD CARE ACT 198,"EQUIPMENT, FURNITURE, AND HOME FURNISHINGS STORES ",GPC
WALSALL COUNCIL,HTTP://OPENDATACOMMUNITIES.ORG/ID/METROPOLITAN-DISTRICT-COUNCIL/WALSALL,31/12/2017,CHILDRENS SERVICES,TRAVEL WEST MIDLAN,05/10/2017,H59620171006EWKJCGENY-1,31.25,57 LICHFIELD ROAD-RESIDENTS PERSONAL EXPENSES-AL,BUS LINES,GPC
WALSALL COUNCIL,HTTP://OPENDATACOMMUNITIES.ORG/ID/METROPOLITAN-DISTRICT-COUNCIL/WALSALL,31/12/2017,CHANGE & GOVERNANCE,BLAKEMORE FOODSERVICE,05/10/2017,H59620171006EXGRIZJTJ-1,268.37,CA OLD HALL SPECIAL SCHOOL-DRY FOODS-PROVISIONS,CATERERS,GPC
WALSALL COUNCIL,HTTP://OPENDATACOMMUNITIES.ORG/ID/METROPOLITAN-DISTRICT-COUNCIL/WALSALL,31/12/2017,CHANGE & GOVERNANCE,BLAKEMORE FOODSERVICE,05/10/2017,H59620171006FCIWZQAHH-1,447.20,CA ELMORE GREEN PRIMARY SCHOOL-CATERING,CATERERS,GPC
WALSALL COUNCIL,HTTP://OPENDATACOMMUNITIES.ORG/ID/METROPOLITAN-DISTRICT-COUNCIL/WALSALL,31/12/2017,CHANGE & GOVERNANCE,WELSH BROS FOODS LTD,05/10/2017,H59620171006FDIEOYJSE-1,41.71,CA FIBBERSLEY PARK PRIMARY SCH-MEAT-PROVISIONS,FREEZER AND LOCKER MEAT PROVISIONERS,GPC
WALSALL COUNCIL,HTTP://OPENDATACOMMUNITIES.ORG/ID/METROPOLITAN-DISTRICT-COUNCIL/WALSALL,31/12/2017,CHILDRENS SERVICES,AMAZON UK RETAIL,05/10/2017,H59620171006FHZZBGPTN-1,75.00,CONTINGENCY-NEW-FURNITURE & EQUIPMENT,OTHER DIRECT MARKETING-OTHER DIRECT MARKETERS,GPC
WALSALL COUNCIL,HTTP://OPENDATACOMMUNITIES.ORG/ID/METROPOLITAN-DISTRICT-COUNCIL/WALSALL,31/12/2017,CHANGE & GOVERNANCE,BLAKEMORE FOODSERVICE,05/10/2017,H59620171006FJSJXJCFJ-1,187.37,CA BEACON PRIMARY SCHOOL-DRY FOODS-PROVISIONS,CATERERS,GPC
WALSALL COUNCIL,HTTP://OPENDATACOMMUNITIES.ORG/ID/METROPOLITAN-DISTRICT-COUNCIL/WALSALL,31/12/2017,CHANGE & GOVERNANCE,BLAKEMORE FOODSERVICE,05/10/2017,H59620171006FNVZHNNBJ-1,179.96,CA WATLING STREET PRIMARY SCHO-CATERING,CATERERS,GPC
WALSALL COUNCIL,HTTP://OPENDATACOMMUNITIES.ORG/ID/METROPOLITAN-DISTRICT-COUNCIL/WALSALL,31/12/2017,CHANGE & GOVERNANCE,WELSH BROS FOODS LTD,05/10/2017,H59620171006FSMOVDJCY-1,83.22,CA COOPER JORDAN CE PRIMARY SC-MEAT-PROVISIONS,FREEZER AND LOCKER MEAT PROVISIONERS,GPC
WALSALL COUNCIL,HTTP://OPENDATACOMMUNITIES.ORG/ID/METROPOLITAN-DISTRICT-COUNCIL/WALSALL,31/12/2017,CHANGE & GOVERNANCE,COUNTY HOTEL - THE,05/10/2017,H59620171006FTPSRDWCE-1,327.00,BED & BREAKFAST PAYMENTS-HOTEL ACCOMMODATION-EMPLOYEES,"HOTELS, MOTELS, RESORTS",GPC
WALSALL COUNCIL,HTTP://OPENDATACOMMUNITIES.ORG/ID/METROPOLITAN-DISTRICT-COUNCIL/WALSALL,31/12/2017,CHANGE & GOVERNANCE,BLAKEMORE FOODSERVICE,05/10/2017,H59620171006FXNWFLDLD-1,77.26,CA LINDENS PRIMARY SCHOOL-DRY FOODS-PROVISIONS,CATERERS,GPC
WALSALL COUNCIL,HTTP://OPENDATACOMMUNITIES.ORG/ID/METROPOLITAN-DISTRICT-COUNCIL/WALSALL,31/12/2017,CHANGE & GOVERNANCE,BLAKEMORE FOODSERVICE,05/10/2017,H59620171006FXNWFLDLD-2,162.29,CA LINDENS PRIMARY SCHOOL-DRY FOODS-PROVISIONS,CATERERS,GPC
WALSALL COUNCIL,HTTP://OPENDATACOMMUNITIES.ORG/ID/METROPOLITAN-DISTRICT-COUNCIL/WALSALL,31/12/2017,CHANGE & GOVERNANCE,BLAKEMORE FOODSERVICE,05/10/2017,H59620171006GMJGKLLKD-1,474.99,CA BUSILL JONES PRIMARY SCHOOL-CATERING,CATERERS,GPC
WALSALL COUNCIL,HTTP://OPENDATACOMMUNITIES.ORG/ID/METROPOLITAN-DISTRICT-COUNCIL/WALSALL,31/12/2017,CHANGE & GOVERNANCE,BLAKEMORE FOODSERVICE,05/10/2017,H59620171006GQQBVSDGY-1,91.88,CA MOORCROFT WOOD-DRY FOODS-PROVISIONS,CATERERS,GPC
WALSALL COUNCIL,HTTP://OPENDATACOMMUNITIES.ORG/ID/METROPOLITAN-DISTRICT-COUNCIL/WALSALL,31/12/2017,CHANGE & GOVERNANCE,BLAKEMORE FOODSERVICE,05/10/2017,H59620171006GQQBVSDGY-2,288.52,CA MOORCROFT WOOD-DRY FOODS-PROVISIONS,CATERERS,GPC
WALSALL COUNCIL,HTTP://OPENDATACOMMUNITIES.ORG/ID/METROPOLITAN-DISTRICT-COUNCIL/WALSALL,31/12/2017,CHANGE & GOVERNANCE,BLAKEMORE FOODSERVICE,05/10/2017,H59620171006GRBNKIRYP-1,195.16,CA ST MICHAELS C.E. PRIMARY SC-FROZEN FOODS-PROVISIONS,CATERERS,GPC
WALSALL COUNCIL,HTTP://OPENDATACOMMUNITIES.ORG/ID/METROPOLITAN-DISTRICT-COUNCIL/WALSALL,31/12/2017,CHILDRENS SERVICES,ARGOS WALSALL CROW,05/10/2017,H59620171006GRRJWGESM-1,228.94,PARENTING TEAM - SCHOOL READY-NEW-FURNITURE & EQUIPMENT,DISCOUNT STORES,GPC
WALSALL COUNCIL,HTTP://OPENDATACOMMUNITIES.ORG/ID/METROPOLITAN-DISTRICT-COUNCIL/WALSALL,31/12/2017,CHANGE & GOVERNANCE,BLAKEMORE FOODSERVICE,05/10/2017,H59620171006GVUVWSMDH-1,82.16,TOWN HALL RESTAURANT BISTRO-FROZEN FOODS-PROVISIONS,CATERERS,GPC
WALSALL COUNCIL,HTTP://OPENDATACOMMUNITIES.ORG/ID/METROPOLITAN-DISTRICT-COUNCIL/WALSALL,31/12/2017,CHILDRENS SERVICES,AMAZON UK RETAIL,05/10/2017,H59620171006HMGGJMWCW-1,15.99,7 THE LIMES-EXTERNAL TRAINING,OTHER DIRECT MARKETING-OTHER DIRECT MARKETERS,GPC
WALSALL COUNCIL,HTTP://OPENDATACOMMUNITIES.ORG/ID/METROPOLITAN-DISTRICT-COUNCIL/WALSALL,31/12/2017,CHANGE & GOVERNANCE,CRAZY HOUSE FURNITURE,05/10/2017,H59620171006HOJKECLUX-1,440.00,YOUNG PERSONS HOMELESS SERVICE-FURNITURE & EQUIPMENT,MISCELLANEOUS HOUSE FURNISHING SPECIALTY SHOPS,GPC
WALSALL COUNCIL,HTTP://OPENDATACOMMUNITIES.ORG/ID/METROPOLITAN-DISTRICT-COUNCIL/WALSALL,31/12/2017,SOCIAL CARE & INCLUSION,CARESHOP,05/10/2017,H59620171006HVFZCKCVT-1,63.36,FALLINGS HEATH-GENERAL MATERIALS,MISCELLANEOUS AND SPECIALTY RETAIL STORES,GPC
WALSALL COUNCIL,HTTP://OPENDATACOMMUNITIES.ORG/ID/METROPOLITAN-DISTRICT-COUNCIL/WALSALL,31/12/2017,ECONOMY & ENVIRONMENT,MATALAN.CO.UK,05/10/2017,H59620171006HXVKQANST-1,14.00,YEI ESF FUNDING-PROFESSIONAL FEES AND SERVICES,MENS AND WOMENS CLOTHING STORES,GPC
WALSALL COUNCIL,HTTP://OPENDATACOMMUNITIES.ORG/ID/METROPOLITAN-DISTRICT-COUNCIL/WALSALL,31/12/2017,ECONOMY & ENVIRONMENT,MATALAN.CO.UK,05/10/2017,H59620171006HXVKQANST-2,14.00,YEI (IMPACT) PROGRAMME-PROFESSIONAL FEES AND SERVICES,MENS AND WOMENS CLOTHING STORES,GPC
WALSALL COUNCIL,HTTP://OPENDATACOMMUNITIES.ORG/ID/METROPOLITAN-DISTRICT-COUNCIL/WALSALL,31/12/2017,CHANGE & GOVERNANCE,BRITANNIA,05/10/2017,H59620171006HYBIISCMP-1,267.00,BED & BREAKFAST PAYMENTS-HOTEL ACCOMMODATION-EMPLOYEES,"HOTELS, MOTELS, RESORTS",GPC
WALSALL COUNCIL,HTTP://OPENDATACOMMUNITIES.ORG/ID/METROPOLITAN-DISTRICT-COUNCIL/WALSALL,31/12/2017,CHILDRENS SERVICES,COMFORT BEDS AND F,05/10/2017,H59620171006HZMYBDPEA-1,100.00,SAFEGUARDING & FAMILY SUPPORT-SECTION 1/17CHILD CARE ACT 198,"EQUIPMENT, FURNITURE, AND HOME FURNISHINGS STORES ",GPC
WALSALL COUNCIL,HTTP://OPENDATACOMMUNITIES.ORG/ID/METROPOLITAN-DISTRICT-COUNCIL/WALSALL,31/12/2017,CHANGE & GOVERNANCE,LANCASTER JAGUAR WOLVE,05/10/2017,H59620171006ICPTOCORE-1,400.00,MAYORAL TRANSPORT-MISCELLANEOUS SUPPLIES,"AUTOMOBILE SALES, SERVICE, REPAIRS",GPC
WALSALL COUNCIL,HTTP://OPENDATACOMMUNITIES.ORG/ID/METROPOLITAN-DISTRICT-COUNCIL/WALSALL,31/12/2017,ECONOMY & ENVIRONMENT,LUL TICKET MACHINE,05/10/2017,H59620171006IPYXETCWX-1,20.00,NEW ART GALLERY - ADMIN-OFFICER/STAFF-PUBLIC TRANSPORT,PASSENGER RAILWAYS,GPC
WALSALL COUNCIL,HTTP://OPENDATACOMMUNITIES.ORG/ID/METROPOLITAN-DISTRICT-COUNCIL/WALSALL,31/12/2017,CHANGE & GOVERNANCE,CRAZY HOUSE FURNITURE,05/10/2017,H59620171006JWILASONY-1,60.00,WALSALL CRISIS SUPPORT SCHEME-FURNITURE & EQUIPMENT,MISCELLANEOUS HOUSE FURNISHING SPECIALTY SHOPS,GPC
WALSALL COUNCIL,HTTP://OPENDATACOMMUNITIES.ORG/ID/METROPOLITAN-DISTRICT-COUNCIL/WALSALL,31/12/2017,CHANGE & GOVERNANCE,BLAKEMORE FOODSERVICE,05/10/2017,H59620171006JYMVNOQXI-1,341.92,CA ELMORE GREEN PRIMARY SCHOOL-CATERING,CATERERS,GPC
WALSALL COUNCIL,HTTP://OPENDATACOMMUNITIES.ORG/ID/METROPOLITAN-DISTRICT-COUNCIL/WALSALL,31/12/2017,CHANGE & GOVERNANCE,BLAKEMORE FOODSERVICE,05/10/2017,H59620171006KCEJXQVEL-1,288.24,CA BLUE COAT C OF E PERFORMING-DRY FOODS-PROVISIONS,CATERERS,GPC
WALSALL COUNCIL,HTTP://OPENDATACOMMUNITIES.ORG/ID/METROPOLITAN-DISTRICT-COUNCIL/WALSALL,31/12/2017,CHANGE & GOVERNANCE,BLAKEMORE FOODSERVICE,05/10/2017,H59620171006KCEJXQVEL-2,248.30,CA BLUE COAT C OF E PERFORMING-DRY FOODS-PROVISIONS,CATERERS,GPC
WALSALL COUNCIL,HTTP://OPENDATACOMMUNITIES.ORG/ID/METROPOLITAN-DISTRICT-COUNCIL/WALSALL,31/12/2017,CHANGE & GOVERNANCE,BLAKEMORE FOODSERVICE,05/10/2017,H59620171006KGQTDEEYO-1,78.01,CA OLD HALL SPECIAL SCHOOL-FROZEN FOODS-PROVISIONS,CATERERS,GPC
WALSALL COUNCIL,HTTP://OPENDATACOMMUNITIES.ORG/ID/METROPOLITAN-DISTRICT-COUNCIL/WALSALL,31/12/2017,CHANGE & GOVERNANCE,BLAKEMORE FOODSERVICE,05/10/2017,H59620171006KGXNOFUJL-1,53.94,CA ST JOHNS C.E. PRIMARY SCHOO-DRY FOODS-PROVISIONS,CATERERS,GPC
WALSALL COUNCIL,HTTP://OPENDATACOMMUNITIES.ORG/ID/METROPOLITAN-DISTRICT-COUNCIL/WALSALL,31/12/2017,CHANGE & GOVERNANCE,BLAKEMORE FOODSERVICE,05/10/2017,H59620171006KGXNOFUJL-2,669.36,CA ST JOHNS C.E. PRIMARY SCHOO-DRY FOODS-PROVISIONS,CATERERS,GPC
WALSALL COUNCIL,HTTP://OPENDATACOMMUNITIES.ORG/ID/METROPOLITAN-DISTRICT-COUNCIL/WALSALL,31/12/2017,CHANGE & GOVERNANCE,CRAZY HOUSE FURNITURE,05/10/2017,H59620171006KNIXYDFFY-1,65.00,WALSALL CRISIS SUPPORT SCHEME-FURNITURE & EQUIPMENT,MISCELLANEOUS HOUSE FURNISHING SPECIALTY SHOPS,GPC
WALSALL COUNCIL,HTTP://OPENDATACOMMUNITIES.ORG/ID/METROPOLITAN-DISTRICT-COUNCIL/WALSALL,31/12/2017,CHANGE & GOVERNANCE,BLAKEMORE FOODSERVICE,05/10/2017,H59620171006KQLMVCYLG-1,16.66,CA LEIGHSWOOD PRIMARY SCHOOL-FROZEN FOODS-PROVISIONS,CATERERS,GPC
WALSALL COUNCIL,HTTP://OPENDATACOMMUNITIES.ORG/ID/METROPOLITAN-DISTRICT-COUNCIL/WALSALL,31/12/2017,CHANGE & GOVERNANCE,BLAKEMORE FOODSERVICE,05/10/2017,H59620171006KQLMVCYLG-2,71.43,CA LEIGHSWOOD PRIMARY SCHOOL-FROZEN FOODS-PROVISIONS,CATERERS,GPC
WALSALL COUNCIL,HTTP://OPENDATACOMMUNITIES.ORG/ID/METROPOLITAN-DISTRICT-COUNCIL/WALSALL,31/12/2017,CHILDRENS SERVICES,ARGOS WALSALL CROW,05/10/2017,H59620171006KWLVZULZA-1,119.99,REDRUTH ROAD-NEW-FURNITURE & EQUIPMENT,DISCOUNT STORES,GPC
WALSALL COUNCIL,HTTP://OPENDATACOMMUNITIES.ORG/ID/METROPOLITAN-DISTRICT-COUNCIL/WALSALL,31/12/2017,CHANGE & GOVERNANCE,BLAKEMORE FOODSERVICE,05/10/2017,H59620171006LBULWHSQQ-1,515.55,CA RADLEYS PRIMARY SCHOOL-FROZEN FOODS-PROVISIONS,CATERERS,GPC
WALSALL COUNCIL,HTTP://OPENDATACOMMUNITIES.ORG/ID/METROPOLITAN-DISTRICT-COUNCIL/WALSALL,31/12/2017,CHANGE & GOVERNANCE,CRAZY HOUSE FURNITURE,05/10/2017,H59620171006LKBGKJQBZ-1,100.00,WALSALL CRISIS SUPPORT SCHEME-FURNITURE & EQUIPMENT,MISCELLANEOUS HOUSE FURNISHING SPECIALTY SHOPS,GPC
WALSALL COUNCIL,HTTP://OPENDATACOMMUNITIES.ORG/ID/METROPOLITAN-DISTRICT-COUNCIL/WALSALL,31/12/2017,ECONOMY & ENVIRONMENT,BANNER GROUP LTD,05/10/2017,H59620171006LMBISYSHS-1,12.14,ESF - COMMUNITY GRANTS-STATIONERY & GENERAL SUPPLIES-,"OFFICE, SCHOOL SUPPLY, AND STATIONERY STORES",GPC
WALSALL COUNCIL,HTTP://OPENDATACOMMUNITIES.ORG/ID/METROPOLITAN-DISTRICT-COUNCIL/WALSALL,31/12/2017,CHILDRENS SERVICES,LCS CONTAINER SERVICES,05/10/2017,H59620171006MGDTGQFCZ-1,93.00,PELSALL EDC-MAINTENANCE-FURNITURE & EQUIPM,"PUBLIC WAREHOUSING, FARM, & HOUSEHOLD GOODS",GPC
WALSALL COUNCIL,HTTP://OPENDATACOMMUNITIES.ORG/ID/METROPOLITAN-DISTRICT-COUNCIL/WALSALL,31/12/2017,CHILDRENS SERVICES,PAYPAL *TEACHIT,05/10/2017,H59620171006NETFCGCGL-1,35.00,ENGLISH (LITERACY)-GENERAL MATERIALS,"ORGANIZATIONS, CHARITABLE AND SOCIAL SERVICE",GPC
WALSALL COUNCIL,HTTP://OPENDATACOMMUNITIES.ORG/ID/METROPOLITAN-DISTRICT-COUNCIL/WALSALL,31/12/2017,CHILDRENS SERVICES,ASDA SUPERSTORE,05/10/2017,H59620171006NSDGQOIYT-1,11.17,BLAKENALL CHILDCARE SERVICES-FOOD AND BEVERAGES-PROVISIONS,GROCERY STORES AND SUPERMARKETS,GPC
WALSALL COUNCIL,HTTP://OPENDATACOMMUNITIES.ORG/ID/METROPOLITAN-DISTRICT-COUNCIL/WALSALL,31/12/2017,CHANGE & GOVERNANCE,CRAZY HOUSE FURNITURE,05/10/2017,H59620171006NXCPLJGSI-1,540.00,WALSALL CRISIS SUPPORT SCHEME-FURNITURE & EQUIPMENT,MISCELLANEOUS HOUSE FURNISHING SPECIALTY SHOPS,GPC
WALSALL COUNCIL,HTTP://OPENDATACOMMUNITIES.ORG/ID/METROPOLITAN-DISTRICT-COUNCIL/WALSALL,31/12/2017,ECONOMY & ENVIRONMENT,BANNER GROUP LTD,05/10/2017,H59620171006OBMDHVQKD-1,7.92,CENTRALISED STATIONARY-STATIONERY & GENERAL SUPPLIES-,"OFFICE, SCHOOL SUPPLY, AND STATIONERY STORES",GPC
WALSALL COUNCIL,HTTP://OPENDATACOMMUNITIES.ORG/ID/METROPOLITAN-DISTRICT-COUNCIL/WALSALL,31/12/2017,CHANGE & GOVERNANCE,CRAZY HOUSE FURNITURE,05/10/2017,H59620171006ODGNSOJXE-1,150.00,WALSALL CRISIS SUPPORT SCHEME-FURNITURE & EQUIPMENT,MISCELLANEOUS HOUSE FURNISHING SPECIALTY SHOPS,GPC
WALSALL COUNCIL,HTTP://OPENDATACOMMUNITIES.ORG/ID/METROPOLITAN-DISTRICT-COUNCIL/WALSALL,31/12/2017,CHILDRENS SERVICES,GRO HM PASSPORT OFFICE,05/10/2017,H59620171006ONREHNCGB-1,-9.25,CHILDRENS TAXI BUDGET-SECTION 1/17CHILD CARE ACT 198,GOVERNMENT SERVICES,GPC
WALSALL COUNCIL,HTTP://OPENDATACOMMUNITIES.ORG/ID/METROPOLITAN-DISTRICT-COUNCIL/WALSALL,31/12/2017,CHANGE & GOVERNANCE,BLAKEMORE FOODSERVICE,05/10/2017,H59620171006OYVXIKWNJ-1,239.25,CA FIBBERSLEY PARK PRIMARY SCH-DRY FOODS-PROVISIONS,CATERERS,GPC
WALSALL COUNCIL,HTTP://OPENDATACOMMUNITIES.ORG/ID/METROPOLITAN-DISTRICT-COUNCIL/WALSALL,31/12/2017,CHANGE & GOVERNANCE,BLAKEMORE FOODSERVICE,05/10/2017,H59620171006OYVXIKWNJ-2,41.06,CA FIBBERSLEY PARK PRIMARY SCH-DRY FOODS-PROVISIONS,CATERERS,GPC
WALSALL COUNCIL,HTTP://OPENDATACOMMUNITIES.ORG/ID/METROPOLITAN-DISTRICT-COUNCIL/WALSALL,31/12/2017,CHILDRENS SERVICES,POUNDLAND,05/10/2017,H59620171006PNVRFQWZE-1,32.10,REDRUTH ROAD-RESIDENTS PERSONAL EXPENSES-AL,DISCOUNT STORES,GPC
WALSALL COUNCIL,HTTP://OPENDATACOMMUNITIES.ORG/ID/METROPOLITAN-DISTRICT-COUNCIL/WALSALL,31/12/2017,CHILDRENS SERVICES,POUNDLAND,05/10/2017,H59620171006PNVRFQWZE-2,2.00,REDRUTH ROAD-RESIDENTS PERSONAL EXPENSES-AL,DISCOUNT STORES,GPC
WALSALL COUNCIL,HTTP://OPENDATACOMMUNITIES.ORG/ID/METROPOLITAN-DISTRICT-COUNCIL/WALSALL,31/12/2017,CHANGE & GOVERNANCE,PRIMARK 690,05/10/2017,H59620171006POONJLLYM-1,30.00,ACCOMMODATION SERVICES MANAGEM-CLOTHING & LAUNDRY,CLOTHING STORES,GPC
WALSALL COUNCIL,HTTP://OPENDATACOMMUNITIES.ORG/ID/METROPOLITAN-DISTRICT-COUNCIL/WALSALL,31/12/2017,CHANGE & GOVERNANCE,BLAKEMORE FOODSERVICE,05/10/2017,H59620171006PSWGPYKNY-1,18.20,CA BROWNHILLS WEST PRIMARY SCH-FROZEN FOODS-PROVISIONS,CATERERS,GPC
WALSALL COUNCIL,HTTP://OPENDATACOMMUNITIES.ORG/ID/METROPOLITAN-DISTRICT-COUNCIL/WALSALL,31/12/2017,CHANGE & GOVERNANCE,BLAKEMORE FOODSERVICE,05/10/2017,H59620171006PXFPIXUTL-1,47.79,CA LINDENS PRIMARY SCHOOL-DRY FOODS-PROVISIONS,CATERERS,GPC
WALSALL COUNCIL,HTTP://OPENDATACOMMUNITIES.ORG/ID/METROPOLITAN-DISTRICT-COUNCIL/WALSALL,31/12/2017,CHANGE & GOVERNANCE,ARTHUR BRETT CATER,05/10/2017,H59620171006QKGHFYSXO-1,63.62,TOWN HALL RESTAURANT BISTRO-MISC DAIRY PRODUCTS-PROVISIONS,MISCELLANEOUS FOOD STORES & CONVENIENCE STORES,GPC
WALSALL COUNCIL,HTTP://OPENDATACOMMUNITIES.ORG/ID/METROPOLITAN-DISTRICT-COUNCIL/WALSALL,31/12/2017,CHANGE & GOVERNANCE,BLAKEMORE FOODSERVICE,05/10/2017,H59620171006QMMYXDFDM-1,216.58,CA RUSHALL JMI SCHOOL-CATERING,CATERERS,GPC
WALSALL COUNCIL,HTTP://OPENDATACOMMUNITIES.ORG/ID/METROPOLITAN-DISTRICT-COUNCIL/WALSALL,31/12/2017,CHANGE & GOVERNANCE,BLAKEMORE FOODSERVICE,05/10/2017,H59620171006QVHUUPVND-1,33.31,CA LINDENS PRIMARY SCHOOL-FROZEN FOODS-PROVISIONS,CATERERS,GPC
WALSALL COUNCIL,HTTP://OPENDATACOMMUNITIES.ORG/ID/METROPOLITAN-DISTRICT-COUNCIL/WALSALL,31/12/2017,CHANGE & GOVERNANCE,BLAKEMORE FOODSERVICE,05/10/2017,H59620171006QVHUUPVND-2,495.28,CA LINDENS PRIMARY SCHOOL-FROZEN FOODS-PROVISIONS,CATERERS,GPC
WALSALL COUNCIL,HTTP://OPENDATACOMMUNITIES.ORG/ID/METROPOLITAN-DISTRICT-COUNCIL/WALSALL,31/12/2017,CHILDRENS SERVICES,TVLICENSING.CO.UK,05/10/2017,H59620171006QXEXZUOLL-1,147.00,TRANSITION AND LEAVING CARE PL-CONSULTANTS FEES,"CONSULTING, MANAGEMENT, AND PR SERVICES",GPC
WALSALL COUNCIL,HTTP://OPENDATACOMMUNITIES.ORG/ID/METROPOLITAN-DISTRICT-COUNCIL/WALSALL,31/12/2017,CHANGE & GOVERNANCE,CRAZY HOUSE FURNITURE,05/10/2017,H59620171006QZBQUYFOF-1,60.00,WALSALL CRISIS SUPPORT SCHEME-FURNITURE & EQUIPMENT,MISCELLANEOUS HOUSE FURNISHING SPECIALTY SHOPS,GPC
WALSALL COUNCIL,HTTP://OPENDATACOMMUNITIES.ORG/ID/METROPOLITAN-DISTRICT-COUNCIL/WALSALL,31/12/2017,CHILDRENS SERVICES,WM MORRISON 024,05/10/2017,H59620171006RDTRSRSZD-1,3.85,PARENTING TEAM-FOOD AND BEVERAGES-PROVISIONS,GROCERY STORES AND SUPERMARKETS,GPC
WALSALL COUNCIL,HTTP://OPENDATACOMMUNITIES.ORG/ID/METROPOLITAN-DISTRICT-COUNCIL/WALSALL,31/12/2017,CHILDRENS SERVICES,WM MORRISON 024,05/10/2017,H59620171006RDTRSRSZD-2,1.00,PARENTING TEAM-FOOD AND BEVERAGES-PROVISIONS,GROCERY STORES AND SUPERMARKETS,GPC
WALSALL COUNCIL,HTTP://OPENDATACOMMUNITIES.ORG/ID/METROPOLITAN-DISTRICT-COUNCIL/WALSALL,31/12/2017,CHANGE & GOVERNANCE,BLAKEMORE FOODSERVICE,05/10/2017,H59620171006RLDMNVJOY-1,224.94,CA CASTLEFORT JMI SCHOOL-CATERING,CATERERS,GPC
WALSALL COUNCIL,HTTP://OPENDATACOMMUNITIES.ORG/ID/METROPOLITAN-DISTRICT-COUNCIL/WALSALL,31/12/2017,CHANGE & GOVERNANCE,CRAZY HOUSE FURNITURE,05/10/2017,H59620171006ROFEUELPK-1,100.00,WALSALL CRISIS SUPPORT SCHEME-FURNITURE & EQUIPMENT,MISCELLANEOUS HOUSE FURNISHING SPECIALTY SHOPS,GPC
WALSALL COUNCIL,HTTP://OPENDATACOMMUNITIES.ORG/ID/METROPOLITAN-DISTRICT-COUNCIL/WALSALL,31/12/2017,CHANGE & GOVERNANCE,ARTHUR BRETT CATER,05/10/2017,H59620171006RSBJMRNBE-1,-0.65,CA ST MICHAELS C.E. PRIMARY SC-FRUIT & VEGETABLES OTHER-PROVI,MISCELLANEOUS FOOD STORES & CONVENIENCE STORES,GPC
WALSALL COUNCIL,HTTP://OPENDATACOMMUNITIES.ORG/ID/METROPOLITAN-DISTRICT-COUNCIL/WALSALL,31/12/2017,ECONOMY & ENVIRONMENT,T.MORGAN & SONS (L,05/10/2017,H59620171006SEAITNCJV-1,103.20,INFRASTRUCTURE MAINTENANCE-GENERAL MATERIALS,HARDWARE EQUIPMENT AND SUPPLIES,GPC
WALSALL COUNCIL,HTTP://OPENDATACOMMUNITIES.ORG/ID/METROPOLITAN-DISTRICT-COUNCIL/WALSALL,31/12/2017,CHANGE & GOVERNANCE,WWW.JUST-EAT.CO.UK,05/10/2017,H59620171006SHFRCCKXV-1,58.41,WALSALL CRISIS SUPPORT SCHEME-SUBSISTENCE OFFICERS-EXPENSES,"EATING PLACES, RESTAURANTS",GPC
WALSALL COUNCIL,HTTP://OPENDATACOMMUNITIES.ORG/ID/METROPOLITAN-DISTRICT-COUNCIL/WALSALL,31/12/2017,CHANGE & GOVERNANCE,BLAKEMORE FOODSERVICE,05/10/2017,H59620171006SHIIWGLTH-1,56.05,CA BARCROFT D/C-DRY FOODS-PROVISIONS,CATERERS,GPC
WALSALL COUNCIL,HTTP://OPENDATACOMMUNITIES.ORG/ID/METROPOLITAN-DISTRICT-COUNCIL/WALSALL,31/12/2017,CHANGE & GOVERNANCE,BLAKEMORE FOODSERVICE,05/10/2017,H59620171006SHIIWGLTH-2,279.97,CA BARCROFT D/C-DRY FOODS-PROVISIONS,CATERERS,GPC
WALSALL COUNCIL,HTTP://OPENDATACOMMUNITIES.ORG/ID/METROPOLITAN-DISTRICT-COUNCIL/WALSALL,31/12/2017,CHILDRENS SERVICES,AMAZON UK MARKETPLACE,05/10/2017,H59620171006SKNDEHNQA-1,49.18,PE-GENERAL MATERIALS,BOOK STORES,GPC
WALSALL COUNCIL,HTTP://OPENDATACOMMUNITIES.ORG/ID/METROPOLITAN-DISTRICT-COUNCIL/WALSALL,31/12/2017,CHANGE & GOVERNANCE,BLAKEMORE FOODSERVICE,05/10/2017,H59620171006TJJTKSDHY-1,309.63,CA COOPER JORDAN CE PRIMARY SC-DRY FOODS-PROVISIONS,CATERERS,GPC
WALSALL COUNCIL,HTTP://OPENDATACOMMUNITIES.ORG/ID/METROPOLITAN-DISTRICT-COUNCIL/WALSALL,31/12/2017,CHANGE & GOVERNANCE,BLAKEMORE FOODSERVICE,05/10/2017,H59620171006TJJTKSDHY-2,53.94,CA COOPER JORDAN CE PRIMARY SC-DRY FOODS-PROVISIONS,CATERERS,GPC
WALSALL COUNCIL,HTTP://OPENDATACOMMUNITIES.ORG/ID/METROPOLITAN-DISTRICT-COUNCIL/WALSALL,31/12/2017,CHILDRENS SERVICES,DIRECTLINE-FLIGHTS,05/10/2017,H59620171006TQEJGHHJW-1,325.16,LOOKED AFTER CHILDRENS SOCIAL -OTHER-TRAVEL ALLOWANCES,TRAVEL AGENCIES AND TOUR OPERATORS,GPC
WALSALL COUNCIL,HTTP://OPENDATACOMMUNITIES.ORG/ID/METROPOLITAN-DISTRICT-COUNCIL/WALSALL,31/12/2017,CHANGE & GOVERNANCE,BLAKEMORE FOODSERVICE,05/10/2017,H59620171006TQVRNCUCG-1,355.21,CA ST JOHNS C.E. PRIMARY SCHOO-CATERING,CATERERS,GPC
WALSALL COUNCIL,HTTP://OPENDATACOMMUNITIES.ORG/ID/METROPOLITAN-DISTRICT-COUNCIL/WALSALL,31/12/2017,CHANGE & GOVERNANCE,BLAKEMORE FOODSERVICE,05/10/2017,H59620171006TRFPTOBJY-1,83.48,CA BIRCHILLS CE PRIMARY COMMUN-DRY FOODS-PROVISIONS,CATERERS,GPC
WALSALL COUNCIL,HTTP://OPENDATACOMMUNITIES.ORG/ID/METROPOLITAN-DISTRICT-COUNCIL/WALSALL,31/12/2017,CHANGE & GOVERNANCE,BLAKEMORE FOODSERVICE,05/10/2017,H59620171006TRFPTOBJY-2,227.60,CA BIRCHILLS CE PRIMARY COMMUN-DRY FOODS-PROVISIONS,CATERERS,GPC
WALSALL COUNCIL,HTTP://OPENDATACOMMUNITIES.ORG/ID/METROPOLITAN-DISTRICT-COUNCIL/WALSALL,31/12/2017,ECONOMY & ENVIRONMENT,WILKO RETAIL LIMIT,05/10/2017,H59620171006UBMWXHCTF-1,30.00,BLOXWICH LEISURE CENTRE-FURNITURE & EQUIPMENT,HOUSEHOLD APPLIANCE STORES,GPC
WALSALL COUNCIL,HTTP://OPENDATACOMMUNITIES.ORG/ID/METROPOLITAN-DISTRICT-COUNCIL/WALSALL,31/12/2017,CHILDRENS SERVICES,WWW.CRICKET.DIRECT.COM,05/10/2017,H59620171006UBOFRIISW-1,106.25,CONTINGENCY-NEW-FURNITURE & EQUIPMENT,SPORTING GOODS STORES,GPC
WALSALL COUNCIL,HTTP://OPENDATACOMMUNITIES.ORG/ID/METROPOLITAN-DISTRICT-COUNCIL/WALSALL,31/12/2017,CHANGE & GOVERNANCE,BLAKEMORE FOODSERVICE,05/10/2017,H59620171006UJWEXYDAK-1,130.94,CA ELMWOOD SPECIAL SCHOOL-CATERING,CATERERS,GPC
WALSALL COUNCIL,HTTP://OPENDATACOMMUNITIES.ORG/ID/METROPOLITAN-DISTRICT-COUNCIL/WALSALL,31/12/2017,CHILDRENS SERVICES,LONDON MIDLAND TIC,05/10/2017,H59620171006UTIWNEYTD-1,182.00,LOOKED AFTER CHILDRENS SOCIAL -OFFICER/STAFF-PUBLIC TRANSPORT,PASSENGER RAILWAYS,GPC
WALSALL COUNCIL,HTTP://OPENDATACOMMUNITIES.ORG/ID/METROPOLITAN-DISTRICT-COUNCIL/WALSALL,31/12/2017,CHANGE & GOVERNANCE,CRAZY HOUSE FURNITURE,05/10/2017,H59620171006VCGOXWPNQ-1,245.00,WALSALL CRISIS SUPPORT SCHEME-FURNITURE & EQUIPMENT,MISCELLANEOUS HOUSE FURNISHING SPECIALTY SHOPS,GPC
WALSALL COUNCIL,HTTP://OPENDATACOMMUNITIES.ORG/ID/METROPOLITAN-DISTRICT-COUNCIL/WALSALL,31/12/2017,CHANGE & GOVERNANCE,BLAKEMORE FOODSERVICE,05/10/2017,H59620171006VDDBPRVWB-1,355.31,CA BUSILL JONES PRIMARY SCHOOL-CATERING,CATERERS,GPC
WALSALL COUNCIL,HTTP://OPENDATACOMMUNITIES.ORG/ID/METROPOLITAN-DISTRICT-COUNCIL/WALSALL,31/12/2017,ECONOMY & ENVIRONMENT,WWW.DENBYDALECOFFEE.CO,05/10/2017,H59620171006VLIXOCQPN-1,"2,340.00",BLOXWICH LEISURE CENTRE-NEW-FURNITURE & EQUIPMENT,MISCELLANEOUS AND SPECIALTY RETAIL STORES,GPC
WALSALL COUNCIL,HTTP://OPENDATACOMMUNITIES.ORG/ID/METROPOLITAN-DISTRICT-COUNCIL/WALSALL,31/12/2017,SOCIAL CARE & INCLUSION,WESTHOLME,05/10/2017,H59620171006VSAONCXJS-1,216.00,FALLINGS HEATH-GENERAL MATERIALS,DENTAL/LABORATORY/MEDICAL EQUIPMENT & SUPPLIES,GPC
WALSALL COUNCIL,HTTP://OPENDATACOMMUNITIES.ORG/ID/METROPOLITAN-DISTRICT-COUNCIL/WALSALL,31/12/2017,CHILDRENS SERVICES,CROSS COUNTRY TRAINS,05/10/2017,H59620171006VXBPADQCW-1,127.00,INITIAL RESPONSE SERVICE-OFFICER/STAFF-PUBLIC TRANSPORT,PASSENGER RAILWAYS,GPC
WALSALL COUNCIL,HTTP://OPENDATACOMMUNITIES.ORG/ID/METROPOLITAN-DISTRICT-COUNCIL/WALSALL,31/12/2017,CHANGE & GOVERNANCE,BLAKEMORE FOODSERVICE,05/10/2017,H59620171006WDPEYKLQI-1,393.03,CA MEADOW VIEW JMI PRIMARY SCH-FROZEN FOODS-PROVISIONS,CATERERS,GPC
WALSALL COUNCIL,HTTP://OPENDATACOMMUNITIES.ORG/ID/METROPOLITAN-DISTRICT-COUNCIL/WALSALL,31/12/2017,CHANGE & GOVERNANCE,BLAKEMORE FOODSERVICE,05/10/2017,H59620171006WDPEYKLQI-2,41.64,CA MEADOW VIEW JMI PRIMARY SCH-FROZEN FOODS-PROVISIONS,CATERERS,GPC
WALSALL COUNCIL,HTTP://OPENDATACOMMUNITIES.ORG/ID/METROPOLITAN-DISTRICT-COUNCIL/WALSALL,31/12/2017,CHANGE & GOVERNANCE,TRAINLINE,05/10/2017,H59620171006WOFINRVFK-1,17.90,LAW LIBRARY-OFFICER/STAFF-PUBLIC TRANSPORT,PASSENGER RAILWAYS,GPC
WALSALL COUNCIL,HTTP://OPENDATACOMMUNITIES.ORG/ID/METROPOLITAN-DISTRICT-COUNCIL/WALSALL,31/12/2017,CHANGE & GOVERNANCE,BLAKEMORE FOODSERVICE,05/10/2017,H59620171006WRHBNJZRD-1,38.10,CA TOWN HALL RESTAURANT - CATE-FROZEN FOODS-PROVISIONS,CATERERS,GPC
WALSALL COUNCIL,HTTP://OPENDATACOMMUNITIES.ORG/ID/METROPOLITAN-DISTRICT-COUNCIL/WALSALL,31/12/2017,CHANGE & GOVERNANCE,BLAKEMORE FOODSERVICE,05/10/2017,H59620171006WYIFXCFAU-1,16.66,CA BARCROFT D/C-FROZEN FOODS-PROVISIONS,CATERERS,GPC
WALSALL COUNCIL,HTTP://OPENDATACOMMUNITIES.ORG/ID/METROPOLITAN-DISTRICT-COUNCIL/WALSALL,31/12/2017,CHANGE & GOVERNANCE,BLAKEMORE FOODSERVICE,05/10/2017,H59620171006WYIFXCFAU-2,121.09,CA BARCROFT D/C-FROZEN FOODS-PROVISIONS,CATERERS,GPC
WALSALL COUNCIL,HTTP://OPENDATACOMMUNITIES.ORG/ID/METROPOLITAN-DISTRICT-COUNCIL/WALSALL,31/12/2017,CHANGE & GOVERNANCE,BLAKEMORE FOODSERVICE,05/10/2017,H59620171006WYMRXMEOC-1,131.49,CA BROWNHILLS WEST PRIMARY SCH-DRY FOODS-PROVISIONS,CATERERS,GPC
WALSALL COUNCIL,HTTP://OPENDATACOMMUNITIES.ORG/ID/METROPOLITAN-DISTRICT-COUNCIL/WALSALL,31/12/2017,CHANGE & GOVERNANCE,BLAKEMORE FOODSERVICE,05/10/2017,H59620171006WYMRXMEOC-2,103.00,CA BROWNHILLS WEST PRIMARY SCH-DRY FOODS-PROVISIONS,CATERERS,GPC
WALSALL COUNCIL,HTTP://OPENDATACOMMUNITIES.ORG/ID/METROPOLITAN-DISTRICT-COUNCIL/WALSALL,31/12/2017,CHANGE & GOVERNANCE,TESCO STORES 6161,05/10/2017,H59620171006XCMKYJWLB-1,30.00,WALSALL CRISIS SUPPORT SCHEME-CRISIS SUPPORT PAYMENTS,GROCERY STORES AND SUPERMARKETS,GPC
WALSALL COUNCIL,HTTP://OPENDATACOMMUNITIES.ORG/ID/METROPOLITAN-DISTRICT-COUNCIL/WALSALL,31/12/2017,CHANGE & GOVERNANCE,CRAZY HOUSE FURNITURE,05/10/2017,H59620171006XJMMFOQUT-1,170.00,WALSALL CRISIS SUPPORT SCHEME-FURNITURE & EQUIPMENT,MISCELLANEOUS HOUSE FURNISHING SPECIALTY SHOPS,GPC
WALSALL COUNCIL,HTTP://OPENDATACOMMUNITIES.ORG/ID/METROPOLITAN-DISTRICT-COUNCIL/WALSALL,31/12/2017,CHANGE & GOVERNANCE,BLAKEMORE FOODSERVICE,05/10/2017,H59620171006XKJRTQTCU-1,38.63,CA ST MICHAELS C.E. PRIMARY SC-DRY FOODS-PROVISIONS,CATERERS,GPC
WALSALL COUNCIL,HTTP://OPENDATACOMMUNITIES.ORG/ID/METROPOLITAN-DISTRICT-COUNCIL/WALSALL,31/12/2017,CHANGE & GOVERNANCE,BLAKEMORE FOODSERVICE,05/10/2017,H59620171006XKJRTQTCU-2,248.60,CA ST MICHAELS C.E. PRIMARY SC-DRY FOODS-PROVISIONS,CATERERS,GPC
WALSALL COUNCIL,HTTP://OPENDATACOMMUNITIES.ORG/ID/METROPOLITAN-DISTRICT-COUNCIL/WALSALL,31/12/2017,CHANGE & GOVERNANCE,WELSH BROS FOODS LTD,05/10/2017,H59620171006XYFDQPVYK-1,106.49,CA JANE LANE SPECIAL SCHOOL-MEAT-PROVISIONS,FREEZER AND LOCKER MEAT PROVISIONERS,GPC
WALSALL COUNCIL,HTTP://OPENDATACOMMUNITIES.ORG/ID/METROPOLITAN-DISTRICT-COUNCIL/WALSALL,31/12/2017,CHANGE & GOVERNANCE,BLAKEMORE FOODSERVICE,05/10/2017,H59620171006XYWBEOVCO-1,6.24,CA RUSHALL JMI SCHOOL-DRY FOODS-PROVISIONS,CATERERS,GPC
WALSALL COUNCIL,HTTP://OPENDATACOMMUNITIES.ORG/ID/METROPOLITAN-DISTRICT-COUNCIL/WALSALL,31/12/2017,CHANGE & GOVERNANCE,CRAZY HOUSE FURNITURE,05/10/2017,H59620171006YAHQEVJBH-1,95.00,WALSALL CRISIS SUPPORT SCHEME-FURNITURE & EQUIPMENT,MISCELLANEOUS HOUSE FURNISHING SPECIALTY SHOPS,GPC
WALSALL COUNCIL,HTTP://OPENDATACOMMUNITIES.ORG/ID/METROPOLITAN-DISTRICT-COUNCIL/WALSALL,31/12/2017,CHILDRENS SERVICES,LIDL UK,05/10/2017,H59620171006YBCBQHZPA-1,22.48,PELSALL VILLAGE SCHOOL-FOOD AND BEVERAGES-PROVISIONS,GROCERY STORES AND SUPERMARKETS,GPC
WALSALL COUNCIL,HTTP://OPENDATACOMMUNITIES.ORG/ID/METROPOLITAN-DISTRICT-COUNCIL/WALSALL,31/12/2017,CHANGE & GOVERNANCE,CRAZY HOUSE FURNITURE,05/10/2017,H59620171006YIURYSBJP-1,290.00,YOUNG PERSONS HOMELESS SERVICE-FURNITURE & EQUIPMENT,MISCELLANEOUS HOUSE FURNISHING SPECIALTY SHOPS,GPC
WALSALL COUNCIL,HTTP://OPENDATACOMMUNITIES.ORG/ID/METROPOLITAN-DISTRICT-COUNCIL/WALSALL,31/12/2017,CHILDRENS SERVICES,WWW.THERANGE.CO.UK,05/10/2017,H59620171006YQTJCKRLI-1,97.94,REDRUTH ROAD-NEW-FURNITURE & EQUIPMENT,"EQUIPMENT, FURNITURE, AND HOME FURNISHINGS STORES ",GPC
WALSALL COUNCIL,HTTP://OPENDATACOMMUNITIES.ORG/ID/METROPOLITAN-DISTRICT-COUNCIL/WALSALL,31/12/2017,SOCIAL CARE & INCLUSION,CARESHOP,05/10/2017,H59620171006YTOFQPGXD-1,202.02,FALLINGS HEATH-GENERAL MATERIALS,MISCELLANEOUS AND SPECIALTY RETAIL STORES,GPC
WALSALL COUNCIL,HTTP://OPENDATACOMMUNITIES.ORG/ID/METROPOLITAN-DISTRICT-COUNCIL/WALSALL,31/12/2017,CHANGE & GOVERNANCE,ASDA,05/10/2017,H59620171006ZCSINJLFS-1,14.85,ACCOMMODATION SERVICES MANAGEM-FOOD AND BEVERAGES-PROVISIONS,GROCERY STORES AND SUPERMARKETS,GPC
WALSALL COUNCIL,HTTP://OPENDATACOMMUNITIES.ORG/ID/METROPOLITAN-DISTRICT-COUNCIL/WALSALL,31/12/2017,CHILDRENS SERVICES,AMAZON.CO.UK,05/10/2017,H59620171006ZKYTNFZKD-1,25.99,"CHUCKERY PRIMARY SCHOOL-REPAIRS,ALTERATIONS & MAINTENA",BOOK STORES,GPC
WALSALL COUNCIL,HTTP://OPENDATACOMMUNITIES.ORG/ID/METROPOLITAN-DISTRICT-COUNCIL/WALSALL,31/12/2017,CHANGE & GOVERNANCE,LANCASTER JAGUAR WOLVE,05/10/2017,H59620171006ZMOWDRAEY-1,110.46,MAYORS SECRETARIAT-PURCHASE OF VEHICLES,"AUTOMOBILE SALES, SERVICE, REPAIRS",GPC
WALSALL COUNCIL,HTTP://OPENDATACOMMUNITIES.ORG/ID/METROPOLITAN-DISTRICT-COUNCIL/WALSALL,31/12/2017,CHILDRENS SERVICES,AMAZON UK RETAIL,06/10/2017,H59620171007AGHESGYKH-1,4.00,LITERACY LH-LIBRARY BOOKS,OTHER DIRECT MARKETING-OTHER DIRECT MARKETERS,GPC
WALSALL COUNCIL,HTTP://OPENDATACOMMUNITIES.ORG/ID/METROPOLITAN-DISTRICT-COUNCIL/WALSALL,31/12/2017,CHILDRENS SERVICES,WWW.PARTMASTER.CO.UK,06/10/2017,H59620171007AHVPOPLDF-1,21.34,"REDRUTH ROAD-REPAIRS,ALTERATIONS & MAINTENA",ELECTRICAL PARTS AND EQUIPMENT,GPC
WALSALL COUNCIL,HTTP://OPENDATACOMMUNITIES.ORG/ID/METROPOLITAN-DISTRICT-COUNCIL/WALSALL,31/12/2017,CHILDRENS SERVICES,TESCO STORES 5503,06/10/2017,H59620171007AVICFTWWQ-1,7.25,LOCALITY FAMILY SUPPORT-WEST-FOOD AND BEVERAGES-PROVISIONS,GROCERY STORES AND SUPERMARKETS,GPC
WALSALL COUNCIL,HTTP://OPENDATACOMMUNITIES.ORG/ID/METROPOLITAN-DISTRICT-COUNCIL/WALSALL,31/12/2017,CHILDRENS SERVICES,TRAINLINE,06/10/2017,H59620171007CBAZDXDLQ-1,-10.80,SAFEGUARDING & FAMILY SUPPORT-OFFICER/STAFF-PUBLIC TRANSPORT,PASSENGER RAILWAYS,GPC
WALSALL COUNCIL,HTTP://OPENDATACOMMUNITIES.ORG/ID/METROPOLITAN-DISTRICT-COUNCIL/WALSALL,31/12/2017,CHILDRENS SERVICES,AMAZON UK RETAIL,06/10/2017,H59620171007CGWVMJFDS-1,11.95,ADMINISTRATIVE SUPPLIES-GENERAL MATERIALS,OTHER DIRECT MARKETING-OTHER DIRECT MARKETERS,GPC
WALSALL COUNCIL,HTTP://OPENDATACOMMUNITIES.ORG/ID/METROPOLITAN-DISTRICT-COUNCIL/WALSALL,31/12/2017,CHANGE & GOVERNANCE,MAX SPIELMANN LTD,06/10/2017,H59620171007CQVMBKCOM-1,9.99,ACCOMMODATION SERVICES MANAGEM-EXTERNAL PRINTING SERVICES,PHOTOGRAPHIC STUDIOS,GPC
WALSALL COUNCIL,HTTP://OPENDATACOMMUNITIES.ORG/ID/METROPOLITAN-DISTRICT-COUNCIL/WALSALL,31/12/2017,CHILDRENS SERVICES,PAYPAL *TABLETACADE,06/10/2017,H59620171007CUPGVMRUD-1,267.10,INFORMATION SERVICES-FURNITURE & EQUIPMENT,"SCHOOLS, ELEMENTARY AND SECONDARY",GPC
WALSALL COUNCIL,HTTP://OPENDATACOMMUNITIES.ORG/ID/METROPOLITAN-DISTRICT-COUNCIL/WALSALL,31/12/2017,CHILDRENS SERVICES,WWW.CRICKET.DIRECT.COM,06/10/2017,H59620171007DBKVSXTDG-1,56.30,CONTINGENCY-NEW-FURNITURE & EQUIPMENT,SPORTING GOODS STORES,GPC
WALSALL COUNCIL,HTTP://OPENDATACOMMUNITIES.ORG/ID/METROPOLITAN-DISTRICT-COUNCIL/WALSALL,31/12/2017,CHILDRENS SERVICES,BANNER GROUP LTD,06/10/2017,H59620171007DCHQVWOBI-1,1.40,LOCALITY FAMILY SUPPORT-WEST-STATIONERY & GENERAL SUPPLIES-,"OFFICE, SCHOOL SUPPLY, AND STATIONERY STORES",GPC
WALSALL COUNCIL,HTTP://OPENDATACOMMUNITIES.ORG/ID/METROPOLITAN-DISTRICT-COUNCIL/WALSALL,31/12/2017,CHILDRENS SERVICES,BANNER GROUP LTD,06/10/2017,H59620171007DHNYEDTGD-1,185.20,SAFEGUARDING & FAMILY SUPPORT-STATIONERY & GENERAL SUPPLIES-,"OFFICE, SCHOOL SUPPLY, AND STATIONERY STORES",GPC
WALSALL COUNCIL,HTTP://OPENDATACOMMUNITIES.ORG/ID/METROPOLITAN-DISTRICT-COUNCIL/WALSALL,31/12/2017,SOCIAL CARE & INCLUSION,TRAINLINE,06/10/2017,H59620171007DLRQXVOSL-1,146.06,"STRATEGY, COMMISSIONING, AND D-OFFICER/STAFF-PUBLIC TRANSPORT",PASSENGER RAILWAYS,GPC
WALSALL COUNCIL,HTTP://OPENDATACOMMUNITIES.ORG/ID/METROPOLITAN-DISTRICT-COUNCIL/WALSALL,31/12/2017,CHILDRENS SERVICES,LIDL UK,06/10/2017,H59620171007DYPOGFDGD-1,28.42,SPINDLETREE-FOOD AND BEVERAGES-PROVISIONS,GROCERY STORES AND SUPERMARKETS,GPC
WALSALL COUNCIL,HTTP://OPENDATACOMMUNITIES.ORG/ID/METROPOLITAN-DISTRICT-COUNCIL/WALSALL,31/12/2017,CHILDRENS SERVICES,LIDL UK,06/10/2017,H59620171007DYPOGFDGD-2,1.78,SPINDLETREE-FOOD AND BEVERAGES-PROVISIONS,GROCERY STORES AND SUPERMARKETS,GPC
WALSALL COUNCIL,HTTP://OPENDATACOMMUNITIES.ORG/ID/METROPOLITAN-DISTRICT-COUNCIL/WALSALL,31/12/2017,ECONOMY & ENVIRONMENT,COOKSON PRECIOUS M,06/10/2017,H59620171007EIQBEDWYS-1,122.54,YEI ESF FUNDING-PROFESSIONAL FEES AND SERVICES,"PRECIOUS STONES AND METALS, WATCHES AND JEWELRY",GPC
WALSALL COUNCIL,HTTP://OPENDATACOMMUNITIES.ORG/ID/METROPOLITAN-DISTRICT-COUNCIL/WALSALL,31/12/2017,ECONOMY & ENVIRONMENT,COOKSON PRECIOUS M,06/10/2017,H59620171007EIQBEDWYS-2,122.54,YEI (IMPACT) PROGRAMME-PROFESSIONAL FEES AND SERVICES,"PRECIOUS STONES AND METALS, WATCHES AND JEWELRY",GPC
WALSALL COUNCIL,HTTP://OPENDATACOMMUNITIES.ORG/ID/METROPOLITAN-DISTRICT-COUNCIL/WALSALL,31/12/2017,SOCIAL CARE & INCLUSION,THE HUB EVENTS,06/10/2017,H59620171007EKPFCGXXS-1,696.00,"STRATEGY, COMMISSIONING, AND D-EVENTS","CONSULTING, MANAGEMENT, AND PR SERVICES",GPC
WALSALL COUNCIL,HTTP://OPENDATACOMMUNITIES.ORG/ID/METROPOLITAN-DISTRICT-COUNCIL/WALSALL,31/12/2017,CHILDRENS SERVICES,ASDA,06/10/2017,H59620171007ELPUCBLOM-1,12.00,PARENTING TEAM-FOOD AND BEVERAGES-PROVISIONS,GROCERY STORES AND SUPERMARKETS,GPC
WALSALL COUNCIL,HTTP://OPENDATACOMMUNITIES.ORG/ID/METROPOLITAN-DISTRICT-COUNCIL/WALSALL,31/12/2017,CHILDRENS SERVICES,AMAZON UK RETAIL,06/10/2017,H59620171007ESMMNUGVQ-1,8.00,LITERACY LH-LIBRARY BOOKS,OTHER DIRECT MARKETING-OTHER DIRECT MARKETERS,GPC
WALSALL COUNCIL,HTTP://OPENDATACOMMUNITIES.ORG/ID/METROPOLITAN-DISTRICT-COUNCIL/WALSALL,31/12/2017,CHILDRENS SERVICES,AMAZON UK RETAIL,06/10/2017,H59620171007ESVJOIORB-1,4.00,LITERACY LH-LIBRARY BOOKS,OTHER DIRECT MARKETING-OTHER DIRECT MARKETERS,GPC
WALSALL COUNCIL,HTTP://OPENDATACOMMUNITIES.ORG/ID/METROPOLITAN-DISTRICT-COUNCIL/WALSALL,31/12/2017,CHILDRENS SERVICES,TRAVEL WEST MIDLAN,06/10/2017,H59620171007GBFGSVVEO-1,62.50,LOOKED AFTER CHILDRENS SOCIAL -SUPPORT UNDER SECTION 23 OF TH,BUS LINES,GPC
WALSALL COUNCIL,HTTP://OPENDATACOMMUNITIES.ORG/ID/METROPOLITAN-DISTRICT-COUNCIL/WALSALL,31/12/2017,CHANGE & GOVERNANCE,WWW.GOV.UK,06/10/2017,H59620171007GCSAISEGG-1,10.00,REVENUES-PROFESSIONAL FEES AND SERVICES,PROFESSIONAL SERVICES,GPC
WALSALL COUNCIL,HTTP://OPENDATACOMMUNITIES.ORG/ID/METROPOLITAN-DISTRICT-COUNCIL/WALSALL,31/12/2017,CHILDRENS SERVICES,TESCO STORES 6161,06/10/2017,H59620171007GOMVGTPSL-1,1.25,FOOD TECHNOLOGY-GENERAL MATERIALS,GROCERY STORES AND SUPERMARKETS,GPC
WALSALL COUNCIL,HTTP://OPENDATACOMMUNITIES.ORG/ID/METROPOLITAN-DISTRICT-COUNCIL/WALSALL,31/12/2017,CHILDRENS SERVICES,TESCO STORES 6161,06/10/2017,H59620171007GOMVGTPSL-2,27.10,FOOD TECHNOLOGY-GENERAL MATERIALS,GROCERY STORES AND SUPERMARKETS,GPC
WALSALL COUNCIL,HTTP://OPENDATACOMMUNITIES.ORG/ID/METROPOLITAN-DISTRICT-COUNCIL/WALSALL,31/12/2017,CHANGE & GOVERNANCE,TESCO STORES 6161,06/10/2017,H59620171007GWXKQWKIR-1,118.00,WALSALL CRISIS SUPPORT SCHEME-CRISIS SUPPORT PAYMENTS,GROCERY STORES AND SUPERMARKETS,GPC
WALSALL COUNCIL,HTTP://OPENDATACOMMUNITIES.ORG/ID/METROPOLITAN-DISTRICT-COUNCIL/WALSALL,31/12/2017,CHANGE & GOVERNANCE,TESCO STORES 6161,06/10/2017,H59620171007HFZHLQXFD-1,1.50,WALSALL CRISIS SUPPORT SCHEME-CRISIS SUPPORT PAYMENTS,GROCERY STORES AND SUPERMARKETS,GPC
WALSALL COUNCIL,HTTP://OPENDATACOMMUNITIES.ORG/ID/METROPOLITAN-DISTRICT-COUNCIL/WALSALL,31/12/2017,CHANGE & GOVERNANCE,TESCO STORES 6161,06/10/2017,H59620171007HFZHLQXFD-2,4.98,WALSALL CRISIS SUPPORT SCHEME-CRISIS SUPPORT PAYMENTS,GROCERY STORES AND SUPERMARKETS,GPC
WALSALL COUNCIL,HTTP://OPENDATACOMMUNITIES.ORG/ID/METROPOLITAN-DISTRICT-COUNCIL/WALSALL,31/12/2017,CHILDRENS SERVICES,ASDA SUPERSTORE,06/10/2017,H59620171007IFODXPJOD-1,2.85,REDRUTH ROAD-FOOD AND BEVERAGES-PROVISIONS,GROCERY STORES AND SUPERMARKETS,GPC
WALSALL COUNCIL,HTTP://OPENDATACOMMUNITIES.ORG/ID/METROPOLITAN-DISTRICT-COUNCIL/WALSALL,31/12/2017,CHILDRENS SERVICES,ASDA SUPERSTORE,06/10/2017,H59620171007IFODXPJOD-2,31.80,REDRUTH ROAD-FOOD AND BEVERAGES-PROVISIONS,GROCERY STORES AND SUPERMARKETS,GPC
WALSALL COUNCIL,HTTP://OPENDATACOMMUNITIES.ORG/ID/METROPOLITAN-DISTRICT-COUNCIL/WALSALL,31/12/2017,CHILDRENS SERVICES,TRAINLINE,06/10/2017,H59620171007IIULKQNNP-1,25.25,SAFEGUARDING & FAMILY SUPPORT-OTHER-TRAVEL ALLOWANCES,PASSENGER RAILWAYS,GPC
WALSALL COUNCIL,HTTP://OPENDATACOMMUNITIES.ORG/ID/METROPOLITAN-DISTRICT-COUNCIL/WALSALL,31/12/2017,CHILDRENS SERVICES,AMAZON UK MARKETPLACE,06/10/2017,H59620171007IMSJAOYNN-1,12.98,ADMINISTRATIVE SUPPLIES-GENERAL MATERIALS,BOOK STORES,GPC
WALSALL COUNCIL,HTTP://OPENDATACOMMUNITIES.ORG/ID/METROPOLITAN-DISTRICT-COUNCIL/WALSALL,31/12/2017,ECONOMY & ENVIRONMENT,ALLIANCE DISPOSABLES,06/10/2017,H59620171007IRRSYSAHE-1,250.51,WALSALL TOWN HALL-CATERING,CATERERS,GPC
WALSALL COUNCIL,HTTP://OPENDATACOMMUNITIES.ORG/ID/METROPOLITAN-DISTRICT-COUNCIL/WALSALL,31/12/2017,CHILDRENS SERVICES,AMAZON UK MARKETPLACE,06/10/2017,H59620171007IXTIDSGEF-1,67.51,PUPIL PREMIUM-GENERAL MATERIALS,BOOK STORES,GPC
WALSALL COUNCIL,HTTP://OPENDATACOMMUNITIES.ORG/ID/METROPOLITAN-DISTRICT-COUNCIL/WALSALL,31/12/2017,CHILDRENS SERVICES,AMAZON UK MARKETPLACE,06/10/2017,H59620171007JDCHWTHQW-1,19.97,INFORMATION SERVICES-LIBRARY BOOKS,BOOK STORES,GPC
WALSALL COUNCIL,HTTP://OPENDATACOMMUNITIES.ORG/ID/METROPOLITAN-DISTRICT-COUNCIL/WALSALL,31/12/2017,CHANGE & GOVERNANCE,AMAZON UK MARKETPLACE,06/10/2017,H59620171007JSAQPRVSR-1,29.85,RECHARGEABLE EQUIPMENT-COMPUTER-OTHER EXPENSES,BOOK STORES,GPC
WALSALL COUNCIL,HTTP://OPENDATACOMMUNITIES.ORG/ID/METROPOLITAN-DISTRICT-COUNCIL/WALSALL,31/12/2017,CHANGE & GOVERNANCE,WH SMITH,06/10/2017,H59620171007JUOJTXXBB-1,10.95,CORPORATE MANAGEMENT TEAM-PERIODICALS/MAGAZINES/NEWSPAPE,NEWS DEALERS AND NEWSSTANDS,GPC
WALSALL COUNCIL,HTTP://OPENDATACOMMUNITIES.ORG/ID/METROPOLITAN-DISTRICT-COUNCIL/WALSALL,31/12/2017,ECONOMY & ENVIRONMENT,TRAINLINE,06/10/2017,H59620171007JWTYKHWZK-1,12.80,LEISURE - MANAGEMENT AND ADMIN-OFFICER/STAFF-PUBLIC TRANSPORT,PASSENGER RAILWAYS,GPC
WALSALL COUNCIL,HTTP://OPENDATACOMMUNITIES.ORG/ID/METROPOLITAN-DISTRICT-COUNCIL/WALSALL,31/12/2017,CHILDRENS SERVICES,PREMIER INN44533745,06/10/2017,H59620171007JYFNBVPDY-1,124.00,LOOKED AFTER CHILDRENS SOCIAL -SUPPORT UNDER SECTION 23 OF TH,PREMIER INN,GPC
WALSALL COUNCIL,HTTP://OPENDATACOMMUNITIES.ORG/ID/METROPOLITAN-DISTRICT-COUNCIL/WALSALL,31/12/2017,CHILDRENS SERVICES,AMAZON UK RETAIL,06/10/2017,H59620171007KKGTMDYHI-1,23.90,ADMINISTRATIVE SUPPLIES-GENERAL MATERIALS,OTHER DIRECT MARKETING-OTHER DIRECT MARKETERS,GPC
WALSALL COUNCIL,HTTP://OPENDATACOMMUNITIES.ORG/ID/METROPOLITAN-DISTRICT-COUNCIL/WALSALL,31/12/2017,CHILDRENS SERVICES,AMAZON UK RETAIL AMAZON.C,06/10/2017,H59620171007KPDXRSRRF-1,36.55,7 THE LIMES-EXTERNAL TRAINING,MISCELLANEOUS AND SPECIALTY RETAIL STORES,GPC
WALSALL COUNCIL,HTTP://OPENDATACOMMUNITIES.ORG/ID/METROPOLITAN-DISTRICT-COUNCIL/WALSALL,31/12/2017,,WWW.NISBETS.COM,06/10/2017,H59620171007LLQIFJEJQ-1,263.95,CFR 1190 SCHOOLS PROJECT-PURCHASE OF FURNITURE & EQUIPM,DIRECT MARKETING CATALOG MERCHANTS,GPC
WALSALL COUNCIL,HTTP://OPENDATACOMMUNITIES.ORG/ID/METROPOLITAN-DISTRICT-COUNCIL/WALSALL,31/12/2017,ECONOMY & ENVIRONMENT,B & Q 1276,06/10/2017,H59620171007MMXFKDBCB-1,75.48,DARLASTON LEISURE CENTRE-CLEANING MATERIALS,LUMBER & BUILDING MATERIALS STORES,GPC
WALSALL COUNCIL,HTTP://OPENDATACOMMUNITIES.ORG/ID/METROPOLITAN-DISTRICT-COUNCIL/WALSALL,31/12/2017,CHANGE & GOVERNANCE,AMAZON UK MARKETPLACE,06/10/2017,H59620171007MOOXEXLGN-1,89.85,RECHARGEABLE EQUIPMENT-COMPUTER EQUIPMENT AND SUPPLIE,BOOK STORES,GPC
WALSALL COUNCIL,HTTP://OPENDATACOMMUNITIES.ORG/ID/METROPOLITAN-DISTRICT-COUNCIL/WALSALL,31/12/2017,CHILDRENS SERVICES,CARTRIDGE SAVE,06/10/2017,H59620171007NFMNQIMQS-1,13.65,ADMINISTRATIVE SUPPLIES-GENERAL MATERIALS,"STATIONERY, OFFICE SUPPLIES AND WRITING PAPER",GPC
WALSALL COUNCIL,HTTP://OPENDATACOMMUNITIES.ORG/ID/METROPOLITAN-DISTRICT-COUNCIL/WALSALL,31/12/2017,CHANGE & GOVERNANCE,ALLPAY MOTO (CALLPAY/I,06/10/2017,H59620171007NQGNBKRMO-1,89.00,ADVICE & GUIDANCE SERVICE-MISC FEES AND EXPENSES,"ORGANIZATIONS, CHARITABLE AND SOCIAL SERVICE",GPC
WALSALL COUNCIL,HTTP://OPENDATACOMMUNITIES.ORG/ID/METROPOLITAN-DISTRICT-COUNCIL/WALSALL,31/12/2017,CHILDRENS SERVICES,AMAZON UK RETAIL,06/10/2017,H59620171007NWXIZSNQB-1,26.00,LITERACY LH-LIBRARY BOOKS,OTHER DIRECT MARKETING-OTHER DIRECT MARKETERS,GPC
WALSALL COUNCIL,HTTP://OPENDATACOMMUNITIES.ORG/ID/METROPOLITAN-DISTRICT-COUNCIL/WALSALL,31/12/2017,CHILDRENS SERVICES,AMAZON UK RETAIL,06/10/2017,H59620171007OAMRCNCIV-1,20.00,LITERACY LH-LIBRARY BOOKS,OTHER DIRECT MARKETING-OTHER DIRECT MARKETERS,GPC
WALSALL COUNCIL,HTTP://OPENDATACOMMUNITIES.ORG/ID/METROPOLITAN-DISTRICT-COUNCIL/WALSALL,31/12/2017,CHILDRENS SERVICES,VIRGIN TRAINS,06/10/2017,H59620171007OSWDNCCVJ-1,39.70,INTERNAL FOSTER CARE PROVISION-OFFICER/STAFF-PUBLIC TRANSPORT,PASSENGER RAILWAYS,GPC
WALSALL COUNCIL,HTTP://OPENDATACOMMUNITIES.ORG/ID/METROPOLITAN-DISTRICT-COUNCIL/WALSALL,31/12/2017,CHILDRENS SERVICES,AMAZON UK RETAIL,06/10/2017,H59620171007OZBTSIVSK-1,2.00,LITERACY LH-LIBRARY BOOKS,OTHER DIRECT MARKETING-OTHER DIRECT MARKETERS,GPC
WALSALL COUNCIL,HTTP://OPENDATACOMMUNITIES.ORG/ID/METROPOLITAN-DISTRICT-COUNCIL/WALSALL,31/12/2017,CHILDRENS SERVICES,HM PASSPORT,06/10/2017,H59620171007POBMPTGFG-1,180.00,LOOKED AFTER CHILDRENS SOCIAL -SUPPORT UNDER SECTION 23 OF TH,GOVERNMENT SERVICES,GPC
WALSALL COUNCIL,HTTP://OPENDATACOMMUNITIES.ORG/ID/METROPOLITAN-DISTRICT-COUNCIL/WALSALL,31/12/2017,CHILDRENS SERVICES,WALSALL COUNCIL,06/10/2017,H59620171007QORXVULMF-1,32.00,SAFEGUARDING & FAMILY SUPPORT-REGISTRAR OF BIRTHS/DEATHS/MAR,GOVERNMENT SERVICES,GPC
WALSALL COUNCIL,HTTP://OPENDATACOMMUNITIES.ORG/ID/METROPOLITAN-DISTRICT-COUNCIL/WALSALL,31/12/2017,CHILDRENS SERVICES,AMAZON.CO.UK,06/10/2017,H59620171007QVDLNJJVY-1,27.98,YOUTH JUSTICE SERVICE-STATIONERY & GENERAL SUPPLIES-,BOOK STORES,GPC
WALSALL COUNCIL,HTTP://OPENDATACOMMUNITIES.ORG/ID/METROPOLITAN-DISTRICT-COUNCIL/WALSALL,31/12/2017,ECONOMY & ENVIRONMENT,MAUDESPORT LIMITED,06/10/2017,H59620171007RXQJUVSNV-1,90.68,BLOXWICH LEISURE CENTRE-MAINTENANCE-FURNITURE & EQUIPM,SPORTING GOODS STORES,GPC
WALSALL COUNCIL,HTTP://OPENDATACOMMUNITIES.ORG/ID/METROPOLITAN-DISTRICT-COUNCIL/WALSALL,31/12/2017,CHILDRENS SERVICES,WALSALL COUNCIL,06/10/2017,H59620171007SQWUQBQEP-1,10.00,GENERAL MANAGEMENT SUPPORT (IN-LEGAL FEES-PRIV CONTRACTOR FEE,GOVERNMENT SERVICES,GPC
WALSALL COUNCIL,HTTP://OPENDATACOMMUNITIES.ORG/ID/METROPOLITAN-DISTRICT-COUNCIL/WALSALL,31/12/2017,ECONOMY & ENVIRONMENT,MAUDESPORT LIMITED,06/10/2017,H59620171007SSECUMTBL-1,52.72,INSPIRED GENERATIONS (CSAF)-FURNITURE & EQUIPMENT,SPORTING GOODS STORES,GPC
WALSALL COUNCIL,HTTP://OPENDATACOMMUNITIES.ORG/ID/METROPOLITAN-DISTRICT-COUNCIL/WALSALL,31/12/2017,CHILDRENS SERVICES,WALSALL COUNCIL,06/10/2017,H59620171007TEMSYMOXQ-1,34.00,GENERAL MANAGEMENT SUPPORT (IN-LEGAL FEES-PRIV CONTRACTOR FEE,GOVERNMENT SERVICES,GPC
WALSALL COUNCIL,HTTP://OPENDATACOMMUNITIES.ORG/ID/METROPOLITAN-DISTRICT-COUNCIL/WALSALL,31/12/2017,CHANGE & GOVERNANCE,PRIMARK 690,06/10/2017,H59620171007TMEZSNDQU-1,15.00,ACCOMMODATION SERVICES MANAGEM-CLOTHING & LAUNDRY,CLOTHING STORES,GPC
WALSALL COUNCIL,HTTP://OPENDATACOMMUNITIES.ORG/ID/METROPOLITAN-DISTRICT-COUNCIL/WALSALL,31/12/2017,CHANGE & GOVERNANCE,AMAZON UK MARKETPLACE,06/10/2017,H59620171007UNKSBJRIW-1,7.31,ASSET MANAGEMENT-COMPUTER-OTHER EXPENSES,BOOK STORES,GPC
WALSALL COUNCIL,HTTP://OPENDATACOMMUNITIES.ORG/ID/METROPOLITAN-DISTRICT-COUNCIL/WALSALL,31/12/2017,ECONOMY & ENVIRONMENT,LONDON MIDLAND SEL,06/10/2017,H59620171007UXEEFSWQA-1,10.00,NAG - TEMPORARY EXHIBITIONS-OFFICER/STAFF-PUBLIC TRANSPORT,PASSENGER RAILWAYS,GPC
WALSALL COUNCIL,HTTP://OPENDATACOMMUNITIES.ORG/ID/METROPOLITAN-DISTRICT-COUNCIL/WALSALL,31/12/2017,SOCIAL CARE & INCLUSION,WALSALL WOOD,06/10/2017,H59620171007UZVONNBXU-1,214.97,TELE-HEALTHCARE-LOOSE TOOLS & CONSUMABLES,LUMBER & BUILDING MATERIALS STORES,GPC
WALSALL COUNCIL,HTTP://OPENDATACOMMUNITIES.ORG/ID/METROPOLITAN-DISTRICT-COUNCIL/WALSALL,31/12/2017,CHILDRENS SERVICES,AMAZON UK RETAIL,06/10/2017,H59620171007VBXKOVQLB-1,48.00,LITERACY LH-LIBRARY BOOKS,OTHER DIRECT MARKETING-OTHER DIRECT MARKETERS,GPC
WALSALL COUNCIL,HTTP://OPENDATACOMMUNITIES.ORG/ID/METROPOLITAN-DISTRICT-COUNCIL/WALSALL,31/12/2017,ECONOMY & ENVIRONMENT,W & J SMITH (METAL STOCK,06/10/2017,H59620171007VCERIMHAE-1,17.40,INFRASTRUCTURE MAINTENANCE-GENERAL MATERIALS,OTHER INDUSTRIAL SUPPLIES,GPC
WALSALL COUNCIL,HTTP://OPENDATACOMMUNITIES.ORG/ID/METROPOLITAN-DISTRICT-COUNCIL/WALSALL,31/12/2017,ECONOMY & ENVIRONMENT,TRAINLINE,06/10/2017,H59620171007VUYJNMWWP-1,20.15,LAND CHARGES-OFFICER/STAFF-PUBLIC TRANSPORT,PASSENGER RAILWAYS,GPC
WALSALL COUNCIL,HTTP://OPENDATACOMMUNITIES.ORG/ID/METROPOLITAN-DISTRICT-COUNCIL/WALSALL,31/12/2017,ECONOMY & ENVIRONMENT,B&M RETAIL LTD,06/10/2017,H59620171007VYOOPFBEE-1,6.98,INFRASTRUCTURE MAINTENANCE-GENERAL MATERIALS,DISCOUNT STORES,GPC
WALSALL COUNCIL,HTTP://OPENDATACOMMUNITIES.ORG/ID/METROPOLITAN-DISTRICT-COUNCIL/WALSALL,31/12/2017,ECONOMY & ENVIRONMENT,AMAZON UK MARKETPLACE,06/10/2017,H59620171007WDIQHZYPC-1,4.59,BLOXWICH LEISURE CENTRE-MAINTENANCE-FURNITURE & EQUIPM,BOOK STORES,GPC
WALSALL COUNCIL,HTTP://OPENDATACOMMUNITIES.ORG/ID/METROPOLITAN-DISTRICT-COUNCIL/WALSALL,31/12/2017,ECONOMY & ENVIRONMENT,L & S ENGINEERS LTD,06/10/2017,H59620171007WGKMIHHED-1,25.17,INFRASTRUCTURE MAINTENANCE-GENERAL MATERIALS,HARDWARE STORES,GPC
WALSALL COUNCIL,HTTP://OPENDATACOMMUNITIES.ORG/ID/METROPOLITAN-DISTRICT-COUNCIL/WALSALL,31/12/2017,CHILDRENS SERVICES,TESCO STORES 6161,06/10/2017,H59620171007WPLMUUGEO-1,6.00,ELMWOOD SCHOOL-BREAD-GENERAL-PROVISIONS,GROCERY STORES AND SUPERMARKETS,GPC
WALSALL COUNCIL,HTTP://OPENDATACOMMUNITIES.ORG/ID/METROPOLITAN-DISTRICT-COUNCIL/WALSALL,31/12/2017,CHILDRENS SERVICES,TESCO STORES 6161,06/10/2017,H59620171007WPLMUUGEO-2,7.40,ELMWOOD SCHOOL-BREAD-GENERAL-PROVISIONS,GROCERY STORES AND SUPERMARKETS,GPC
WALSALL COUNCIL,HTTP://OPENDATACOMMUNITIES.ORG/ID/METROPOLITAN-DISTRICT-COUNCIL/WALSALL,31/12/2017,CHILDRENS SERVICES,WWW.BRANNANSHOP.CO.UK,06/10/2017,H59620171007WPVALPIEF-1,19.88,BLUEBELLS-NEW-FURNITURE & EQUIPMENT,MISCELLANEOUS AND SPECIALTY RETAIL STORES,GPC
WALSALL COUNCIL,HTTP://OPENDATACOMMUNITIES.ORG/ID/METROPOLITAN-DISTRICT-COUNCIL/WALSALL,31/12/2017,CHILDRENS SERVICES,WP-LAZY BEE SCRIPT,06/10/2017,H59620171007XLEJJHVQH-1,34.00,Y 3-GENERAL MATERIALS,MISCELLANEOUS PUBLISHING AND PRINTING,GPC
WALSALL COUNCIL,HTTP://OPENDATACOMMUNITIES.ORG/ID/METROPOLITAN-DISTRICT-COUNCIL/WALSALL,31/12/2017,SOCIAL CARE & INCLUSION,BANNER GROUP LTD,06/10/2017,H59620171007YXNNUJWHN-1,11.06,GOSCOTE-STATIONERY & GENERAL SUPPLIES-,"OFFICE, SCHOOL SUPPLY, AND STATIONERY STORES",GPC
WALSALL COUNCIL,HTTP://OPENDATACOMMUNITIES.ORG/ID/METROPOLITAN-DISTRICT-COUNCIL/WALSALL,31/12/2017,CHANGE & GOVERNANCE,BULL DOG APPLIANCES LT,06/10/2017,H59620171007YYGMVNQHP-1,474.00,YOUNG PERSONS HOMELESS SERVICE-FURNITURE & EQUIPMENT,HOUSEHOLD APPLIANCE STORES,GPC
WALSALL COUNCIL,HTTP://OPENDATACOMMUNITIES.ORG/ID/METROPOLITAN-DISTRICT-COUNCIL/WALSALL,31/12/2017,CHILDRENS SERVICES,AMAZON UK RETAIL,06/10/2017,H59620171007ZSJGJCMHL-1,96.00,LITERACY LH-LIBRARY BOOKS,OTHER DIRECT MARKETING-OTHER DIRECT MARKETERS,GPC
WALSALL COUNCIL,HTTP://OPENDATACOMMUNITIES.ORG/ID/METROPOLITAN-DISTRICT-COUNCIL/WALSALL,31/12/2017,CHILDRENS SERVICES,AMAZON UK RETAIL,06/10/2017,H59620171007ZSJGJCMHL-2,4.99,LITERACY LH-LIBRARY BOOKS,OTHER DIRECT MARKETING-OTHER DIRECT MARKETERS,GPC
WALSALL COUNCIL,HTTP://OPENDATACOMMUNITIES.ORG/ID/METROPOLITAN-DISTRICT-COUNCIL/WALSALL,31/12/2017,ECONOMY & ENVIRONMENT,WWW.STA.CO.UK,09/10/2017,H59620171010BCWMFCEGS-1,30.00,BLOXWICH LEISURE CENTRE-EXTERNAL TRAINING,OTHER RECREATION SERVICES,GPC
WALSALL COUNCIL,HTTP://OPENDATACOMMUNITIES.ORG/ID/METROPOLITAN-DISTRICT-COUNCIL/WALSALL,31/12/2017,CHILDRENS SERVICES,AMAZON UK MARKETPLACE,09/10/2017,H59620171010BHYULTTTW-1,2.79,PUPIL PREMIUM-GENERAL MATERIALS,BOOK STORES,GPC
WALSALL COUNCIL,HTTP://OPENDATACOMMUNITIES.ORG/ID/METROPOLITAN-DISTRICT-COUNCIL/WALSALL,31/12/2017,CHILDRENS SERVICES,BANNER GROUP LTD,09/10/2017,H59620171010BREGDTXCE-1,109.44,PELSALL EDC-STATIONERY & GENERAL SUPPLIES-,"OFFICE, SCHOOL SUPPLY, AND STATIONERY STORES",GPC
WALSALL COUNCIL,HTTP://OPENDATACOMMUNITIES.ORG/ID/METROPOLITAN-DISTRICT-COUNCIL/WALSALL,31/12/2017,ECONOMY & ENVIRONMENT,J P LENNARD LTD,09/10/2017,H59620171010BRXMNJTBG-1,184.26,DARLASTON LEISURE CENTRE-NEW-FURNITURE & EQUIPMENT,SPORTING GOODS STORES,GPC
WALSALL COUNCIL,HTTP://OPENDATACOMMUNITIES.ORG/ID/METROPOLITAN-DISTRICT-COUNCIL/WALSALL,31/12/2017,ECONOMY & ENVIRONMENT,ASDA SUPERSTORE,09/10/2017,H59620171010BSSJEWLUE-1,7.15,BLOXWICH LEISURE CENTRE-FOOD AND BEVERAGES-PROVISIONS,GROCERY STORES AND SUPERMARKETS,GPC
WALSALL COUNCIL,HTTP://OPENDATACOMMUNITIES.ORG/ID/METROPOLITAN-DISTRICT-COUNCIL/WALSALL,31/12/2017,ECONOMY & ENVIRONMENT,ASDA SUPERSTORE,09/10/2017,H59620171010BSSJEWLUE-2,0.50,BLOXWICH LEISURE CENTRE-FOOD AND BEVERAGES-PROVISIONS,GROCERY STORES AND SUPERMARKETS,GPC
WALSALL COUNCIL,HTTP://OPENDATACOMMUNITIES.ORG/ID/METROPOLITAN-DISTRICT-COUNCIL/WALSALL,31/12/2017,SOCIAL CARE & INCLUSION,ASDA HOME SHOPPING,09/10/2017,H59620171010CFSYQTFYN-1,66.82,FALLINGS HEATH-FOOD AND BEVERAGES-PROVISIONS,GROCERY STORES AND SUPERMARKETS,GPC
WALSALL COUNCIL,HTTP://OPENDATACOMMUNITIES.ORG/ID/METROPOLITAN-DISTRICT-COUNCIL/WALSALL,31/12/2017,SOCIAL CARE & INCLUSION,ASDA HOME SHOPPING,09/10/2017,H59620171010CFSYQTFYN-2,136.74,FALLINGS HEATH-FOOD AND BEVERAGES-PROVISIONS,GROCERY STORES AND SUPERMARKETS,GPC
WALSALL COUNCIL,HTTP://OPENDATACOMMUNITIES.ORG/ID/METROPOLITAN-DISTRICT-COUNCIL/WALSALL,31/12/2017,CHILDRENS SERVICES,OXFORDUNIVERSITYPR,09/10/2017,H59620171010CIHUPQCSY-1,10.65,PRIMARY-GENERAL MATERIALS,BOOK STORES,GPC
WALSALL COUNCIL,HTTP://OPENDATACOMMUNITIES.ORG/ID/METROPOLITAN-DISTRICT-COUNCIL/WALSALL,31/12/2017,ECONOMY & ENVIRONMENT,AMAZON UK MARKETPLACE,09/10/2017,H59620171010CKUENNHOU-1,209.99,FOREST ARTS CENTRE-FURNITURE & EQUIPMENT,BOOK STORES,GPC
WALSALL COUNCIL,HTTP://OPENDATACOMMUNITIES.ORG/ID/METROPOLITAN-DISTRICT-COUNCIL/WALSALL,31/12/2017,CHILDRENS SERVICES,HOTEL ON BOOKING.COM,09/10/2017,H59620171010CUOLRFAQR-1,76.50,DT-GENERAL MATERIALS,"HOTELS, MOTELS, RESORTS",GPC
WALSALL COUNCIL,HTTP://OPENDATACOMMUNITIES.ORG/ID/METROPOLITAN-DISTRICT-COUNCIL/WALSALL,31/12/2017,CHILDRENS SERVICES,IKEA LIMITED,09/10/2017,H59620171010CUPYUURKK-1,45.00,SPINDLETREE-FURNITURE & EQUIPMENT,"EQUIPMENT, FURNITURE, AND HOME FURNISHINGS STORES ",GPC
WALSALL COUNCIL,HTTP://OPENDATACOMMUNITIES.ORG/ID/METROPOLITAN-DISTRICT-COUNCIL/WALSALL,31/12/2017,CHILDRENS SERVICES,ALDI 1 772,09/10/2017,H59620171010DFUHQDPHO-1,61.34,SPINDLETREE-FOOD AND BEVERAGES-PROVISIONS,GROCERY STORES AND SUPERMARKETS,GPC
WALSALL COUNCIL,HTTP://OPENDATACOMMUNITIES.ORG/ID/METROPOLITAN-DISTRICT-COUNCIL/WALSALL,31/12/2017,CHILDRENS SERVICES,ALDI 1 772,09/10/2017,H59620171010DFUHQDPHO-2,12.98,SPINDLETREE-FOOD AND BEVERAGES-PROVISIONS,GROCERY STORES AND SUPERMARKETS,GPC
WALSALL COUNCIL,HTTP://OPENDATACOMMUNITIES.ORG/ID/METROPOLITAN-DISTRICT-COUNCIL/WALSALL,31/12/2017,SOCIAL CARE & INCLUSION,BANNER GROUP LTD,09/10/2017,H59620171010DLYEGVBKX-1,15.18,REABLEMENT TEAM - HOLLY BANK-STATIONERY & GENERAL SUPPLIES-,"OFFICE, SCHOOL SUPPLY, AND STATIONERY STORES",GPC
WALSALL COUNCIL,HTTP://OPENDATACOMMUNITIES.ORG/ID/METROPOLITAN-DISTRICT-COUNCIL/WALSALL,31/12/2017,CHILDRENS SERVICES,GRO HM PASSPORT OFFICE,09/10/2017,H59620171010DOSOGGTXQ-1,23.40,SAFEGUARDING & FAMILY SUPPORT-REGISTRAR OF BIRTHS/DEATHS/MAR,GOVERNMENT SERVICES,GPC
WALSALL COUNCIL,HTTP://OPENDATACOMMUNITIES.ORG/ID/METROPOLITAN-DISTRICT-COUNCIL/WALSALL,31/12/2017,ECONOMY & ENVIRONMENT,PAYPAL *KITTYPINK,09/10/2017,H59620171010DUQQBWSMQ-1,37.50,YEI ESF FUNDING-PROFESSIONAL FEES AND SERVICES,"ARTIST SUPPLY STORES, CRAFT SHOPS",GPC
WALSALL COUNCIL,HTTP://OPENDATACOMMUNITIES.ORG/ID/METROPOLITAN-DISTRICT-COUNCIL/WALSALL,31/12/2017,ECONOMY & ENVIRONMENT,PAYPAL *KITTYPINK,09/10/2017,H59620171010DUQQBWSMQ-2,37.50,YEI (IMPACT) PROGRAMME-PROFESSIONAL FEES AND SERVICES,"ARTIST SUPPLY STORES, CRAFT SHOPS",GPC
WALSALL COUNCIL,HTTP://OPENDATACOMMUNITIES.ORG/ID/METROPOLITAN-DISTRICT-COUNCIL/WALSALL,31/12/2017,ECONOMY & ENVIRONMENT,SCREWFIX DIRECT,09/10/2017,H59620171010DWQNDIJXN-1,71.80,FOREST ARTS CENTRE-STATIONERY & GENERAL SUPPLIES-,LUMBER & BUILDING MATERIALS STORES,GPC
WALSALL COUNCIL,HTTP://OPENDATACOMMUNITIES.ORG/ID/METROPOLITAN-DISTRICT-COUNCIL/WALSALL,31/12/2017,CHILDRENS SERVICES,WP-THE VIRTUAL COL,09/10/2017,H59620171010DXZXUUQMB-1,36.00,"43A HILTON ROAD, WILLENHALL-EXTERNAL TRAINING",OTHER SCHOOLS AND EDUCATIONAL SERVICES,GPC
WALSALL COUNCIL,HTTP://OPENDATACOMMUNITIES.ORG/ID/METROPOLITAN-DISTRICT-COUNCIL/WALSALL,31/12/2017,CHILDRENS SERVICES,BOURNE VALE RIDING,09/10/2017,H59620171010EEYBATHVF-1,19.00,"43A HILTON ROAD, WILLENHALL-RESIDENTS PERSONAL EXPENSES-AL","CLUBS COUNTRY CLUBS, MEMBERSHIP",GPC
WALSALL COUNCIL,HTTP://OPENDATACOMMUNITIES.ORG/ID/METROPOLITAN-DISTRICT-COUNCIL/WALSALL,31/12/2017,CHILDRENS SERVICES,WALSALL COUNCIL,09/10/2017,H59620171010EGVVSJJXD-1,185.36,ST FRANCIS OF ASSISI CATHOLIC -MISC FEES AND EXPENSES,GOVERNMENT SERVICES,GPC
WALSALL COUNCIL,HTTP://OPENDATACOMMUNITIES.ORG/ID/METROPOLITAN-DISTRICT-COUNCIL/WALSALL,31/12/2017,CHILDRENS SERVICES,VIRGIN MEDIA PYMTS,09/10/2017,H59620171010EMWKOPYXL-1,38.69,57 LICHFIELD ROAD-PROFESSIONAL FEES AND SERVICES,TELECOMMUNICATION SERVICES,GPC
WALSALL COUNCIL,HTTP://OPENDATACOMMUNITIES.ORG/ID/METROPOLITAN-DISTRICT-COUNCIL/WALSALL,31/12/2017,ECONOMY & ENVIRONMENT,AMAZON.CO.UK,09/10/2017,H59620171010ENHHWBZQH-1,11.88,ACTIVE ENGLAND-FURNITURE & EQUIPMENT,BOOK STORES,GPC
WALSALL COUNCIL,HTTP://OPENDATACOMMUNITIES.ORG/ID/METROPOLITAN-DISTRICT-COUNCIL/WALSALL,31/12/2017,CHANGE & GOVERNANCE,PREMIER INN44533745,09/10/2017,H59620171010ESGLYWYEH-1,219.97,HOMELESSNESS PREVENTION STRATE-HOTEL ACCOMMODATION-EMPLOYEES,PREMIER INN,GPC
WALSALL COUNCIL,HTTP://OPENDATACOMMUNITIES.ORG/ID/METROPOLITAN-DISTRICT-COUNCIL/WALSALL,31/12/2017,ECONOMY & ENVIRONMENT,AMAZON.CO.UK,09/10/2017,H59620171010EWCEXYYZN-1,175.53,YEI ESF FUNDING-PROFESSIONAL FEES AND SERVICES,BOOK STORES,GPC
WALSALL COUNCIL,HTTP://OPENDATACOMMUNITIES.ORG/ID/METROPOLITAN-DISTRICT-COUNCIL/WALSALL,31/12/2017,ECONOMY & ENVIRONMENT,AMAZON.CO.UK,09/10/2017,H59620171010EWCEXYYZN-2,175.53,YEI (IMPACT) PROGRAMME-PROFESSIONAL FEES AND SERVICES,BOOK STORES,GPC
WALSALL COUNCIL,HTTP://OPENDATACOMMUNITIES.ORG/ID/METROPOLITAN-DISTRICT-COUNCIL/WALSALL,31/12/2017,CHILDRENS SERVICES,BANNER GROUP LTD,09/10/2017,H59620171010FBKBPIXRB-1,19.12,LOCALITY FAMILY SUPPORT-NORTH-STATIONERY & GENERAL SUPPLIES-,"OFFICE, SCHOOL SUPPLY, AND STATIONERY STORES",GPC
WALSALL COUNCIL,HTTP://OPENDATACOMMUNITIES.ORG/ID/METROPOLITAN-DISTRICT-COUNCIL/WALSALL,31/12/2017,CHILDRENS SERVICES,BANNER GROUP LTD,09/10/2017,H59620171010FBKBPIXRB-2,48.72,BIRCHILLS CHILDCARE SERVICES-STATIONERY & GENERAL SUPPLIES-,"OFFICE, SCHOOL SUPPLY, AND STATIONERY STORES",GPC
WALSALL COUNCIL,HTTP://OPENDATACOMMUNITIES.ORG/ID/METROPOLITAN-DISTRICT-COUNCIL/WALSALL,31/12/2017,CHILDRENS SERVICES,BANNER GROUP LTD,09/10/2017,H59620171010FHCCUYLRE-1,56.00,LOCALITY FAMILY SUPPORT-CENTRA-POSTAGES AND COURIER SERVICES,"OFFICE, SCHOOL SUPPLY, AND STATIONERY STORES",GPC
WALSALL COUNCIL,HTTP://OPENDATACOMMUNITIES.ORG/ID/METROPOLITAN-DISTRICT-COUNCIL/WALSALL,31/12/2017,CHILDRENS SERVICES,BANNER GROUP LTD,09/10/2017,H59620171010FHCCUYLRE-2,15.46,LOCALITY FAMILY SUPPORT-NORTH-HEALTH & SAFETY-MATERIALS,"OFFICE, SCHOOL SUPPLY, AND STATIONERY STORES",GPC
WALSALL COUNCIL,HTTP://OPENDATACOMMUNITIES.ORG/ID/METROPOLITAN-DISTRICT-COUNCIL/WALSALL,31/12/2017,CHILDRENS SERVICES,BANNER GROUP LTD,09/10/2017,H59620171010FHCCUYLRE-3,90.11,LOCALITY FAMILY SUPPORT-CENTRA-CLEANING MATERIALS,"OFFICE, SCHOOL SUPPLY, AND STATIONERY STORES",GPC
WALSALL COUNCIL,HTTP://OPENDATACOMMUNITIES.ORG/ID/METROPOLITAN-DISTRICT-COUNCIL/WALSALL,31/12/2017,ECONOMY & ENVIRONMENT,SAINSBURYS S/MKT,09/10/2017,H59620171010FNRUKUTGF-1,2.25,WALSALL OUTDOOR ADVENTURE CENT-FOOD AND BEVERAGES-PROVISIONS,GROCERY STORES AND SUPERMARKETS,GPC
WALSALL COUNCIL,HTTP://OPENDATACOMMUNITIES.ORG/ID/METROPOLITAN-DISTRICT-COUNCIL/WALSALL,31/12/2017,ECONOMY & ENVIRONMENT,SAINSBURYS S/MKT,09/10/2017,H59620171010FNRUKUTGF-2,80.93,WALSALL OUTDOOR ADVENTURE CENT-FOOD AND BEVERAGES-PROVISIONS,GROCERY STORES AND SUPERMARKETS,GPC
WALSALL COUNCIL,HTTP://OPENDATACOMMUNITIES.ORG/ID/METROPOLITAN-DISTRICT-COUNCIL/WALSALL,31/12/2017,CHILDRENS SERVICES,AMAZON UK MARKETPLACE,09/10/2017,H59620171010FZVBTIMKS-1,19.98,ART & CRAFT-GENERAL MATERIALS,BOOK STORES,GPC
WALSALL COUNCIL,HTTP://OPENDATACOMMUNITIES.ORG/ID/METROPOLITAN-DISTRICT-COUNCIL/WALSALL,31/12/2017,CHANGE & GOVERNANCE,ARTHUR BRETT CATER,09/10/2017,H59620171010GFLJNWYGX-1,73.22,CA BUSILL JONES PRIMARY SCHOOL-FOOD AND BEVERAGES-PROVISIONS,MISCELLANEOUS FOOD STORES & CONVENIENCE STORES,GPC
WALSALL COUNCIL,HTTP://OPENDATACOMMUNITIES.ORG/ID/METROPOLITAN-DISTRICT-COUNCIL/WALSALL,31/12/2017,CHILDRENS SERVICES,POUNDLAND,09/10/2017,H59620171010HKREHKJWY-1,5.00,"REDRUTH ROAD-REPAIRS,ALTERATIONS & MAINTENA",DISCOUNT STORES,GPC
WALSALL COUNCIL,HTTP://OPENDATACOMMUNITIES.ORG/ID/METROPOLITAN-DISTRICT-COUNCIL/WALSALL,31/12/2017,CHILDRENS SERVICES,POUNDLAND,09/10/2017,H59620171010HKREHKJWY-2,8.00,REDRUTH ROAD-RESIDENTS PERSONAL EXPENSES-AL,DISCOUNT STORES,GPC
WALSALL COUNCIL,HTTP://OPENDATACOMMUNITIES.ORG/ID/METROPOLITAN-DISTRICT-COUNCIL/WALSALL,31/12/2017,CHILDRENS SERVICES,WWW.UKPOS.COM,09/10/2017,H59620171010IJVZEUFUR-1,420.41,ALUMWELL JUNIOR SCHOOL-NEW ITEMS OF FURNITURE,"OFFICE, SCHOOL SUPPLY, AND STATIONERY STORES",GPC
WALSALL COUNCIL,HTTP://OPENDATACOMMUNITIES.ORG/ID/METROPOLITAN-DISTRICT-COUNCIL/WALSALL,31/12/2017,ECONOMY & ENVIRONMENT,ALLIANCE DISPOSABLES,09/10/2017,H59620171010INJSTNKLW-1,455.89,WALSALL TOWN HALL-MISCELLANEOUS SUPPLIES,CATERERS,GPC
WALSALL COUNCIL,HTTP://OPENDATACOMMUNITIES.ORG/ID/METROPOLITAN-DISTRICT-COUNCIL/WALSALL,31/12/2017,ECONOMY & ENVIRONMENT,MULTIPRINT,09/10/2017,H59620171010JFWMSUJHK-1,11.97,YEI ESF FUNDING-PROFESSIONAL FEES AND SERVICES,MISCELLANEOUS PUBLISHING AND PRINTING,GPC
WALSALL COUNCIL,HTTP://OPENDATACOMMUNITIES.ORG/ID/METROPOLITAN-DISTRICT-COUNCIL/WALSALL,31/12/2017,ECONOMY & ENVIRONMENT,MULTIPRINT,09/10/2017,H59620171010JFWMSUJHK-2,11.98,YEI (IMPACT) PROGRAMME-PROFESSIONAL FEES AND SERVICES,MISCELLANEOUS PUBLISHING AND PRINTING,GPC
WALSALL COUNCIL,HTTP://OPENDATACOMMUNITIES.ORG/ID/METROPOLITAN-DISTRICT-COUNCIL/WALSALL,31/12/2017,CHANGE & GOVERNANCE,MCDONALDS,09/10/2017,H59620171010JGCBOSPHX-1,8.94,ACCOMMODATION SERVICES MANAGEM-SUBSISTENCE OFFICERS-EXPENSES,QUICK PAYMENT SERVICE-FAST-FOOD RESTAURANTS,GPC
WALSALL COUNCIL,HTTP://OPENDATACOMMUNITIES.ORG/ID/METROPOLITAN-DISTRICT-COUNCIL/WALSALL,31/12/2017,ECONOMY & ENVIRONMENT,TESCO STORES 3351,09/10/2017,H59620171010JGOWANACK-1,13.95,OAK PARK-FURNITURE & EQUIPMENT,GROCERY STORES AND SUPERMARKETS,GPC
WALSALL COUNCIL,HTTP://OPENDATACOMMUNITIES.ORG/ID/METROPOLITAN-DISTRICT-COUNCIL/WALSALL,31/12/2017,CHILDRENS SERVICES,B & Q 1169,09/10/2017,H59620171010JKYAEGPDR-1,51.95,7 THE LIMES-NEW-FURNITURE & EQUIPMENT,LUMBER & BUILDING MATERIALS STORES,GPC
WALSALL COUNCIL,HTTP://OPENDATACOMMUNITIES.ORG/ID/METROPOLITAN-DISTRICT-COUNCIL/WALSALL,31/12/2017,ECONOMY & ENVIRONMENT,MARKS&SPENCER PLC SACA,09/10/2017,H59620171010JMDDVSFZL-1,4.49,EDUCATION INFORMAL-BEVERAGES-PROVISIONS,GROCERY STORES AND SUPERMARKETS,GPC
WALSALL COUNCIL,HTTP://OPENDATACOMMUNITIES.ORG/ID/METROPOLITAN-DISTRICT-COUNCIL/WALSALL,31/12/2017,CHANGE & GOVERNANCE,WILKO RETAIL LIMIT,09/10/2017,H59620171010JNEOGNRUD-1,25.00,ACCOMMODATION SERVICES MANAGEM-FURNITURE & EQUIPMENT,HOUSEHOLD APPLIANCE STORES,GPC
WALSALL COUNCIL,HTTP://OPENDATACOMMUNITIES.ORG/ID/METROPOLITAN-DISTRICT-COUNCIL/WALSALL,31/12/2017,ECONOMY & ENVIRONMENT,CARTRIDGE SAVE,09/10/2017,H59620171010JPBRIQXXF-1,21.01,FLEET-GENERAL MATERIALS,"STATIONERY, OFFICE SUPPLIES AND WRITING PAPER",GPC
WALSALL COUNCIL,HTTP://OPENDATACOMMUNITIES.ORG/ID/METROPOLITAN-DISTRICT-COUNCIL/WALSALL,31/12/2017,CHILDRENS SERVICES,WALSALL COUNCIL,09/10/2017,H59620171010JUTZIXNSL-1,-17.00,GENERAL MANAGEMENT SUPPORT (IN-LEGAL FEES-PRIV CONTRACTOR FEE,GOVERNMENT SERVICES,GPC
WALSALL COUNCIL,HTTP://OPENDATACOMMUNITIES.ORG/ID/METROPOLITAN-DISTRICT-COUNCIL/WALSALL,31/12/2017,CHANGE & GOVERNANCE,ARTHUR BRETT CATER,09/10/2017,H59620171010KQYIUIGMF-1,96.50,CA LEIGHSWOOD PRIMARY SCHOOL-FRUIT & VEGETABLES OTHER-PROVI,MISCELLANEOUS FOOD STORES & CONVENIENCE STORES,GPC
WALSALL COUNCIL,HTTP://OPENDATACOMMUNITIES.ORG/ID/METROPOLITAN-DISTRICT-COUNCIL/WALSALL,31/12/2017,SOCIAL CARE & INCLUSION,ASDA HOME SHOPPING,09/10/2017,H59620171010KTVWOWBIB-1,-20.00,FALLINGS HEATH-FOOD AND BEVERAGES-PROVISIONS,GROCERY STORES AND SUPERMARKETS,GPC
WALSALL COUNCIL,HTTP://OPENDATACOMMUNITIES.ORG/ID/METROPOLITAN-DISTRICT-COUNCIL/WALSALL,31/12/2017,CHANGE & GOVERNANCE,BRITISH HEART FOUNDATI,09/10/2017,H59620171010KXOAKSISV-1,15.00,WALSALL CRISIS SUPPORT SCHEME-CRISIS SUPPORT PAYMENTS,"ORGANIZATIONS, CHARITABLE AND SOCIAL SERVICE",GPC
WALSALL COUNCIL,HTTP://OPENDATACOMMUNITIES.ORG/ID/METROPOLITAN-DISTRICT-COUNCIL/WALSALL,31/12/2017,CHANGE & GOVERNANCE,BRITISH HEART FOUNDATI,09/10/2017,H59620171010KXOAKSISV-2,60.00,WALSALL CRISIS SUPPORT SCHEME-CRISIS SUPPORT PAYMENTS,"ORGANIZATIONS, CHARITABLE AND SOCIAL SERVICE",GPC
WALSALL COUNCIL,HTTP://OPENDATACOMMUNITIES.ORG/ID/METROPOLITAN-DISTRICT-COUNCIL/WALSALL,31/12/2017,CHANGE & GOVERNANCE,ARTHUR BRETT CATER,09/10/2017,H59620171010LGCCMDURM-1,12.40,CA ST JOHNS C.E. PRIMARY SCHOO-FRUIT & VEGETABLES OTHER-PROVI,MISCELLANEOUS FOOD STORES & CONVENIENCE STORES,GPC
WALSALL COUNCIL,HTTP://OPENDATACOMMUNITIES.ORG/ID/METROPOLITAN-DISTRICT-COUNCIL/WALSALL,31/12/2017,CHILDRENS SERVICES,THE CLARKS SHOP,09/10/2017,H59620171010LHCKTVRCL-1,48.00,REDRUTH ROAD-RESIDENTS PERSONAL EXPENSES-AL,SHOE STORES,GPC
WALSALL COUNCIL,HTTP://OPENDATACOMMUNITIES.ORG/ID/METROPOLITAN-DISTRICT-COUNCIL/WALSALL,31/12/2017,CHILDRENS SERVICES,BANNER GROUP LTD,09/10/2017,H59620171010LJDVESMBJ-1,50.80,LOCALITY FAMILY SUPPORT-CENTRA-STATIONERY & GENERAL SUPPLIES-,"OFFICE, SCHOOL SUPPLY, AND STATIONERY STORES",GPC
WALSALL COUNCIL,HTTP://OPENDATACOMMUNITIES.ORG/ID/METROPOLITAN-DISTRICT-COUNCIL/WALSALL,31/12/2017,CHILDRENS SERVICES,BOURNE VALE RIDING,09/10/2017,H59620171010LLRSBUEGE-1,19.00,57 LICHFIELD ROAD-RESIDENTS PERSONAL EXPENSES-AL,"CLUBS COUNTRY CLUBS, MEMBERSHIP",GPC
WALSALL COUNCIL,HTTP://OPENDATACOMMUNITIES.ORG/ID/METROPOLITAN-DISTRICT-COUNCIL/WALSALL,31/12/2017,CHANGE & GOVERNANCE,ARTHUR BRETT CATER,09/10/2017,H59620171010MCLVUGQOP-1,17.91,CA CASTLEFORT JMI SCHOOL-FRUIT & VEGETABLES OTHER-PROVI,MISCELLANEOUS FOOD STORES & CONVENIENCE STORES,GPC
WALSALL COUNCIL,HTTP://OPENDATACOMMUNITIES.ORG/ID/METROPOLITAN-DISTRICT-COUNCIL/WALSALL,31/12/2017,ECONOMY & ENVIRONMENT,WM MORRISONS,09/10/2017,H59620171010MPEWJQQMP-1,13.60,"ARBORETUM HLF-REPAIRS,ALTERATIONS & MAINTENA",GROCERY STORES AND SUPERMARKETS,GPC
WALSALL COUNCIL,HTTP://OPENDATACOMMUNITIES.ORG/ID/METROPOLITAN-DISTRICT-COUNCIL/WALSALL,31/12/2017,CHILDRENS SERVICES,GRO HM PASSPORT OFFICE,09/10/2017,H59620171010MPGMGDWJT-1,23.40,SAFEGUARDING & FAMILY SUPPORT-REGISTRAR OF BIRTHS/DEATHS/MAR,GOVERNMENT SERVICES,GPC
WALSALL COUNCIL,HTTP://OPENDATACOMMUNITIES.ORG/ID/METROPOLITAN-DISTRICT-COUNCIL/WALSALL,31/12/2017,ECONOMY & ENVIRONMENT,AMAZON UK MARKETPLACE,09/10/2017,H59620171010MQXNKVJRG-1,2.00,YEI ESF FUNDING-PROFESSIONAL FEES AND SERVICES,BOOK STORES,GPC
WALSALL COUNCIL,HTTP://OPENDATACOMMUNITIES.ORG/ID/METROPOLITAN-DISTRICT-COUNCIL/WALSALL,31/12/2017,ECONOMY & ENVIRONMENT,AMAZON UK MARKETPLACE,09/10/2017,H59620171010MQXNKVJRG-2,1.99,YEI (IMPACT) PROGRAMME-PROFESSIONAL FEES AND SERVICES,BOOK STORES,GPC
WALSALL COUNCIL,HTTP://OPENDATACOMMUNITIES.ORG/ID/METROPOLITAN-DISTRICT-COUNCIL/WALSALL,31/12/2017,CHILDRENS SERVICES,LIDL UK,09/10/2017,H59620171010NAPLSXMKH-1,38.80,PELSALL VILLAGE SCHOOL-BREAD-GENERAL-PROVISIONS,GROCERY STORES AND SUPERMARKETS,GPC
WALSALL COUNCIL,HTTP://OPENDATACOMMUNITIES.ORG/ID/METROPOLITAN-DISTRICT-COUNCIL/WALSALL,31/12/2017,ECONOMY & ENVIRONMENT,WWW.NISBETS.COM,09/10/2017,H59620171010NKGDXDKQO-1,71.95,FOREST ARTS CENTRE-STATIONERY & GENERAL SUPPLIES-,DIRECT MARKETING CATALOG MERCHANTS,GPC
WALSALL COUNCIL,HTTP://OPENDATACOMMUNITIES.ORG/ID/METROPOLITAN-DISTRICT-COUNCIL/WALSALL,31/12/2017,CHILDRENS SERVICES,AMAZON UK RETAIL,09/10/2017,H59620171010NKNWKGPMR-1,44.80,LITERACY LH-LIBRARY BOOKS,OTHER DIRECT MARKETING-OTHER DIRECT MARKETERS,GPC
WALSALL COUNCIL,HTTP://OPENDATACOMMUNITIES.ORG/ID/METROPOLITAN-DISTRICT-COUNCIL/WALSALL,31/12/2017,CHILDRENS SERVICES,AMAZON UK MARKETPLACE,09/10/2017,H59620171010NLVQIEXFW-1,5.99,SEN ASSESSMENT-LIBRARY BOOKS,BOOK STORES,GPC
WALSALL COUNCIL,HTTP://OPENDATACOMMUNITIES.ORG/ID/METROPOLITAN-DISTRICT-COUNCIL/WALSALL,31/12/2017,CHILDRENS SERVICES,WALSALL COUNCIL,09/10/2017,H59620171010NOCBNBLTL-1,34.00,GENERAL MANAGEMENT SUPPORT (IN-LEGAL FEES-PRIV CONTRACTOR FEE,GOVERNMENT SERVICES,GPC
WALSALL COUNCIL,HTTP://OPENDATACOMMUNITIES.ORG/ID/METROPOLITAN-DISTRICT-COUNCIL/WALSALL,31/12/2017,CHILDRENS SERVICES,PARENTPAY E-COM R,09/10/2017,H59620171010NVSMWUYRS-1,15.00,57 LICHFIELD ROAD-FOOD AND BEVERAGES-PROVISIONS,"COLLEGES, UNIVERSITIES, PROFESSIONAL SCHOOLS",GPC
WALSALL COUNCIL,HTTP://OPENDATACOMMUNITIES.ORG/ID/METROPOLITAN-DISTRICT-COUNCIL/WALSALL,31/12/2017,CHILDRENS SERVICES,TESCO PFS 3374,09/10/2017,H59620171010ODMGGEBBX-1,2.25,"43A HILTON ROAD, WILLENHALL-FOOD AND BEVERAGES-PROVISIONS",SERVICE STATIONS,GPC
WALSALL COUNCIL,HTTP://OPENDATACOMMUNITIES.ORG/ID/METROPOLITAN-DISTRICT-COUNCIL/WALSALL,31/12/2017,CHILDRENS SERVICES,POST OFFICE COUNTER,09/10/2017,H59620171010PGRLFUPVO-1,3.90,ADMINISTRATIVE SUPPLIES-POSTAGES AND COURIER SERVICES,POSTAL SERVICES - GOVERNMENT ONLY,GPC
WALSALL COUNCIL,HTTP://OPENDATACOMMUNITIES.ORG/ID/METROPOLITAN-DISTRICT-COUNCIL/WALSALL,31/12/2017,CHILDRENS SERVICES,TESCO STORES 6161,09/10/2017,H59620171010PJPKNWKTN-1,0.20,57 LICHFIELD ROAD-FOOD AND BEVERAGES-PROVISIONS,GROCERY STORES AND SUPERMARKETS,GPC
WALSALL COUNCIL,HTTP://OPENDATACOMMUNITIES.ORG/ID/METROPOLITAN-DISTRICT-COUNCIL/WALSALL,31/12/2017,CHILDRENS SERVICES,TESCO STORES 6161,09/10/2017,H59620171010PJPKNWKTN-2,16.06,57 LICHFIELD ROAD-FOOD AND BEVERAGES-PROVISIONS,GROCERY STORES AND SUPERMARKETS,GPC
WALSALL COUNCIL,HTTP://OPENDATACOMMUNITIES.ORG/ID/METROPOLITAN-DISTRICT-COUNCIL/WALSALL,31/12/2017,CHANGE & GOVERNANCE,ARTHUR BRETT CATER,09/10/2017,H59620171010QIODHFTTQ-1,55.26,CA RUSHALL JMI SCHOOL-FRUIT & VEGETABLES OTHER-PROVI,MISCELLANEOUS FOOD STORES & CONVENIENCE STORES,GPC
WALSALL COUNCIL,HTTP://OPENDATACOMMUNITIES.ORG/ID/METROPOLITAN-DISTRICT-COUNCIL/WALSALL,31/12/2017,CHILDRENS SERVICES,AMAZON UK MARKETPLACE,09/10/2017,H59620171010QRYXPGWNB-1,408.71,VIRTUAL SCHOOL - CENTRAL PUPIL-LIBRARY BOOKS,BOOK STORES,GPC
WALSALL COUNCIL,HTTP://OPENDATACOMMUNITIES.ORG/ID/METROPOLITAN-DISTRICT-COUNCIL/WALSALL,31/12/2017,ECONOMY & ENVIRONMENT,TRAVEL WEST MIDLAN,09/10/2017,H59620171010QVBAZJIGU-1,29.50,YEI ESF FUNDING-PROFESSIONAL FEES AND SERVICES,BUS LINES,GPC
WALSALL COUNCIL,HTTP://OPENDATACOMMUNITIES.ORG/ID/METROPOLITAN-DISTRICT-COUNCIL/WALSALL,31/12/2017,ECONOMY & ENVIRONMENT,TRAVEL WEST MIDLAN,09/10/2017,H59620171010QVBAZJIGU-2,29.50,YEI (IMPACT) PROGRAMME-PROFESSIONAL FEES AND SERVICES,BUS LINES,GPC
WALSALL COUNCIL,HTTP://OPENDATACOMMUNITIES.ORG/ID/METROPOLITAN-DISTRICT-COUNCIL/WALSALL,31/12/2017,CHILDRENS SERVICES,BLINDS 2 GO LTD,09/10/2017,H59620171010RDMMGKLNI-1,382.26,7 THE LIMES-NEW-FURNITURE & EQUIPMENT,"DRAPERY, UPHOLSTERY, AND WINDOW COVERINGS STORES",GPC
WALSALL COUNCIL,HTTP://OPENDATACOMMUNITIES.ORG/ID/METROPOLITAN-DISTRICT-COUNCIL/WALSALL,31/12/2017,CHANGE & GOVERNANCE,ARTHUR BRETT CATER,09/10/2017,H59620171010RPFJYTRQB-1,152.57,CA COOPER JORDAN CE PRIMARY SC-FRUIT & VEGETABLES OTHER-PROVI,MISCELLANEOUS FOOD STORES & CONVENIENCE STORES,GPC
WALSALL COUNCIL,HTTP://OPENDATACOMMUNITIES.ORG/ID/METROPOLITAN-DISTRICT-COUNCIL/WALSALL,31/12/2017,ECONOMY & ENVIRONMENT,AMAZON.CO.UK,09/10/2017,H59620171010RREEOGDAO-1,13.47,BLOXWICH LEISURE CENTRE-MAINTENANCE-FURNITURE & EQUIPM,BOOK STORES,GPC
WALSALL COUNCIL,HTTP://OPENDATACOMMUNITIES.ORG/ID/METROPOLITAN-DISTRICT-COUNCIL/WALSALL,31/12/2017,CHILDRENS SERVICES,METRO INNS WALSALL,09/10/2017,H59620171010SFJAWEMFF-1,266.00,SAFEGUARDING & FAMILY SUPPORT-TRANSFER PAYMENTS - SOCIAL SER,"HOTELS, MOTELS, RESORTS",GPC
WALSALL COUNCIL,HTTP://OPENDATACOMMUNITIES.ORG/ID/METROPOLITAN-DISTRICT-COUNCIL/WALSALL,31/12/2017,CHILDRENS SERVICES,REGISTRARS OFFICE,09/10/2017,H59620171010SJXWLPGTH-1,11.00,GENERAL MANAGEMENT SUPPORT (IN-MISCELLANEOUS SUPPLIES,OTHER SCHOOLS AND EDUCATIONAL SERVICES,GPC
WALSALL COUNCIL,HTTP://OPENDATACOMMUNITIES.ORG/ID/METROPOLITAN-DISTRICT-COUNCIL/WALSALL,31/12/2017,ECONOMY & ENVIRONMENT,AMAZON.CO.UK,09/10/2017,H59620171010SPYAJMEBN-1,14.49,YEI ESF FUNDING-PROFESSIONAL FEES AND SERVICES,BOOK STORES,GPC
WALSALL COUNCIL,HTTP://OPENDATACOMMUNITIES.ORG/ID/METROPOLITAN-DISTRICT-COUNCIL/WALSALL,31/12/2017,ECONOMY & ENVIRONMENT,AMAZON.CO.UK,09/10/2017,H59620171010SPYAJMEBN-2,14.50,YEI (IMPACT) PROGRAMME-PROFESSIONAL FEES AND SERVICES,BOOK STORES,GPC
WALSALL COUNCIL,HTTP://OPENDATACOMMUNITIES.ORG/ID/METROPOLITAN-DISTRICT-COUNCIL/WALSALL,31/12/2017,CHILDRENS SERVICES,BANNER GROUP LTD,09/10/2017,H59620171010SUVPKGOTO-1,103.00,LOCALITY FAMILY SUPPORT-CENTRA-STATIONERY & GENERAL SUPPLIES-,"OFFICE, SCHOOL SUPPLY, AND STATIONERY STORES",GPC
WALSALL COUNCIL,HTTP://OPENDATACOMMUNITIES.ORG/ID/METROPOLITAN-DISTRICT-COUNCIL/WALSALL,31/12/2017,CHILDRENS SERVICES,AMAZON UK MARKETPLACE,09/10/2017,H59620171010TNBXNTSRO-1,55.51,CONTINGENCY-NEW-FURNITURE & EQUIPMENT,BOOK STORES,GPC
WALSALL COUNCIL,HTTP://OPENDATACOMMUNITIES.ORG/ID/METROPOLITAN-DISTRICT-COUNCIL/WALSALL,31/12/2017,CHILDRENS SERVICES,AMAZON UK MARKETPLACE,09/10/2017,H59620171010TNBXNTSRO-2,2.94,CONTINGENCY-NEW-FURNITURE & EQUIPMENT,BOOK STORES,GPC
WALSALL COUNCIL,HTTP://OPENDATACOMMUNITIES.ORG/ID/METROPOLITAN-DISTRICT-COUNCIL/WALSALL,31/12/2017,CHILDRENS SERVICES,BANNER GROUP LTD,09/10/2017,H59620171010TUPBWATYB-1,107.26,TRANSITION AND LEAVING CARE SU-STATIONERY & GENERAL SUPPLIES-,"OFFICE, SCHOOL SUPPLY, AND STATIONERY STORES",GPC
WALSALL COUNCIL,HTTP://OPENDATACOMMUNITIES.ORG/ID/METROPOLITAN-DISTRICT-COUNCIL/WALSALL,31/12/2017,ECONOMY & ENVIRONMENT,SPORTSDIRECT 153,09/10/2017,H59620171010VFYHYGDSS-1,9.00,YEI ESF FUNDING-PROFESSIONAL FEES AND SERVICES,SPORTING GOODS STORES,GPC
WALSALL COUNCIL,HTTP://OPENDATACOMMUNITIES.ORG/ID/METROPOLITAN-DISTRICT-COUNCIL/WALSALL,31/12/2017,ECONOMY & ENVIRONMENT,SPORTSDIRECT 153,09/10/2017,H59620171010VFYHYGDSS-2,8.99,YEI (IMPACT) PROGRAMME-PROFESSIONAL FEES AND SERVICES,SPORTING GOODS STORES,GPC
WALSALL COUNCIL,HTTP://OPENDATACOMMUNITIES.ORG/ID/METROPOLITAN-DISTRICT-COUNCIL/WALSALL,31/12/2017,CHILDRENS SERVICES,EBUYER (UK) LTD,09/10/2017,H59620171010VJOKZSMXH-1,288.99,INFORMATION SERVICES-FURNITURE & EQUIPMENT,HOUSEHOLD APPLIANCE STORES,GPC
WALSALL COUNCIL,HTTP://OPENDATACOMMUNITIES.ORG/ID/METROPOLITAN-DISTRICT-COUNCIL/WALSALL,31/12/2017,CHANGE & GOVERNANCE,"BOOTS,WALSALL",09/10/2017,H59620171010VTBPTNBYM-1,9.50,WALSALL CRISIS SUPPORT SCHEME-CRISIS SUPPORT PAYMENTS,"DRUG STORES, PHARMACIES",GPC
WALSALL COUNCIL,HTTP://OPENDATACOMMUNITIES.ORG/ID/METROPOLITAN-DISTRICT-COUNCIL/WALSALL,31/12/2017,CHILDRENS SERVICES,W M MORRISON PLC,09/10/2017,H59620171010WOWXXOLND-1,4.42,"43A HILTON ROAD, WILLENHALL-FOOD AND BEVERAGES-PROVISIONS",GROCERY STORES AND SUPERMARKETS,GPC
WALSALL COUNCIL,HTTP://OPENDATACOMMUNITIES.ORG/ID/METROPOLITAN-DISTRICT-COUNCIL/WALSALL,31/12/2017,CHILDRENS SERVICES,W M MORRISON PLC,09/10/2017,H59620171010WOWXXOLND-2,82.49,"43A HILTON ROAD, WILLENHALL-FOOD AND BEVERAGES-PROVISIONS",GROCERY STORES AND SUPERMARKETS,GPC
WALSALL COUNCIL,HTTP://OPENDATACOMMUNITIES.ORG/ID/METROPOLITAN-DISTRICT-COUNCIL/WALSALL,31/12/2017,ECONOMY & ENVIRONMENT,AMAZON.CO.UK,09/10/2017,H59620171010WUHFWQQCA-1,7.65,CENTRALISED STATIONARY-LIBRARY BOOKS,BOOK STORES,GPC
WALSALL COUNCIL,HTTP://OPENDATACOMMUNITIES.ORG/ID/METROPOLITAN-DISTRICT-COUNCIL/WALSALL,31/12/2017,CHILDRENS SERVICES,AMAZON UK RETAIL,09/10/2017,H59620171010XSUMABMYK-1,16.00,LITERACY LH-LIBRARY BOOKS,OTHER DIRECT MARKETING-OTHER DIRECT MARKETERS,GPC
WALSALL COUNCIL,HTTP://OPENDATACOMMUNITIES.ORG/ID/METROPOLITAN-DISTRICT-COUNCIL/WALSALL,31/12/2017,CHILDRENS SERVICES,REGISTRATION SERVICES,09/10/2017,H59620171010YIQLFCUJE-1,10.00,LOOKED AFTER CHILDRENS SOCIAL -MISC FEES AND EXPENSES,OTHER RECREATION SERVICES,GPC
WALSALL COUNCIL,HTTP://OPENDATACOMMUNITIES.ORG/ID/METROPOLITAN-DISTRICT-COUNCIL/WALSALL,31/12/2017,CHILDRENS SERVICES,MY FANCY DRESS PARTY,09/10/2017,H59620171010YUTMOHHFB-1,531.05,VIRTUAL SCHOOL - CENTRAL PUPIL-PROTECTIVE CLOTHING & UNIFORM,"CLOTHING RENTAL, UNIFORMS, AND FORMAL WEAR",GPC
WALSALL COUNCIL,HTTP://OPENDATACOMMUNITIES.ORG/ID/METROPOLITAN-DISTRICT-COUNCIL/WALSALL,31/12/2017,ECONOMY & ENVIRONMENT,LONDON MIDLAND TIC,09/10/2017,H59620171010YWVBMJJTQ-1,7.80,NEW ART GALLERY - ADMIN-OFFICER/STAFF-PUBLIC TRANSPORT,PASSENGER RAILWAYS,GPC
WALSALL COUNCIL,HTTP://OPENDATACOMMUNITIES.ORG/ID/METROPOLITAN-DISTRICT-COUNCIL/WALSALL,31/12/2017,CHILDRENS SERVICES,WH SMITH,09/10/2017,H59620171010ZDTWUOQFP-1,20.99,DT-GENERAL MATERIALS,NEWS DEALERS AND NEWSSTANDS,GPC
WALSALL COUNCIL,HTTP://OPENDATACOMMUNITIES.ORG/ID/METROPOLITAN-DISTRICT-COUNCIL/WALSALL,31/12/2017,CHILDRENS SERVICES,BANNER GROUP LTD,09/10/2017,H59620171010ZRAGTGDIK-1,24.86,CHILD PROTECTION & REVIEW SERV-STATIONERY & GENERAL SUPPLIES-,"OFFICE, SCHOOL SUPPLY, AND STATIONERY STORES",GPC
WALSALL COUNCIL,HTTP://OPENDATACOMMUNITIES.ORG/ID/METROPOLITAN-DISTRICT-COUNCIL/WALSALL,31/12/2017,CHANGE & GOVERNANCE,JOHAL DAIRIES LTD,10/10/2017,H59620171011AFYTBRMHJ-1,29.62,CA LINDENS PRIMARY SCHOOL-MISC DAIRY PRODUCTS-PROVISIONS,OTHER NONDURABLE GOODS,GPC
WALSALL COUNCIL,HTTP://OPENDATACOMMUNITIES.ORG/ID/METROPOLITAN-DISTRICT-COUNCIL/WALSALL,31/12/2017,CHANGE & GOVERNANCE,BLAKEMORE FOODSERVICE,10/10/2017,H59620171011AOKJCHYZZ-1,46.65,CA BLUE COAT C OF E PERFORMING-FROZEN FOODS-PROVISIONS,CATERERS,GPC
WALSALL COUNCIL,HTTP://OPENDATACOMMUNITIES.ORG/ID/METROPOLITAN-DISTRICT-COUNCIL/WALSALL,31/12/2017,ECONOMY & ENVIRONMENT,AMAZON.CO.UK,10/10/2017,H59620171011BBXIHZECG-1,1.49,YEI ESF FUNDING-PROFESSIONAL FEES AND SERVICES,BOOK STORES,GPC
WALSALL COUNCIL,HTTP://OPENDATACOMMUNITIES.ORG/ID/METROPOLITAN-DISTRICT-COUNCIL/WALSALL,31/12/2017,ECONOMY & ENVIRONMENT,AMAZON.CO.UK,10/10/2017,H59620171011BBXIHZECG-2,1.49,YEI (IMPACT) PROGRAMME-PROFESSIONAL FEES AND SERVICES,BOOK STORES,GPC
WALSALL COUNCIL,HTTP://OPENDATACOMMUNITIES.ORG/ID/METROPOLITAN-DISTRICT-COUNCIL/WALSALL,31/12/2017,SOCIAL CARE & INCLUSION,JOHAL DAIRIES LTD,10/10/2017,H59620171011BIDHSEIVE-1,23.78,FALLINGS HEATH-FOOD AND BEVERAGES-PROVISIONS,OTHER NONDURABLE GOODS,GPC
WALSALL COUNCIL,HTTP://OPENDATACOMMUNITIES.ORG/ID/METROPOLITAN-DISTRICT-COUNCIL/WALSALL,31/12/2017,CHILDRENS SERVICES,BLACK COUNTRY WIND,10/10/2017,H59620171011BOMGOISGF-1,98.40,"REDRUTH ROAD-REPAIRS,ALTERATIONS & MAINTENA",SPECIAL TRADE CONTRACTORS,GPC
WALSALL COUNCIL,HTTP://OPENDATACOMMUNITIES.ORG/ID/METROPOLITAN-DISTRICT-COUNCIL/WALSALL,31/12/2017,CHANGE & GOVERNANCE,JOHAL DAIRIES LTD,10/10/2017,H59620171011BSCJVYPSH-1,25.39,CA ST BERNADETTES CATHOLIC PRI-MISC DAIRY PRODUCTS-PROVISIONS,OTHER NONDURABLE GOODS,GPC
WALSALL COUNCIL,HTTP://OPENDATACOMMUNITIES.ORG/ID/METROPOLITAN-DISTRICT-COUNCIL/WALSALL,31/12/2017,CHANGE & GOVERNANCE,WWW.SCC.COM,10/10/2017,H59620171011BSWSONDWV-1,390.06,RECHARGEABLE EQUIPMENT-COMPUTER EQUIPMENT AND SUPPLIE,"COMPUTERS, COMPUTER PERIPHERAL EQUIPMENT, SOFTWARE",GPC
WALSALL COUNCIL,HTTP://OPENDATACOMMUNITIES.ORG/ID/METROPOLITAN-DISTRICT-COUNCIL/WALSALL,31/12/2017,CHILDRENS SERVICES,WWW.FCO.GOV.UK,10/10/2017,H59620171011BUKORMPMF-1,35.50,SAFEGUARDING & FAMILY SUPPORT-LEGAL FEES-PRIV CONTRACTOR FEE,GOVERNMENT SERVICES,GPC
WALSALL COUNCIL,HTTP://OPENDATACOMMUNITIES.ORG/ID/METROPOLITAN-DISTRICT-COUNCIL/WALSALL,31/12/2017,CHANGE & GOVERNANCE,JOHAL DAIRIES LTD,10/10/2017,H59620171011BXLYDKUGA-1,58.14,CA BARCROFT D/C-MISC DAIRY PRODUCTS-PROVISIONS,OTHER NONDURABLE GOODS,GPC
WALSALL COUNCIL,HTTP://OPENDATACOMMUNITIES.ORG/ID/METROPOLITAN-DISTRICT-COUNCIL/WALSALL,31/12/2017,CHANGE & GOVERNANCE,JOHAL DAIRIES LTD,10/10/2017,H59620171011CICIWSKQX-1,19.10,CA FIBBERSLEY PARK PRIMARY SCH-MISC DAIRY PRODUCTS-PROVISIONS,OTHER NONDURABLE GOODS,GPC
WALSALL COUNCIL,HTTP://OPENDATACOMMUNITIES.ORG/ID/METROPOLITAN-DISTRICT-COUNCIL/WALSALL,31/12/2017,CHANGE & GOVERNANCE,BLAKEMORE FOODSERVICE,10/10/2017,H59620171011CPUVUFOYC-1,190.01,CA RADLEYS PRIMARY SCHOOL-DRY FOODS-PROVISIONS,CATERERS,GPC
WALSALL COUNCIL,HTTP://OPENDATACOMMUNITIES.ORG/ID/METROPOLITAN-DISTRICT-COUNCIL/WALSALL,31/12/2017,CHANGE & GOVERNANCE,BLAKEMORE FOODSERVICE,10/10/2017,H59620171011CPUVUFOYC-2,400.18,CA RADLEYS PRIMARY SCHOOL-DRY FOODS-PROVISIONS,CATERERS,GPC
WALSALL COUNCIL,HTTP://OPENDATACOMMUNITIES.ORG/ID/METROPOLITAN-DISTRICT-COUNCIL/WALSALL,31/12/2017,CHILDRENS SERVICES,TESCO STORES 6161,10/10/2017,H59620171011CWZDGMWDL-1,5.93,FOOD TECHNOLOGY-GENERAL MATERIALS,GROCERY STORES AND SUPERMARKETS,GPC
WALSALL COUNCIL,HTTP://OPENDATACOMMUNITIES.ORG/ID/METROPOLITAN-DISTRICT-COUNCIL/WALSALL,31/12/2017,CHILDRENS SERVICES,TESCO STORES 6161,10/10/2017,H59620171011CWZDGMWDL-2,46.56,FOOD TECHNOLOGY-GENERAL MATERIALS,GROCERY STORES AND SUPERMARKETS,GPC
WALSALL COUNCIL,HTTP://OPENDATACOMMUNITIES.ORG/ID/METROPOLITAN-DISTRICT-COUNCIL/WALSALL,31/12/2017,CHANGE & GOVERNANCE,JOHAL DAIRIES LTD,10/10/2017,H59620171011CZGZMWVAC-1,16.72,CA TOWN HALL RESTAURANT - CATE-MISC DAIRY PRODUCTS-PROVISIONS,OTHER NONDURABLE GOODS,GPC
WALSALL COUNCIL,HTTP://OPENDATACOMMUNITIES.ORG/ID/METROPOLITAN-DISTRICT-COUNCIL/WALSALL,31/12/2017,CHANGE & GOVERNANCE,JOHAL DAIRIES LTD,10/10/2017,H59620171011DFYBGBFNN-1,7.28,CA BEACON PRIMARY SCHOOL-MISC DAIRY PRODUCTS-PROVISIONS,OTHER NONDURABLE GOODS,GPC
WALSALL COUNCIL,HTTP://OPENDATACOMMUNITIES.ORG/ID/METROPOLITAN-DISTRICT-COUNCIL/WALSALL,31/12/2017,CHANGE & GOVERNANCE,BLAKEMORE FOODSERVICE,10/10/2017,H59620171011DLAVGEITB-1,16.66,CA CASTLEFORT JMI SCHOOL-FROZEN FOODS-PROVISIONS,CATERERS,GPC
WALSALL COUNCIL,HTTP://OPENDATACOMMUNITIES.ORG/ID/METROPOLITAN-DISTRICT-COUNCIL/WALSALL,31/12/2017,CHANGE & GOVERNANCE,JOHAL DAIRIES LTD,10/10/2017,H59620171011DMRGGFPLT-1,19.88,CA ELMORE GREEN PRIMARY SCHOOL-,OTHER NONDURABLE GOODS,GPC
WALSALL COUNCIL,HTTP://OPENDATACOMMUNITIES.ORG/ID/METROPOLITAN-DISTRICT-COUNCIL/WALSALL,31/12/2017,CHANGE & GOVERNANCE,JOHAL DAIRIES LTD,10/10/2017,H59620171011DQGFDBPSQ-1,43.23,CA ST MICHAELS C.E. PRIMARY SC-MISC DAIRY PRODUCTS-PROVISIONS,OTHER NONDURABLE GOODS,GPC
WALSALL COUNCIL,HTTP://OPENDATACOMMUNITIES.ORG/ID/METROPOLITAN-DISTRICT-COUNCIL/WALSALL,31/12/2017,CHANGE & GOVERNANCE,TESCO STORES 6161,10/10/2017,H59620171011DQXMREFJM-1,4.99,ACCOMMODATION SERVICES MANAGEM-FOOD AND BEVERAGES-PROVISIONS,GROCERY STORES AND SUPERMARKETS,GPC
WALSALL COUNCIL,HTTP://OPENDATACOMMUNITIES.ORG/ID/METROPOLITAN-DISTRICT-COUNCIL/WALSALL,31/12/2017,CHANGE & GOVERNANCE,TESCO STORES 6161,10/10/2017,H59620171011DQXMREFJM-2,10.00,ACCOMMODATION SERVICES MANAGEM-FOOD AND BEVERAGES-PROVISIONS,GROCERY STORES AND SUPERMARKETS,GPC
WALSALL COUNCIL,HTTP://OPENDATACOMMUNITIES.ORG/ID/METROPOLITAN-DISTRICT-COUNCIL/WALSALL,31/12/2017,CHILDRENS SERVICES,DECATHLON UK LTD,10/10/2017,H59620171011DTUDNCCLE-1,99.96,CONTINGENCY-NEW-FURNITURE & EQUIPMENT,SPORTING GOODS STORES,GPC
WALSALL COUNCIL,HTTP://OPENDATACOMMUNITIES.ORG/ID/METROPOLITAN-DISTRICT-COUNCIL/WALSALL,31/12/2017,SOCIAL CARE & INCLUSION,JOHAL DAIRIES LTD,10/10/2017,H59620171011DXYTAGRKB-1,107.63,REABLEMENT TEAM - HOLLY BANK-DAIRY PRODUCTS-PROVISIONS,OTHER NONDURABLE GOODS,GPC
WALSALL COUNCIL,HTTP://OPENDATACOMMUNITIES.ORG/ID/METROPOLITAN-DISTRICT-COUNCIL/WALSALL,31/12/2017,ECONOMY & ENVIRONMENT,TRAVEL WEST MIDLAN,10/10/2017,H59620171011EOTIBCOBC-1,15.00,YEI ESF FUNDING-PROFESSIONAL FEES AND SERVICES,BUS LINES,GPC
WALSALL COUNCIL,HTTP://OPENDATACOMMUNITIES.ORG/ID/METROPOLITAN-DISTRICT-COUNCIL/WALSALL,31/12/2017,ECONOMY & ENVIRONMENT,TRAVEL WEST MIDLAN,10/10/2017,H59620171011EOTIBCOBC-2,15.00,YEI (IMPACT) PROGRAMME-PROFESSIONAL FEES AND SERVICES,BUS LINES,GPC
WALSALL COUNCIL,HTTP://OPENDATACOMMUNITIES.ORG/ID/METROPOLITAN-DISTRICT-COUNCIL/WALSALL,31/12/2017,ECONOMY & ENVIRONMENT,SCREWFIX DIRECT,10/10/2017,H59620171011ETJWGFUTQ-1,15.12,WALSALL OUTDOOR ADVENTURE CENT-GENERAL MATERIALS,LUMBER & BUILDING MATERIALS STORES,GPC
WALSALL COUNCIL,HTTP://OPENDATACOMMUNITIES.ORG/ID/METROPOLITAN-DISTRICT-COUNCIL/WALSALL,31/12/2017,CHANGE & GOVERNANCE,WELSH BROS FOODS LTD,10/10/2017,H59620171011EYMNPPWMC-1,53.13,CA ELMORE GREEN PRIMARY SCHOOL-MEAT-PROVISIONS,FREEZER AND LOCKER MEAT PROVISIONERS,GPC
WALSALL COUNCIL,HTTP://OPENDATACOMMUNITIES.ORG/ID/METROPOLITAN-DISTRICT-COUNCIL/WALSALL,31/12/2017,ECONOMY & ENVIRONMENT,B & Q 1276,10/10/2017,H59620171011FAYDUYNEU-1,6.90,INFRASTRUCTURE MAINTENANCE-GENERAL MATERIALS,LUMBER & BUILDING MATERIALS STORES,GPC
WALSALL COUNCIL,HTTP://OPENDATACOMMUNITIES.ORG/ID/METROPOLITAN-DISTRICT-COUNCIL/WALSALL,31/12/2017,CHANGE & GOVERNANCE,JOHAL DAIRIES LTD,10/10/2017,H59620171011FEPXWHDLO-1,12.90,CA LITTLE BLOXWICH CE PRIMARY -MISC DAIRY PRODUCTS-PROVISIONS,OTHER NONDURABLE GOODS,GPC
WALSALL COUNCIL,HTTP://OPENDATACOMMUNITIES.ORG/ID/METROPOLITAN-DISTRICT-COUNCIL/WALSALL,31/12/2017,CHILDRENS SERVICES,ASDA SUPERSTORE,10/10/2017,H59620171011FICHELIRI-1,36.33,SPINDLETREE-FOOD AND BEVERAGES-PROVISIONS,GROCERY STORES AND SUPERMARKETS,GPC
WALSALL COUNCIL,HTTP://OPENDATACOMMUNITIES.ORG/ID/METROPOLITAN-DISTRICT-COUNCIL/WALSALL,31/12/2017,CHANGE & GOVERNANCE,BLAKEMORE FOODSERVICE,10/10/2017,H59620171011FINQQRIDE-1,41.64,CA ST JOHNS C.E. PRIMARY SCHOO-FROZEN FOODS-PROVISIONS,CATERERS,GPC
WALSALL COUNCIL,HTTP://OPENDATACOMMUNITIES.ORG/ID/METROPOLITAN-DISTRICT-COUNCIL/WALSALL,31/12/2017,CHANGE & GOVERNANCE,BLAKEMORE FOODSERVICE,10/10/2017,H59620171011FINQQRIDE-2,336.47,CA ST JOHNS C.E. PRIMARY SCHOO-FROZEN FOODS-PROVISIONS,CATERERS,GPC
WALSALL COUNCIL,HTTP://OPENDATACOMMUNITIES.ORG/ID/METROPOLITAN-DISTRICT-COUNCIL/WALSALL,31/12/2017,CHILDRENS SERVICES,ASDA SUPERSTORE,10/10/2017,H59620171011FXREFJDUG-1,17.00,SPINDLETREE-NEW-FURNITURE & EQUIPMENT,GROCERY STORES AND SUPERMARKETS,GPC
WALSALL COUNCIL,HTTP://OPENDATACOMMUNITIES.ORG/ID/METROPOLITAN-DISTRICT-COUNCIL/WALSALL,31/12/2017,CHANGE & GOVERNANCE,BLAKEMORE FOODSERVICE,10/10/2017,H59620171011FYXUMJMTN-1,107.34,CA CASTLEFORT JMI SCHOOL-DRY FOODS-PROVISIONS,CATERERS,GPC
WALSALL COUNCIL,HTTP://OPENDATACOMMUNITIES.ORG/ID/METROPOLITAN-DISTRICT-COUNCIL/WALSALL,31/12/2017,CHILDRENS SERVICES,ASDA STORES,10/10/2017,H59620171011GDHIYZHWI-1,15.27,LOCALITY FAMILY SUPPORT-WEST-FOOD AND BEVERAGES-PROVISIONS,GROCERY STORES AND SUPERMARKETS,GPC
WALSALL COUNCIL,HTTP://OPENDATACOMMUNITIES.ORG/ID/METROPOLITAN-DISTRICT-COUNCIL/WALSALL,31/12/2017,CHANGE & GOVERNANCE,AMAZON UK MARKETPLACE,10/10/2017,H59620171011GJINLVRMO-1,4.35,BUSINESS SUPPORT - POST ROOM-STATIONERY & GENERAL SUPPLIES-,BOOK STORES,GPC
WALSALL COUNCIL,HTTP://OPENDATACOMMUNITIES.ORG/ID/METROPOLITAN-DISTRICT-COUNCIL/WALSALL,31/12/2017,CHANGE & GOVERNANCE,BLAKEMORE FOODSERVICE,10/10/2017,H59620171011GRUOQNJZJ-1,6.59,CA ST MICHAELS C.E. PRIMARY SC-CATERING,CATERERS,GPC
WALSALL COUNCIL,HTTP://OPENDATACOMMUNITIES.ORG/ID/METROPOLITAN-DISTRICT-COUNCIL/WALSALL,31/12/2017,CHANGE & GOVERNANCE,CURRYS,10/10/2017,H59620171011GTHJZMAJP-1,209.98,"CENTRAL OFFICE ACCOMMODATION-REPAIRS,ALTERATIONS & MAINTENA",ELECTRONIC SALES,GPC
WALSALL COUNCIL,HTTP://OPENDATACOMMUNITIES.ORG/ID/METROPOLITAN-DISTRICT-COUNCIL/WALSALL,31/12/2017,CHANGE & GOVERNANCE,WELSH BROS FOODS LTD,10/10/2017,H59620171011GUEVFEYBC-1,125.85,CA BUSILL JONES PRIMARY SCHOOL-MEAT-PROVISIONS,FREEZER AND LOCKER MEAT PROVISIONERS,GPC
WALSALL COUNCIL,HTTP://OPENDATACOMMUNITIES.ORG/ID/METROPOLITAN-DISTRICT-COUNCIL/WALSALL,31/12/2017,CHILDRENS SERVICES,WWW.FCO.GOV.UK,10/10/2017,H59620171011GUKKEXYAF-1,35.50,SAFEGUARDING & FAMILY SUPPORT-LEGAL FEES-PRIV CONTRACTOR FEE,GOVERNMENT SERVICES,GPC
WALSALL COUNCIL,HTTP://OPENDATACOMMUNITIES.ORG/ID/METROPOLITAN-DISTRICT-COUNCIL/WALSALL,31/12/2017,CHANGE & GOVERNANCE,WELSH BROS FOODS LTD,10/10/2017,H59620171011GXHRGPTXM-1,156.69,CA RADLEYS PRIMARY SCHOOL-MEAT-PROVISIONS,FREEZER AND LOCKER MEAT PROVISIONERS,GPC
WALSALL COUNCIL,HTTP://OPENDATACOMMUNITIES.ORG/ID/METROPOLITAN-DISTRICT-COUNCIL/WALSALL,31/12/2017,CHANGE & GOVERNANCE,BLAKEMORE FOODSERVICE,10/10/2017,H59620171011GXJRRTOFO-1,-32.52,CA BLUE COAT C OF E PERFORMING-FROZEN FOODS-PROVISIONS,CATERERS,GPC
WALSALL COUNCIL,HTTP://OPENDATACOMMUNITIES.ORG/ID/METROPOLITAN-DISTRICT-COUNCIL/WALSALL,31/12/2017,CHANGE & GOVERNANCE,BORSHCH LIMITED,10/10/2017,H59620171011GYBJOJUKN-1,525.00,WALSALL CRISIS SUPPORT SCHEME-CRISIS SUPPORT PAYMENTS,HOUSEHOLD APPLIANCE STORES,GPC
WALSALL COUNCIL,HTTP://OPENDATACOMMUNITIES.ORG/ID/METROPOLITAN-DISTRICT-COUNCIL/WALSALL,31/12/2017,CHANGE & GOVERNANCE,TESCO STORES 6161,10/10/2017,H59620171011HDGLYOXJE-1,13.00,ACCOMMODATION SERVICES MANAGEM-FOOD AND BEVERAGES-PROVISIONS,GROCERY STORES AND SUPERMARKETS,GPC
WALSALL COUNCIL,HTTP://OPENDATACOMMUNITIES.ORG/ID/METROPOLITAN-DISTRICT-COUNCIL/WALSALL,31/12/2017,CHANGE & GOVERNANCE,BLAKEMORE FOODSERVICE,10/10/2017,H59620171011HLKPWBPGP-1,223.58,CA BUSILL JONES PRIMARY SCHOOL-FROZEN FOODS-PROVISIONS,CATERERS,GPC
WALSALL COUNCIL,HTTP://OPENDATACOMMUNITIES.ORG/ID/METROPOLITAN-DISTRICT-COUNCIL/WALSALL,31/12/2017,CHANGE & GOVERNANCE,BLAKEMORE FOODSERVICE,10/10/2017,H59620171011HLKPWBPGP-2,5.00,CA BUSILL JONES PRIMARY SCHOOL-FROZEN FOODS-PROVISIONS,CATERERS,GPC
WALSALL COUNCIL,HTTP://OPENDATACOMMUNITIES.ORG/ID/METROPOLITAN-DISTRICT-COUNCIL/WALSALL,31/12/2017,CHANGE & GOVERNANCE,WELSH BROS FOODS LTD,10/10/2017,H59620171011HSELZUNBJ-1,141.42,CA ST MICHAELS C.E. PRIMARY SC-MEAT-PROVISIONS,FREEZER AND LOCKER MEAT PROVISIONERS,GPC
WALSALL COUNCIL,HTTP://OPENDATACOMMUNITIES.ORG/ID/METROPOLITAN-DISTRICT-COUNCIL/WALSALL,31/12/2017,CHANGE & GOVERNANCE,BLAKEMORE FOODSERVICE,10/10/2017,H59620171011HSNQJWQSB-1,26.76,CA FIBBERSLEY PARK PRIMARY SCH-CATERING,CATERERS,GPC
WALSALL COUNCIL,HTTP://OPENDATACOMMUNITIES.ORG/ID/METROPOLITAN-DISTRICT-COUNCIL/WALSALL,31/12/2017,CHANGE & GOVERNANCE,BLAKEMORE FOODSERVICE,10/10/2017,H59620171011HUFWCIHGM-1,154.32,CA MEADOW VIEW JMI PRIMARY SCH-DRY FOODS-PROVISIONS,CATERERS,GPC
WALSALL COUNCIL,HTTP://OPENDATACOMMUNITIES.ORG/ID/METROPOLITAN-DISTRICT-COUNCIL/WALSALL,31/12/2017,CHANGE & GOVERNANCE,BLAKEMORE FOODSERVICE,10/10/2017,H59620171011HUPWLCZRS-1,96.35,TOWN HALL RESTAURANT BISTRO-DRY FOODS-PROVISIONS,CATERERS,GPC
WALSALL COUNCIL,HTTP://OPENDATACOMMUNITIES.ORG/ID/METROPOLITAN-DISTRICT-COUNCIL/WALSALL,31/12/2017,CHANGE & GOVERNANCE,BLAKEMORE FOODSERVICE,10/10/2017,H59620171011HUPWLCZRS-2,185.28,TOWN HALL RESTAURANT BISTRO-DRY FOODS-PROVISIONS,CATERERS,GPC
WALSALL COUNCIL,HTTP://OPENDATACOMMUNITIES.ORG/ID/METROPOLITAN-DISTRICT-COUNCIL/WALSALL,31/12/2017,CHANGE & GOVERNANCE,REDWINGS LODGE,10/10/2017,H59620171011HYSHHSIYM-1,459.65,BED & BREAKFAST PAYMENTS-HOTEL ACCOMMODATION-EMPLOYEES,"HOTELS, MOTELS, RESORTS",GPC
WALSALL COUNCIL,HTTP://OPENDATACOMMUNITIES.ORG/ID/METROPOLITAN-DISTRICT-COUNCIL/WALSALL,31/12/2017,ECONOMY & ENVIRONMENT,WALSALL WOOD,10/10/2017,H59620171011IKLIDTRIG-1,8.02,INFRASTRUCTURE MAINTENANCE-GENERAL MATERIALS,LUMBER & BUILDING MATERIALS STORES,GPC
WALSALL COUNCIL,HTTP://OPENDATACOMMUNITIES.ORG/ID/METROPOLITAN-DISTRICT-COUNCIL/WALSALL,31/12/2017,CHANGE & GOVERNANCE,BLAKEMORE FOODSERVICE,10/10/2017,H59620171011IMQQKKPHL-1,269.39,CA FIBBERSLEY PARK PRIMARY SCH-FROZEN FOODS-PROVISIONS,CATERERS,GPC
WALSALL COUNCIL,HTTP://OPENDATACOMMUNITIES.ORG/ID/METROPOLITAN-DISTRICT-COUNCIL/WALSALL,31/12/2017,CHANGE & GOVERNANCE,BLAKEMORE FOODSERVICE,10/10/2017,H59620171011IMQQKKPHL-2,24.98,CA FIBBERSLEY PARK PRIMARY SCH-FROZEN FOODS-PROVISIONS,CATERERS,GPC
WALSALL COUNCIL,HTTP://OPENDATACOMMUNITIES.ORG/ID/METROPOLITAN-DISTRICT-COUNCIL/WALSALL,31/12/2017,CHANGE & GOVERNANCE,BLAKEMORE FOODSERVICE,10/10/2017,H59620171011IRPTWCTLF-1,94.95,CA LEIGHSWOOD PRIMARY SCHOOL-FROZEN FOODS-PROVISIONS,CATERERS,GPC
WALSALL COUNCIL,HTTP://OPENDATACOMMUNITIES.ORG/ID/METROPOLITAN-DISTRICT-COUNCIL/WALSALL,31/12/2017,CHANGE & GOVERNANCE,BLAKEMORE FOODSERVICE,10/10/2017,H59620171011IRPTWCTLF-2,24.98,CA LEIGHSWOOD PRIMARY SCHOOL-FROZEN FOODS-PROVISIONS,CATERERS,GPC
WALSALL COUNCIL,HTTP://OPENDATACOMMUNITIES.ORG/ID/METROPOLITAN-DISTRICT-COUNCIL/WALSALL,31/12/2017,CHANGE & GOVERNANCE,WELSH BROS FOODS LTD,10/10/2017,H59620171011ISMIIIZTP-1,136.10,CA ST JOHNS C.E. PRIMARY SCHOO-MEAT-PROVISIONS,FREEZER AND LOCKER MEAT PROVISIONERS,GPC
WALSALL COUNCIL,HTTP://OPENDATACOMMUNITIES.ORG/ID/METROPOLITAN-DISTRICT-COUNCIL/WALSALL,31/12/2017,CHANGE & GOVERNANCE,BLAKEMORE FOODSERVICE,10/10/2017,H59620171011IYCJSNRZV-1,225.76,CA OAKWOOD SPECIAL SCHOOL-DRY FOODS-PROVISIONS,CATERERS,GPC
WALSALL COUNCIL,HTTP://OPENDATACOMMUNITIES.ORG/ID/METROPOLITAN-DISTRICT-COUNCIL/WALSALL,31/12/2017,CHANGE & GOVERNANCE,BLAKEMORE FOODSERVICE,10/10/2017,H59620171011IZYWXTOOE-1,282.05,CA BIRCHILLS CE PRIMARY COMMUN-FROZEN FOODS-PROVISIONS,CATERERS,GPC
WALSALL COUNCIL,HTTP://OPENDATACOMMUNITIES.ORG/ID/METROPOLITAN-DISTRICT-COUNCIL/WALSALL,31/12/2017,ECONOMY & ENVIRONMENT,AMAZON UK MARKETPLACE,10/10/2017,H59620171011JNLHQGKGK-1,18.98,BLOXWICH LEISURE CENTRE-MAINTENANCE-FURNITURE & EQUIPM,BOOK STORES,GPC
WALSALL COUNCIL,HTTP://OPENDATACOMMUNITIES.ORG/ID/METROPOLITAN-DISTRICT-COUNCIL/WALSALL,31/12/2017,CHANGE & GOVERNANCE,JOHAL DAIRIES LTD,10/10/2017,H59620171011JRDZIQUIH-1,8.60,CA ST FRANCIS CATHOLIC PRIMARY-MISC DAIRY PRODUCTS-PROVISIONS,OTHER NONDURABLE GOODS,GPC
WALSALL COUNCIL,HTTP://OPENDATACOMMUNITIES.ORG/ID/METROPOLITAN-DISTRICT-COUNCIL/WALSALL,31/12/2017,CHILDRENS SERVICES,WWW.ARGOS.CO.UK,10/10/2017,H59620171011JSSGLVWFU-1,39.98,SAFEGUARDING & FAMILY SUPPORT-FURNITURE & EQUIPMENT,DISCOUNT STORES,GPC
WALSALL COUNCIL,HTTP://OPENDATACOMMUNITIES.ORG/ID/METROPOLITAN-DISTRICT-COUNCIL/WALSALL,31/12/2017,CHILDRENS SERVICES,WWW.ARGOS.CO.UK,10/10/2017,H59620171011JSSGLVWFU-2,3.95,SAFEGUARDING & FAMILY SUPPORT-POSTAGES AND COURIER SERVICES,DISCOUNT STORES,GPC
WALSALL COUNCIL,HTTP://OPENDATACOMMUNITIES.ORG/ID/METROPOLITAN-DISTRICT-COUNCIL/WALSALL,31/12/2017,CHILDRENS SERVICES,W M MORRISONS.COM,10/10/2017,H59620171011JTFXBWOQI-1,24.48,BIRCHILLS CHILDCARE SERVICES-FOOD AND BEVERAGES-PROVISIONS,GROCERY STORES AND SUPERMARKETS,GPC
WALSALL COUNCIL,HTTP://OPENDATACOMMUNITIES.ORG/ID/METROPOLITAN-DISTRICT-COUNCIL/WALSALL,31/12/2017,CHILDRENS SERVICES,W M MORRISONS.COM,10/10/2017,H59620171011JTFXBWOQI-2,101.59,BIRCHILLS CHILDCARE SERVICES-FOOD AND BEVERAGES-PROVISIONS,GROCERY STORES AND SUPERMARKETS,GPC
WALSALL COUNCIL,HTTP://OPENDATACOMMUNITIES.ORG/ID/METROPOLITAN-DISTRICT-COUNCIL/WALSALL,31/12/2017,CHANGE & GOVERNANCE,JOHAL DAIRIES LTD,10/10/2017,H59620171011KBGQICCDG-1,14.73,CA JANE LANE SPECIAL SCHOOL-MISC DAIRY PRODUCTS-PROVISIONS,OTHER NONDURABLE GOODS,GPC
WALSALL COUNCIL,HTTP://OPENDATACOMMUNITIES.ORG/ID/METROPOLITAN-DISTRICT-COUNCIL/WALSALL,31/12/2017,ECONOMY & ENVIRONMENT,WALSALL WOOD,10/10/2017,H59620171011KLXDCGNBB-1,16.44,DEPOT-GENERAL MATERIALS,LUMBER & BUILDING MATERIALS STORES,GPC
WALSALL COUNCIL,HTTP://OPENDATACOMMUNITIES.ORG/ID/METROPOLITAN-DISTRICT-COUNCIL/WALSALL,31/12/2017,CHANGE & GOVERNANCE,JOHAL DAIRIES LTD,10/10/2017,H59620171011KQUBCORJM-1,6.12,CA ELMWOOD SPECIAL SCHOOL-MISC DAIRY PRODUCTS-PROVISIONS,OTHER NONDURABLE GOODS,GPC
WALSALL COUNCIL,HTTP://OPENDATACOMMUNITIES.ORG/ID/METROPOLITAN-DISTRICT-COUNCIL/WALSALL,31/12/2017,CHANGE & GOVERNANCE,WWW.SCC.COM,10/10/2017,H59620171011KUCDCEDFK-1,220.80,RECHARGEABLE EQUIPMENT-COMPUTER EQUIPMENT AND SUPPLIE,"COMPUTERS, COMPUTER PERIPHERAL EQUIPMENT, SOFTWARE",GPC
WALSALL COUNCIL,HTTP://OPENDATACOMMUNITIES.ORG/ID/METROPOLITAN-DISTRICT-COUNCIL/WALSALL,31/12/2017,CHANGE & GOVERNANCE,JOHAL DAIRIES LTD,10/10/2017,H59620171011KUYBJPHPV-1,30.47,CA MOORCROFT WOOD-MISC DAIRY PRODUCTS-PROVISIONS,OTHER NONDURABLE GOODS,GPC
WALSALL COUNCIL,HTTP://OPENDATACOMMUNITIES.ORG/ID/METROPOLITAN-DISTRICT-COUNCIL/WALSALL,31/12/2017,CHANGE & GOVERNANCE,WELSH BROS FOODS LTD,10/10/2017,H59620171011KXDICGMRV-1,125.85,CA BARCROFT D/C-MEAT-PROVISIONS,FREEZER AND LOCKER MEAT PROVISIONERS,GPC
WALSALL COUNCIL,HTTP://OPENDATACOMMUNITIES.ORG/ID/METROPOLITAN-DISTRICT-COUNCIL/WALSALL,31/12/2017,CHANGE & GOVERNANCE,BLAKEMORE FOODSERVICE,10/10/2017,H59620171011KXVJUHSWR-1,69.29,CA CROFT COMMUNITY PRIMARY SCH-FROZEN FOODS-PROVISIONS,CATERERS,GPC
WALSALL COUNCIL,HTTP://OPENDATACOMMUNITIES.ORG/ID/METROPOLITAN-DISTRICT-COUNCIL/WALSALL,31/12/2017,CHANGE & GOVERNANCE,BLAKEMORE FOODSERVICE,10/10/2017,H59620171011KXVJUHSWR-2,16.66,CA CROFT COMMUNITY PRIMARY SCH-FROZEN FOODS-PROVISIONS,CATERERS,GPC
WALSALL COUNCIL,HTTP://OPENDATACOMMUNITIES.ORG/ID/METROPOLITAN-DISTRICT-COUNCIL/WALSALL,31/12/2017,CHANGE & GOVERNANCE,JOHAL DAIRIES LTD,10/10/2017,H59620171011LGQJQQCEP-1,40.42,CA ST JOHNS C.E. PRIMARY SCHOO-MISC DAIRY PRODUCTS-PROVISIONS,OTHER NONDURABLE GOODS,GPC
WALSALL COUNCIL,HTTP://OPENDATACOMMUNITIES.ORG/ID/METROPOLITAN-DISTRICT-COUNCIL/WALSALL,31/12/2017,CHANGE & GOVERNANCE,BLAKEMORE FOODSERVICE,10/10/2017,H59620171011LOFPCQGCV-1,35.36,CA OLD HALL SPECIAL SCHOOL-FROZEN FOODS-PROVISIONS,CATERERS,GPC
WALSALL COUNCIL,HTTP://OPENDATACOMMUNITIES.ORG/ID/METROPOLITAN-DISTRICT-COUNCIL/WALSALL,31/12/2017,CHANGE & GOVERNANCE,BLAKEMORE FOODSERVICE,10/10/2017,H59620171011LYMFVIKRO-1,8.33,CA MOORCROFT WOOD-FROZEN FOODS-PROVISIONS,CATERERS,GPC
WALSALL COUNCIL,HTTP://OPENDATACOMMUNITIES.ORG/ID/METROPOLITAN-DISTRICT-COUNCIL/WALSALL,31/12/2017,CHANGE & GOVERNANCE,BLAKEMORE FOODSERVICE,10/10/2017,H59620171011LYMFVIKRO-2,64.58,CA MOORCROFT WOOD-FROZEN FOODS-PROVISIONS,CATERERS,GPC
WALSALL COUNCIL,HTTP://OPENDATACOMMUNITIES.ORG/ID/METROPOLITAN-DISTRICT-COUNCIL/WALSALL,31/12/2017,CHANGE & GOVERNANCE,BLAKEMORE FOODSERVICE,10/10/2017,H59620171011MBMNWPEEP-1,24.98,CA BARCROFT D/C-FROZEN FOODS-PROVISIONS,CATERERS,GPC
WALSALL COUNCIL,HTTP://OPENDATACOMMUNITIES.ORG/ID/METROPOLITAN-DISTRICT-COUNCIL/WALSALL,31/12/2017,CHANGE & GOVERNANCE,BLAKEMORE FOODSERVICE,10/10/2017,H59620171011MBMNWPEEP-2,173.70,CA BARCROFT D/C-FROZEN FOODS-PROVISIONS,CATERERS,GPC
WALSALL COUNCIL,HTTP://OPENDATACOMMUNITIES.ORG/ID/METROPOLITAN-DISTRICT-COUNCIL/WALSALL,31/12/2017,ECONOMY & ENVIRONMENT,TOOLSTATION LTD,10/10/2017,H59620171011MCYPNOCUC-1,17.00,DEPOT-GENERAL MATERIALS,HARDWARE STORES,GPC
WALSALL COUNCIL,HTTP://OPENDATACOMMUNITIES.ORG/ID/METROPOLITAN-DISTRICT-COUNCIL/WALSALL,31/12/2017,,BORSHCH LIMITED,10/10/2017,H59620171011MDKLMIHUK-1,525.00,-FURNITURE & EQUIPMENT,HOUSEHOLD APPLIANCE STORES,GPC
WALSALL COUNCIL,HTTP://OPENDATACOMMUNITIES.ORG/ID/METROPOLITAN-DISTRICT-COUNCIL/WALSALL,31/12/2017,CHANGE & GOVERNANCE,JOHAL DAIRIES LTD,10/10/2017,H59620171011MEFYBMWEC-1,25.48,CA CASTLEFORT JMI SCHOOL-,OTHER NONDURABLE GOODS,GPC
WALSALL COUNCIL,HTTP://OPENDATACOMMUNITIES.ORG/ID/METROPOLITAN-DISTRICT-COUNCIL/WALSALL,31/12/2017,ECONOMY & ENVIRONMENT,BANNER GROUP LTD,10/10/2017,H59620171011MFTEVJCMB-1,6.71,CENTRALISED STATIONARY-STATIONERY & GENERAL SUPPLIES-,"OFFICE, SCHOOL SUPPLY, AND STATIONERY STORES",GPC
WALSALL COUNCIL,HTTP://OPENDATACOMMUNITIES.ORG/ID/METROPOLITAN-DISTRICT-COUNCIL/WALSALL,31/12/2017,CHANGE & GOVERNANCE,JOHAL DAIRIES LTD,10/10/2017,H59620171011MIDQCRVOW-1,2.63,CA LEAMORE PRIMARY SCHOOL-,OTHER NONDURABLE GOODS,GPC
WALSALL COUNCIL,HTTP://OPENDATACOMMUNITIES.ORG/ID/METROPOLITAN-DISTRICT-COUNCIL/WALSALL,31/12/2017,CHANGE & GOVERNANCE,BLAKEMORE FOODSERVICE,10/10/2017,H59620171011MZSYHRCJF-1,5.20,CA RADLEYS PRIMARY SCHOOL-DRY FOODS-PROVISIONS,CATERERS,GPC
WALSALL COUNCIL,HTTP://OPENDATACOMMUNITIES.ORG/ID/METROPOLITAN-DISTRICT-COUNCIL/WALSALL,31/12/2017,CHANGE & GOVERNANCE,JOHAL DAIRIES LTD,10/10/2017,H59620171011NCJZXRDRZ-1,35.43,CA ABBEY PRIMARY SCHOOL-MISC DAIRY PRODUCTS-PROVISIONS,OTHER NONDURABLE GOODS,GPC
WALSALL COUNCIL,HTTP://OPENDATACOMMUNITIES.ORG/ID/METROPOLITAN-DISTRICT-COUNCIL/WALSALL,31/12/2017,CHANGE & GOVERNANCE,BLAKEMORE FOODSERVICE,10/10/2017,H59620171011NIXSYNOPJ-1,180.18,CA BEACON PRIMARY SCHOOL-FROZEN FOODS-PROVISIONS,CATERERS,GPC
WALSALL COUNCIL,HTTP://OPENDATACOMMUNITIES.ORG/ID/METROPOLITAN-DISTRICT-COUNCIL/WALSALL,31/12/2017,ECONOMY & ENVIRONMENT,BANNER GROUP LTD,10/10/2017,H59620171011NJPQQRRXK-1,46.18,CENTRALISED STATIONARY-STATIONERY & GENERAL SUPPLIES-,"OFFICE, SCHOOL SUPPLY, AND STATIONERY STORES",GPC
WALSALL COUNCIL,HTTP://OPENDATACOMMUNITIES.ORG/ID/METROPOLITAN-DISTRICT-COUNCIL/WALSALL,31/12/2017,CHILDRENS SERVICES,WM MORRISON FOOD.COM,10/10/2017,H59620171011NLNPJQQXJ-1,9.12,REDRUTH ROAD-FOOD AND BEVERAGES-PROVISIONS,GROCERY STORES AND SUPERMARKETS,GPC
WALSALL COUNCIL,HTTP://OPENDATACOMMUNITIES.ORG/ID/METROPOLITAN-DISTRICT-COUNCIL/WALSALL,31/12/2017,CHILDRENS SERVICES,WM MORRISON FOOD.COM,10/10/2017,H59620171011NLNPJQQXJ-2,95.81,REDRUTH ROAD-FOOD AND BEVERAGES-PROVISIONS,GROCERY STORES AND SUPERMARKETS,GPC
WALSALL COUNCIL,HTTP://OPENDATACOMMUNITIES.ORG/ID/METROPOLITAN-DISTRICT-COUNCIL/WALSALL,31/12/2017,CHANGE & GOVERNANCE,BLAKEMORE FOODSERVICE,10/10/2017,H59620171011NMKGBGPRG-1,24.98,CA RADLEYS PRIMARY SCHOOL-FROZEN FOODS-PROVISIONS,CATERERS,GPC
WALSALL COUNCIL,HTTP://OPENDATACOMMUNITIES.ORG/ID/METROPOLITAN-DISTRICT-COUNCIL/WALSALL,31/12/2017,CHANGE & GOVERNANCE,BLAKEMORE FOODSERVICE,10/10/2017,H59620171011NMKGBGPRG-2,182.00,CA RADLEYS PRIMARY SCHOOL-FROZEN FOODS-PROVISIONS,CATERERS,GPC
WALSALL COUNCIL,HTTP://OPENDATACOMMUNITIES.ORG/ID/METROPOLITAN-DISTRICT-COUNCIL/WALSALL,31/12/2017,CHANGE & GOVERNANCE,BLAKEMORE FOODSERVICE,10/10/2017,H59620171011NSRIDNJMZ-1,166.75,CA JANE LANE SPECIAL SCHOOL-FROZEN FOODS-PROVISIONS,CATERERS,GPC
WALSALL COUNCIL,HTTP://OPENDATACOMMUNITIES.ORG/ID/METROPOLITAN-DISTRICT-COUNCIL/WALSALL,31/12/2017,CHANGE & GOVERNANCE,BLAKEMORE FOODSERVICE,10/10/2017,H59620171011NSRIDNJMZ-2,16.66,CA JANE LANE SPECIAL SCHOOL-FROZEN FOODS-PROVISIONS,CATERERS,GPC
WALSALL COUNCIL,HTTP://OPENDATACOMMUNITIES.ORG/ID/METROPOLITAN-DISTRICT-COUNCIL/WALSALL,31/12/2017,CHANGE & GOVERNANCE,NOBISCO LIMITED,10/10/2017,H59620171011OAFYMRPMO-1,217.88,CA MEADOW VIEW JMI PRIMARY SCH-FURNITURE & EQUIPMENT,OTHER INDUSTRIAL SUPPLIES,GPC
WALSALL COUNCIL,HTTP://OPENDATACOMMUNITIES.ORG/ID/METROPOLITAN-DISTRICT-COUNCIL/WALSALL,31/12/2017,CHANGE & GOVERNANCE,BLAKEMORE FOODSERVICE,10/10/2017,H59620171011OFPEFGYHS-1,29.80,CA BARCROFT D/C-FROZEN FOODS-PROVISIONS,CATERERS,GPC
WALSALL COUNCIL,HTTP://OPENDATACOMMUNITIES.ORG/ID/METROPOLITAN-DISTRICT-COUNCIL/WALSALL,31/12/2017,CHILDRENS SERVICES,TRAINLINE,10/10/2017,H59620171011OHYRWFUDY-1,83.13,SAFEGUARDING & FAMILY SUPPORT-OFFICER/STAFF-PUBLIC TRANSPORT,PASSENGER RAILWAYS,GPC
WALSALL COUNCIL,HTTP://OPENDATACOMMUNITIES.ORG/ID/METROPOLITAN-DISTRICT-COUNCIL/WALSALL,31/12/2017,CHILDRENS SERVICES,WWW.OFFICESTATIONERY.,10/10/2017,H59620171011OJESGEBCL-1,77.94,PUPIL REFERAL UNIT EXCLUSIONS-STATIONERY & GENERAL SUPPLIES-,"STATIONERY, OFFICE SUPPLIES AND WRITING PAPER",GPC
WALSALL COUNCIL,HTTP://OPENDATACOMMUNITIES.ORG/ID/METROPOLITAN-DISTRICT-COUNCIL/WALSALL,31/12/2017,CHANGE & GOVERNANCE,BLAKEMORE FOODSERVICE,10/10/2017,H59620171011OLYEPOXHC-1,-13.38,CA FIBBERSLEY PARK PRIMARY SCH-FROZEN FOODS-PROVISIONS,CATERERS,GPC
WALSALL COUNCIL,HTTP://OPENDATACOMMUNITIES.ORG/ID/METROPOLITAN-DISTRICT-COUNCIL/WALSALL,31/12/2017,ECONOMY & ENVIRONMENT,BANNER GROUP LTD,10/10/2017,H59620171011ONBRVCFFO-1,18.18,CENTRALISED STATIONARY-STATIONERY & GENERAL SUPPLIES-,"OFFICE, SCHOOL SUPPLY, AND STATIONERY STORES",GPC
WALSALL COUNCIL,HTTP://OPENDATACOMMUNITIES.ORG/ID/METROPOLITAN-DISTRICT-COUNCIL/WALSALL,31/12/2017,CHANGE & GOVERNANCE,BLAKEMORE FOODSERVICE,10/10/2017,H59620171011OQCSASEUY-1,250.50,CA CROFT COMMUNITY PRIMARY SCH-DRY FOODS-PROVISIONS,CATERERS,GPC
WALSALL COUNCIL,HTTP://OPENDATACOMMUNITIES.ORG/ID/METROPOLITAN-DISTRICT-COUNCIL/WALSALL,31/12/2017,CHILDRENS SERVICES,TIMPSON LTD,10/10/2017,H59620171011ORTWQEWGZ-1,41.40,TRANSITION AND LEAVING CARE PL-MAINTENANCE-FURNITURE & EQUIPM,"HAT CLEANING SHOPS, SHOE REPAIR SHOPS, SHOE SHINE ",GPC
WALSALL COUNCIL,HTTP://OPENDATACOMMUNITIES.ORG/ID/METROPOLITAN-DISTRICT-COUNCIL/WALSALL,31/12/2017,CHANGE & GOVERNANCE,ARTHUR BRETT CATER,10/10/2017,H59620171011OWZPVRKRT-1,87.77,CA WATLING STREET PRIMARY SCHO-FRUIT & VEGETABLES OTHER-PROVI,MISCELLANEOUS FOOD STORES & CONVENIENCE STORES,GPC
